Body Name,Invoice Date,Department Code,Department,Expense Area Code,Expense Area,Expense Type Code,Expense Type,Amt Paid (�'s),Supplier Name,Extended Description,Transaction Number,Period,"Grants to Voluntary, Community and Social Enterprise Organisations",,
Rother District Council,24/04/2017,031RESOURCES,Executive Directors & Corporate Core,20175,Administrative Offices - T.H. Annex (NOT CHP),B1100,Repairs to Premises,140.08,Alfa Electric Ltd,Repairs to Premises Repairs - Electrical Works,2001092,201802,
Rother District Council,15/05/2017,091HOUSING,Housing and Community Services,20145,Maintenance Services,D1201,Equipment & Materials,3.99,Trade UK Account (Screwfix),Equipment & Materials Purchase of Tools,2000015,201801,
Rother District Council,15/05/2017,091HOUSING,Housing and Community Services,20145,Maintenance Services,D1201,Equipment & Materials,67.88,Trade UK Account (Screwfix),Equipment & Materials Purchase of Tools,2000015,201801,
Rother District Council,23/05/2017,091HOUSING,Housing and Community Services,20200,Housing Needs - HB (Housing Benefit),D2508,Removals and Storage,"1,875.00",Mr Reliable Removals and Storage,Removals and Storage,2000915,201802,
Rother District Council,31/08/2017,999NOREPORT,ICT and Customer Services,70710,Capital - Rother 20/20 ICT Investment,N1010,Software Purchase,"17,906.25",Firmstep Ltd,Software Purchase,2000541,201801,
Rother District Council,01/09/2017,091HOUSING,Housing and Community Services,20203,Housing Needs - Universal Credit,D2514,Accommodation Costs,224.00,MB Hotels Ltd,Accommodation Costs,2001814,201803,
Rother District Council,29/09/2017,081ACQUISIT,"Acquisitions, Transformation and Regeneration",20152,Watch Oak Estate,D2509,Consultants and Other Services,280.00,Oakley Commercial Ltd,Consultants and other services Consultants Fees,2001721,201803,
Rother District Council,31/10/2017,101RESOURCES,Resources,20239,Computer Services,D2509,Consultants and Other Services,"3,025.00",Northgate Public Services (UK) Ltd,Consultants and other services Consultants Fees,2000870,201801,
Rother District Council,30/11/2017,101RESOURCES,Resources,20239,Computer Services,D2509,Consultants and Other Services,550.00,Northgate Public Services (UK) Ltd,Consultants and other services Consultants Fees,2000871,201801,
Rother District Council,22/12/2017,091HOUSING,Housing and Community Services,20137,Car Parks,D2513,Hired and Contracted services,"1,650.00",G4S Cash Solutions (UK) Ltd,Hired and contracted services Cash Security Fees-Car Parks,2000084,201801,
Rother District Council,03/01/2018,091HOUSING,Housing and Community Services,20208,Care In The Community,D2513,Hired and Contracted services,185.00,Safe Partnership Ltd,Hired and contracted services Sanctuary DV Assistance Revenue,2000404,201801,
Rother District Council,08/01/2018,031RESOURCES,Executive Directors & Corporate Core,20182,Legal Services,D2513,Hired and Contracted services,"1,500.00",Bevan Brittan LLP,Hired and Contracted services,2000031,201801,
Rother District Council,09/01/2018,101RESOURCES,Resources,20239,Computer Services,D2509,Consultants and Other Services,"2,200.00",Northgate Public Services (UK) Ltd,Consultants and other services Consultants Fees,2000869,201801,
Rother District Council,14/01/2018,091HOUSING,Housing and Community Services,20200,Housing Needs - HB (Housing Benefit),D2514,Accommodation Costs,175.00,Specialist Care UK Group Ltd,Accommodation Costs,2000258,201801,
Rother District Council,14/01/2018,091HOUSING,Housing and Community Services,20203,Housing Needs - Universal Credit,D2514,Accommodation Costs,300.00,Specialist Care UK Group Ltd,Accommodation Costs,2000257,201801,
Rother District Council,15/01/2018,071STRAT,Strategy and Planning,20244,General Planning Expenses,D2513,Hired and Contracted services,149.04,Colyer Repropoint Ltd,Planning - A0 Plotter Paper,2000579,201801,
Rother District Council,17/01/2018,091HOUSING,Housing and Community Services,20208,Care In The Community,D2513,Hired and Contracted services,220.00,Safe Partnership Ltd,Hired and contracted services Sanctuary DV Assistance Revenue,2000405,201801,
Rother District Council,24/01/2018,091HOUSING,Housing and Community Services,20132,Street & Beach Cleansing,D2513,Hired and Contracted services,140.00,East Sussex and Romney Marsh Hunt,Hired and contracted services Incineration of dead animals,2001086,201802,
Rother District Council,26/01/2018,091HOUSING,Housing and Community Services,20114,Bexhill Parks & Open Spaces,B1100,Repairs to Premises,"4,981.55",Alfa Electric Ltd,Repairs to Premises,2000004,201801,
Rother District Council,01/02/2018,081ACQUISIT,"Acquisitions, Transformation and Regeneration",20118,Tourism,D2923,Grants made,"9,000.00",Hastings Borough Council,Hired and contracted services Battle Marketing,2000118,201801,
Rother District Council,01/02/2018,101RESOURCES,Resources,20217,Reliefs & Benefits-Council Tax Benefit,A2203,Training,425.00,Hbinfo Ltd,Training,2000330,201801,
Rother District Council,02/02/2018,071STRAT,Strategy and Planning,20246,Planning Applications,D2525,Publicity,854.00,Johnston Publishing Ltd,Statutory Advertising Planadv - Rye + Battle Observer,2000400,201801,
Rother District Council,02/02/2018,101RESOURCES,Resources,20242,Communications-Phones,D2621,Telephones,-44.64,TalkTalk Communications Ltd T/A TalkTalk Business,Telephones Telephone Call Costs + Line Rental,2000062,201801,
Rother District Council,02/02/2018,101RESOURCES,Resources,20209,Corporate management,D2513,Hired and Contracted services,650.00,True Commerce (Oldham) Ltd,Hired and Contracted services,2001029,201802,
Rother District Council,05/02/2018,091HOUSING,Housing and Community Services,20200,Housing Needs - HB (Housing Benefit),D2508,Removals and Storage,187.50,Chapmans of Hastings,Removal/Storage of Furniture,2000269,201801,
Rother District Council,12/02/2018,081ACQUISIT,"Acquisitions, Transformation and Regeneration",20154,Committee Property Account,B1100,Repairs to Premises,"1,400.00",Niche Interior Design Ltd,Repairs to Premises Repairs - Refurbishment of premises,2001505,201802,
Rother District Council,13/02/2018,101RESOURCES,Resources,20207,Reliefs & Benefits-Housing Benefit,D2513,Hired and Contracted services,30.00,Melissa Pattison,Hired and contracted services Service fee paid to Third Parties,2000294,201801,
Rother District Council,15/02/2018,101RESOURCES,Resources,20239,Computer Services,D2621,Telephones,577.00,TalkTalk Communications Ltd T/A TalkTalk Business,Telephones Leased Line Rental,2000060,201801,
Rother District Council,20/02/2018,091HOUSING,Housing and Community Services,20200,Housing Needs - HB (Housing Benefit),D2508,Removals and Storage,395.00,1066 Removal Services,Removal/Storage of Furniture,2000263,201801,
Rother District Council,23/02/2018,091HOUSING,Housing and Community Services,20236,Customer Services and Development,D2420,General office supplies,319.49,The Roman Group,Furniture & Fittings Purchase of office equipment,2000033,201801,
Rother District Council,25/02/2018,071STRAT,Strategy and Planning,20246,Planning Applications,D2525,Publicity,278.10,Local World Ltd,Statutory Advertising Planadv- Kent + East Sussex Courier,2000274,201801,
Rother District Council,25/02/2018,101RESOURCES,Resources,20239,Computer Services,D2621,Telephones,270.00,TalkTalk Communications Ltd T/A TalkTalk Business,Telephones Broadband Connection,2000745,201801,
Rother District Council,25/02/2018,091HOUSING,Housing and Community Services,20203,Housing Needs - Universal Credit,D2514,Accommodation Costs,262.50,Specialist Care UK Group Ltd,Accommodation Costs,2000255,201801,
Rother District Council,26/02/2018,091HOUSING,Housing and Community Services,20137,Car Parks,D2513,Hired and Contracted services,-162.00,G4S Cash Solutions (UK) Ltd,Hired and contracted services Cash Security Fees-Car Parks,2000114,201801,
Rother District Council,28/02/2018,091HOUSING,Housing and Community Services,20145,Maintenance Services,C1104,Derv,1.90,Allstar Business Solutions,Derv Fuel Service fee payable on fuel cards,2000083,201801,
Rother District Council,28/02/2018,091HOUSING,Housing and Community Services,20107,Camber Beach & Foreshore,C1104,Derv,1.90,Allstar Business Solutions,Derv Fuel Service fee payable on fuel cards,2000083,201801,
Rother District Council,28/02/2018,031RESOURCES,Executive Directors & Corporate Core,20162,Electoral Registration,D1201,Equipment & Materials,27.98,Posturite (UK) Ltd,Equipment & Materials Health and Safety Act Equipment,2000302,201801,
Rother District Council,28/02/2018,101RESOURCES,Resources,20217,Reliefs & Benefits-Council Tax Benefit,D2626,Postages,"2,867.44",Virtual Mail Room Ltd,Postages Postages - Virtual Mail Room,2000001,201801,
Rother District Council,28/02/2018,999NOREPORT,Resources,70709,Capital - Corporate Document Image Processing System,N1010,Software Purchase,550.00,Northgate Public Services (UK) Ltd,Software Purchase,2000079,201801,
Rother District Council,28/02/2018,999NOREPORT,ICT and Customer Services,70710,Capital - Rother 20/20 ICT Investment,N1010,Software Purchase,"25,635.00",Firmstep Ltd,Software Purchase,2000543,201801,
Rother District Council,28/02/2018,091HOUSING,Housing and Community Services,20145,Maintenance Services,C1104,Derv,33.33,Allstar Business Solutions,Fuel cards,2000083,201801,
Rother District Council,28/02/2018,091HOUSING,Housing and Community Services,20145,Maintenance Services,C1104,Derv,59.81,Allstar Business Solutions,Fuel cards,2000083,201801,
Rother District Council,28/02/2018,091HOUSING,Housing and Community Services,20145,Maintenance Services,C1104,Derv,71.67,Allstar Business Solutions,Fuel cards,2000083,201801,
Rother District Council,28/02/2018,091HOUSING,Housing and Community Services,20137,Car Parks,C1104,Derv,17.93,Allstar Business Solutions,Fuel cards,2000083,201801,
Rother District Council,28/02/2018,091HOUSING,Housing and Community Services,20107,Camber Beach & Foreshore,C1104,Derv,25.55,Allstar Business Solutions,Fuel cards,2000083,201801,
Rother District Council,28/02/2018,091HOUSING,Housing and Community Services,20107,Camber Beach & Foreshore,C1104,Derv,11.96,Allstar Business Solutions,Fuel cards,2000083,201801,
Rother District Council,01/03/2018,101RESOURCES,Resources,20242,Communications-Phones,D2621,Telephones,13.00,KCOM Group Plc,Telephones KCOM Smartnumber Charges,2000077,201801,
Rother District Council,01/03/2018,041ENVIRON,Environmental Services,32144,EH Environmental Services Admin R + W Partnership,D1201,Equipment & Materials,24.99,Viking Direct Ltd,Equipment & Materials EnvH-Air Arms / Supplies-Pest Contr,2000958,201802,
Rother District Council,01/03/2018,041ENVIRON,Environmental Services,32144,EH Environmental Services Admin R + W Partnership,D2626,Postages,2.90,Viking Direct Ltd,Postages Carriage of Supplies,2000958,201802,
Rother District Council,01/03/2018,041ENVIRON,Environmental Services,32144,EH Environmental Services Admin R + W Partnership,A2203,Training,45.00,Energise Sussex Coast,Training,2001173,201802,
Rother District Council,02/03/2018,101RESOURCES,Resources,20239,Computer Services,D2621,Telephones,-122.20,TalkTalk Communications Ltd T/A TalkTalk Business,Telephones Broadband Connection,2000061,201801,
Rother District Council,02/03/2018,101RESOURCES,Resources,20242,Communications-Phones,D2621,Telephones,2.60,KCOM Group Plc,Telephones KCOM Smartnumber Charges,2000078,201801,
Rother District Council,02/03/2018,101RESOURCES,Resources,20242,Communications-Phones,D2621,Telephones,44.83,TalkTalk Communications Ltd T/A TalkTalk Business,Telephones Telephone Call Costs + Line Rental,2000064,201801,
Rother District Council,04/03/2018,091HOUSING,Housing and Community Services,20203,Housing Needs - Universal Credit,D2513,Hired and Contracted services,262.50,Specialist Care UK Group Ltd,Homelessness services Temp Accom - No VAT,2000356,201801,
Rother District Council,04/03/2018,091HOUSING,Housing and Community Services,20200,Housing Needs - HB (Housing Benefit),D2513,Hired and Contracted services,350.00,Specialist Care UK Group Ltd,Homelessness services Temp Accom - plus VAT,2000361,201801,
Rother District Council,04/03/2018,091HOUSING,Housing and Community Services,20200,Housing Needs - HB (Housing Benefit),D2513,Hired and Contracted services,50.00,Specialist Care UK Group Ltd,Homelessness services Temp Accom - plus VAT,2000365,201801,
Rother District Council,04/03/2018,091HOUSING,Housing and Community Services,20203,Housing Needs - Universal Credit,D2513,Hired and Contracted services,300.00,Specialist Care UK Group Ltd,Homelessness services Temp Accom - plus VAT,2000349,201801,
Rother District Council,04/03/2018,091HOUSING,Housing and Community Services,20203,Housing Needs - Universal Credit,D2513,Hired and Contracted services,225.00,Specialist Care UK Group Ltd,Homelessness services Temp Accom - plus VAT,2000351,201801,
Rother District Council,04/03/2018,091HOUSING,Housing and Community Services,20203,Housing Needs - Universal Credit,D2513,Hired and Contracted services,75.00,Specialist Care UK Group Ltd,Homelessness services Temp Accom - plus VAT,2000352,201801,
Rother District Council,04/03/2018,091HOUSING,Housing and Community Services,20203,Housing Needs - Universal Credit,D2513,Hired and Contracted services,262.50,Specialist Care UK Group Ltd,Homelessness services Temp Accom - plus VAT,2000353,201801,
Rother District Council,04/03/2018,091HOUSING,Housing and Community Services,20203,Housing Needs - Universal Credit,D2513,Hired and Contracted services,262.50,Specialist Care UK Group Ltd,Homelessness services Temp Accom - plus VAT,2000354,201801,
Rother District Council,04/03/2018,091HOUSING,Housing and Community Services,20203,Housing Needs - Universal Credit,D2513,Hired and Contracted services,175.00,Specialist Care UK Group Ltd,Homelessness services Temp Accom - plus VAT,2000357,201801,
Rother District Council,04/03/2018,091HOUSING,Housing and Community Services,20203,Housing Needs - Universal Credit,D2513,Hired and Contracted services,350.00,Specialist Care UK Group Ltd,Homelessness services Temp Accom - plus VAT,2000358,201801,
Rother District Council,04/03/2018,091HOUSING,Housing and Community Services,20203,Housing Needs - Universal Credit,D2513,Hired and Contracted services,262.50,Specialist Care UK Group Ltd,Homelessness services Temp Accom - plus VAT,2000360,201801,
Rother District Council,04/03/2018,091HOUSING,Housing and Community Services,20203,Housing Needs - Universal Credit,D2513,Hired and Contracted services,50.00,Specialist Care UK Group Ltd,Homelessness services Temp Accom - plus VAT,2000363,201801,
Rother District Council,04/03/2018,091HOUSING,Housing and Community Services,20203,Housing Needs - Universal Credit,D2513,Hired and Contracted services,262.50,Specialist Care UK Group Ltd,Homelessness services Temp Accom - plus VAT,2000364,201801,
Rother District Council,04/03/2018,091HOUSING,Housing and Community Services,20200,Housing Needs - HB (Housing Benefit),D2514,Accommodation Costs,762.50,Specialist Care UK Group Ltd,Accommodation Costs,2000928,201802,
Rother District Council,05/03/2018,101RESOURCES,Resources,20209,Corporate management,D2513,Hired and Contracted services,103.12,Lloyds Bank,Bank Charges Bank Charges,2000748,201801,
Rother District Council,05/03/2018,101RESOURCES,Resources,20209,Corporate management,D2513,Hired and Contracted services,60.00,Lloyds Bank,Bank Charges Bank Charges,2000749,201801,
Rother District Council,06/03/2018,101RESOURCES,Resources,20240,Printing Services,D2417,Photocopy Paper,193.67,Premier Paper Group Ltd,Photocopy Paper Wide Format Consumables,2000042,201801,
Rother District Council,06/03/2018,041ENVIRON,Environmental Services,32134,EH Pollution R + W Partnership,D1201,Equipment & Materials,8.95,Cole-Parmer Instrument Company Ltd,Equipment & Materials Carriage/Handling Charge,2002074,201803,
Rother District Council,06/03/2018,041ENVIRON,Environmental Services,32134,EH Pollution R + W Partnership,D1201,Equipment & Materials,222.90,Cole-Parmer Instrument Company Ltd,Equipment & Materials EnvH- Pollution Equipment,2002074,201803,
Rother District Council,07/03/2018,091HOUSING,Housing and Community Services,20108,Bexhill Promenade & Foreshore,E2302,Third party payment private contractors,"2,805.98",The Fountain Workshop (Maintenance) Ltd,Third party payment private contractors Water Feature Maintenance,2000111,201801,
Rother District Council,08/03/2018,101RESOURCES,Resources,20209,Corporate management,D2513,Hired and Contracted services,169.68,Capita Business Services Ltd,Bank Charges Bank Charges,2000063,201801,
Rother District Council,08/03/2018,091HOUSING,Housing and Community Services,20200,Housing Needs - HB (Housing Benefit),D2514,Accommodation Costs,495.00,Paul Burton Property Management,Homelessness services Deposit for Landlords,2000403,201801,
Rother District Council,08/03/2018,091HOUSING,Housing and Community Services,20200,Housing Needs - HB (Housing Benefit),D2514,Accommodation Costs,495.00,Paul Burton Property Management,Homelessness services Rent in Advance for Homeless,2000403,201801,
Rother District Council,08/03/2018,999NOREPORT,Environmental Services,70706,Capital - Disable Facilities Grant,N1012,Capital Advances,867.32,Alfa Electric Ltd,Capital Advances Disabled Facilities Grant,2001394,201802,
Rother District Council,08/03/2018,091HOUSING,Housing and Community Services,20200,Housing Needs - HB (Housing Benefit),D2508,Removals and Storage,587.50,Chapmans of Hastings,Removals and Storage,2001338,201802,
Rother District Council,09/03/2018,101RESOURCES,Resources,20239,Computer Services,D2621,Telephones,67.50,TalkTalk Communications Ltd T/A TalkTalk Business,Telephones Broadband Connection,2000746,201801,
Rother District Council,09/03/2018,031RESOURCES,Executive Directors & Corporate Core,20182,Legal Services,D2513,Hired and Contracted services,"31,021.85",Wealden District Council,Third party payment other LAs legal counsel costs to wealden- shared cost,2000017,201801,
Rother District Council,09/03/2018,101RESOURCES,Resources,20239,Computer Services,D2635,Computer Licences,"19,645.00",Lewes District Council,Computer Licences,2000019,201801,
Rother District Council,09/03/2018,091HOUSING,Housing and Community Services,20128,Public Conveniences,B1100,Repairs to Premises,45.00,Alfa Electric Ltd,Repairs to Premises,2000007,201801,
Rother District Council,09/03/2018,031RESOURCES,Executive Directors & Corporate Core,20173,Administrative Offices - Town Hall,B1100,Repairs to Premises,78.13,Alfa Electric Ltd,Repairs to Premises,2000008,201801,
Rother District Council,09/03/2018,091HOUSING,Housing and Community Services,20200,Housing Needs - HB (Housing Benefit),D2514,Accommodation Costs,240.00,MB Hotels Ltd,Accommodation Costs,2000205,201801,
Rother District Council,09/03/2018,091HOUSING,Housing and Community Services,20200,Housing Needs - HB (Housing Benefit),D2514,Accommodation Costs,240.00,MB Hotels Ltd,Accommodation Costs,2000206,201801,
Rother District Council,09/03/2018,091HOUSING,Housing and Community Services,20200,Housing Needs - HB (Housing Benefit),D2514,Accommodation Costs,280.00,MB Hotels Ltd,Accommodation Costs,2000207,201801,
Rother District Council,09/03/2018,091HOUSING,Housing and Community Services,20203,Housing Needs - Universal Credit,D2514,Accommodation Costs,300.00,MB Hotels Ltd,Accommodation Costs,2000204,201801,
Rother District Council,09/03/2018,091HOUSING,Housing and Community Services,20203,Housing Needs - Universal Credit,D2514,Accommodation Costs,280.00,MB Hotels Ltd,Accommodation Costs,2000203,201801,
Rother District Council,09/03/2018,091HOUSING,Housing and Community Services,20203,Housing Needs - Universal Credit,D2514,Accommodation Costs,240.00,MB Hotels Ltd,Accommodation Costs,2000208,201801,
Rother District Council,09/03/2018,091HOUSING,Housing and Community Services,20203,Housing Needs - Universal Credit,D2514,Accommodation Costs,392.00,MB Hotels Ltd,Accommodation Costs,2000209,201801,
Rother District Council,09/03/2018,091HOUSING,Housing and Community Services,20203,Housing Needs - Universal Credit,D2514,Accommodation Costs,336.00,MB Hotels Ltd,Accommodation Costs,2000210,201801,
Rother District Council,11/03/2018,101RESOURCES,Resources,20240,Printing Services,D2638,Photocopier Contracts,109.16,Ricoh UK Limited,Photocopier Contracts,2000034,201801,
Rother District Council,12/03/2018,101RESOURCES,Resources,20209,Corporate management,D2513,Hired and Contracted services,134.55,Lloyds Bank,Bank Charges Bank Charges,2000747,201801,
Rother District Council,12/03/2018,091HOUSING,Housing and Community Services,20132,Street & Beach Cleansing,D2513,Hired and Contracted services,60.00,East Sussex and Romney Marsh Hunt,Hired and contracted services Incineration of dead animals,2000619,201801,
Rother District Council,12/03/2018,091HOUSING,Housing and Community Services,20123,Cemeteries,B2611,Contract cleaning,330.00,Abacus Main Ltd,Contract cleaning,2000021,201801,
Rother District Council,12/03/2018,081ACQUISIT,"Acquisitions, Transformation and Regeneration",20153,"Elva Business Centre, Bexhill",B1100,Repairs to Premises,185.05,Alfa Electric Ltd,Repairs to Premises,2000009,201801,
Rother District Council,12/03/2018,091HOUSING,Housing and Community Services,20200,Housing Needs - HB (Housing Benefit),D2514,Accommodation Costs,392.00,Saffron HMO Ltd,Accommodation Costs,2000176,201801,
Rother District Council,12/03/2018,091HOUSING,Housing and Community Services,20200,Housing Needs - HB (Housing Benefit),D2514,Accommodation Costs,98.00,Saffron HMO Ltd,Accommodation Costs,2000176,201801,
Rother District Council,12/03/2018,091HOUSING,Housing and Community Services,20200,Housing Needs - HB (Housing Benefit),D2514,Accommodation Costs,280.00,Saffron HMO Ltd,Accommodation Costs,2000177,201801,
Rother District Council,12/03/2018,091HOUSING,Housing and Community Services,20200,Housing Needs - HB (Housing Benefit),D2514,Accommodation Costs,336.00,Solutions Accommodation Providers Ltd,Accommodation Costs,2000142,201801,
Rother District Council,12/03/2018,091HOUSING,Housing and Community Services,20200,Housing Needs - HB (Housing Benefit),D2514,Accommodation Costs,84.00,Solutions Accommodation Providers Ltd,Accommodation Costs,2000142,201801,
Rother District Council,12/03/2018,091HOUSING,Housing and Community Services,20200,Housing Needs - HB (Housing Benefit),D2514,Accommodation Costs,160.00,Saffron HMO Ltd,Accommodation Costs,2000170,201801,
Rother District Council,12/03/2018,091HOUSING,Housing and Community Services,20200,Housing Needs - HB (Housing Benefit),D2514,Accommodation Costs,40.00,Saffron HMO Ltd,Accommodation Costs,2000170,201801,
Rother District Council,12/03/2018,091HOUSING,Housing and Community Services,20200,Housing Needs - HB (Housing Benefit),D2514,Accommodation Costs,70.00,Saffron HMO Ltd,Accommodation Costs,2000171,201801,
Rother District Council,12/03/2018,091HOUSING,Housing and Community Services,20200,Housing Needs - HB (Housing Benefit),D2514,Accommodation Costs,280.00,Saffron HMO Ltd,Accommodation Costs,2000171,201801,
Rother District Council,12/03/2018,091HOUSING,Housing and Community Services,20200,Housing Needs - HB (Housing Benefit),D2514,Accommodation Costs,98.00,Solutions Accommodation Providers Ltd,Accommodation Costs,2000132,201801,
Rother District Council,12/03/2018,091HOUSING,Housing and Community Services,20200,Housing Needs - HB (Housing Benefit),D2514,Accommodation Costs,392.00,Solutions Accommodation Providers Ltd,Accommodation Costs,2000132,201801,
Rother District Council,12/03/2018,091HOUSING,Housing and Community Services,20200,Housing Needs - HB (Housing Benefit),D2514,Accommodation Costs,392.00,Solutions Accommodation Providers Ltd,Accommodation Costs,2000133,201801,
Rother District Council,12/03/2018,091HOUSING,Housing and Community Services,20200,Housing Needs - HB (Housing Benefit),D2514,Accommodation Costs,98.00,Solutions Accommodation Providers Ltd,Accommodation Costs,2000133,201801,
Rother District Council,12/03/2018,091HOUSING,Housing and Community Services,20200,Housing Needs - HB (Housing Benefit),D2514,Accommodation Costs,33.60,Saffron HMO Ltd,Accommodation Costs,2000173,201801,
Rother District Council,12/03/2018,091HOUSING,Housing and Community Services,20200,Housing Needs - HB (Housing Benefit),D2514,Accommodation Costs,134.40,Saffron HMO Ltd,Accommodation Costs,2000173,201801,
Rother District Council,12/03/2018,091HOUSING,Housing and Community Services,20200,Housing Needs - HB (Housing Benefit),D2514,Accommodation Costs,70.00,Saffron HMO Ltd,Accommodation Costs,2000177,201801,
Rother District Council,12/03/2018,091HOUSING,Housing and Community Services,20200,Housing Needs - HB (Housing Benefit),D2514,Accommodation Costs,240.00,Solutions Accommodation Providers Ltd,Accommodation Costs,2000134,201801,
Rother District Council,12/03/2018,091HOUSING,Housing and Community Services,20200,Housing Needs - HB (Housing Benefit),D2514,Accommodation Costs,36.00,Solutions Accommodation Providers Ltd,Accommodation Costs,2000135,201801,
Rother District Council,12/03/2018,091HOUSING,Housing and Community Services,20200,Housing Needs - HB (Housing Benefit),D2514,Accommodation Costs,144.00,Solutions Accommodation Providers Ltd,Accommodation Costs,2000135,201801,
Rother District Council,12/03/2018,091HOUSING,Housing and Community Services,20203,Housing Needs - Universal Credit,D2514,Accommodation Costs,70.00,Solutions Accommodation Providers Ltd,Accommodation Costs,2000140,201801,
Rother District Council,12/03/2018,091HOUSING,Housing and Community Services,20203,Housing Needs - Universal Credit,D2514,Accommodation Costs,77.00,Solutions Accommodation Providers Ltd,Accommodation Costs,2000141,201801,
Rother District Council,12/03/2018,091HOUSING,Housing and Community Services,20203,Housing Needs - Universal Credit,D2514,Accommodation Costs,52.50,Solutions Accommodation Providers Ltd,Accommodation Costs,2000130,201801,
Rother District Council,12/03/2018,091HOUSING,Housing and Community Services,20203,Housing Needs - Universal Credit,D2514,Accommodation Costs,308.00,Solutions Accommodation Providers Ltd,Accommodation Costs,2000141,201801,
Rother District Council,12/03/2018,091HOUSING,Housing and Community Services,20203,Housing Needs - Universal Credit,D2514,Accommodation Costs,210.00,Solutions Accommodation Providers Ltd,Accommodation Costs,2000130,201801,
Rother District Council,12/03/2018,091HOUSING,Housing and Community Services,20203,Housing Needs - Universal Credit,D2514,Accommodation Costs,336.00,Solutions Accommodation Providers Ltd,Accommodation Costs,2000131,201801,
Rother District Council,12/03/2018,091HOUSING,Housing and Community Services,20203,Housing Needs - Universal Credit,D2514,Accommodation Costs,84.00,Solutions Accommodation Providers Ltd,Accommodation Costs,2000131,201801,
Rother District Council,12/03/2018,091HOUSING,Housing and Community Services,20203,Housing Needs - Universal Credit,D2514,Accommodation Costs,45.00,Saffron HMO Ltd,Accommodation Costs,2000178,201801,
Rother District Council,12/03/2018,091HOUSING,Housing and Community Services,20203,Housing Needs - Universal Credit,D2514,Accommodation Costs,168.00,Saffron HMO Ltd,Accommodation Costs,2000179,201801,
Rother District Council,12/03/2018,091HOUSING,Housing and Community Services,20203,Housing Needs - Universal Credit,D2514,Accommodation Costs,33.60,Saffron HMO Ltd,Accommodation Costs,2000180,201801,
Rother District Council,12/03/2018,091HOUSING,Housing and Community Services,20203,Housing Needs - Universal Credit,D2514,Accommodation Costs,134.40,Saffron HMO Ltd,Accommodation Costs,2000180,201801,
Rother District Council,12/03/2018,091HOUSING,Housing and Community Services,20203,Housing Needs - Universal Credit,D2514,Accommodation Costs,33.60,Saffron HMO Ltd,Accommodation Costs,2000169,201801,
Rother District Council,12/03/2018,091HOUSING,Housing and Community Services,20203,Housing Needs - Universal Credit,D2514,Accommodation Costs,134.40,Saffron HMO Ltd,Accommodation Costs,2000169,201801,
Rother District Council,12/03/2018,091HOUSING,Housing and Community Services,20203,Housing Needs - Universal Credit,D2514,Accommodation Costs,24.00,Saffron HMO Ltd,Accommodation Costs,2000172,201801,
Rother District Council,12/03/2018,091HOUSING,Housing and Community Services,20203,Housing Needs - Universal Credit,D2514,Accommodation Costs,115.20,Saffron HMO Ltd,Accommodation Costs,2000172,201801,
Rother District Council,12/03/2018,091HOUSING,Housing and Community Services,20203,Housing Needs - Universal Credit,D2514,Accommodation Costs,28.80,Saffron HMO Ltd,Accommodation Costs,2000172,201801,
Rother District Council,12/03/2018,091HOUSING,Housing and Community Services,20203,Housing Needs - Universal Credit,D2514,Accommodation Costs,336.00,Solutions Accommodation Providers Ltd,Accommodation Costs,2000136,201801,
Rother District Council,12/03/2018,091HOUSING,Housing and Community Services,20203,Housing Needs - Universal Credit,D2514,Accommodation Costs,84.00,Solutions Accommodation Providers Ltd,Accommodation Costs,2000136,201801,
Rother District Council,12/03/2018,091HOUSING,Housing and Community Services,20203,Housing Needs - Universal Credit,D2514,Accommodation Costs,84.00,Solutions Accommodation Providers Ltd,Accommodation Costs,2000137,201801,
Rother District Council,12/03/2018,091HOUSING,Housing and Community Services,20203,Housing Needs - Universal Credit,D2514,Accommodation Costs,336.00,Solutions Accommodation Providers Ltd,Accommodation Costs,2000137,201801,
Rother District Council,12/03/2018,091HOUSING,Housing and Community Services,20203,Housing Needs - Universal Credit,D2514,Accommodation Costs,336.00,Solutions Accommodation Providers Ltd,Accommodation Costs,2000138,201801,
Rother District Council,12/03/2018,091HOUSING,Housing and Community Services,20203,Housing Needs - Universal Credit,D2514,Accommodation Costs,84.00,Solutions Accommodation Providers Ltd,Accommodation Costs,2000138,201801,
Rother District Council,12/03/2018,091HOUSING,Housing and Community Services,20203,Housing Needs - Universal Credit,D2514,Accommodation Costs,56.00,Solutions Accommodation Providers Ltd,Accommodation Costs,2000139,201801,
Rother District Council,12/03/2018,091HOUSING,Housing and Community Services,20203,Housing Needs - Universal Credit,D2514,Accommodation Costs,224.00,Solutions Accommodation Providers Ltd,Accommodation Costs,2000139,201801,
Rother District Council,12/03/2018,091HOUSING,Housing and Community Services,20203,Housing Needs - Universal Credit,D2514,Accommodation Costs,280.00,Solutions Accommodation Providers Ltd,Accommodation Costs,2000140,201801,
Rother District Council,12/03/2018,091HOUSING,Housing and Community Services,20203,Housing Needs - Universal Credit,D2514,Accommodation Costs,280.00,Saffron HMO Ltd,Accommodation Costs,2000174,201801,
Rother District Council,12/03/2018,091HOUSING,Housing and Community Services,20203,Housing Needs - Universal Credit,D2514,Accommodation Costs,70.00,Saffron HMO Ltd,Accommodation Costs,2000174,201801,
Rother District Council,12/03/2018,091HOUSING,Housing and Community Services,20203,Housing Needs - Universal Credit,D2514,Accommodation Costs,77.00,Saffron HMO Ltd,Accommodation Costs,2000175,201801,
Rother District Council,12/03/2018,091HOUSING,Housing and Community Services,20203,Housing Needs - Universal Credit,D2514,Accommodation Costs,308.00,Saffron HMO Ltd,Accommodation Costs,2000175,201801,
Rother District Council,12/03/2018,031RESOURCES,Executive Directors & Corporate Core,20176,Administrative Offices - Print Room,B2421,Water,8.00,South East Water Ltd,Water Charges,2001058,201802,
Rother District Council,13/03/2018,091HOUSING,Housing and Community Services,20137,Car Parks,D1201,Equipment & Materials,30.80,Cale UK Ltd,Equipment & Materials Ticket Machine Maintenance/ Repairs,2000054,201801,
Rother District Council,13/03/2018,091HOUSING,Housing and Community Services,20137,Car Parks,D1201,Equipment & Materials,144.10,Cale UK Ltd,Equipment & Materials Ticket Machine Maintenance/ Repairs,2000055,201801,
Rother District Council,13/03/2018,031RESOURCES,Executive Directors & Corporate Core,20173,Administrative Offices - Town Hall,B1100,Repairs to Premises,14.34,Jewson Limited,Repairs to Premises Purchase of Materials - Build Maint,2000380,201801,
Rother District Council,13/03/2018,091HOUSING,Housing and Community Services,20128,Public Conveniences,B1100,Repairs to Premises,388.16,Alfa Electric Ltd,Repairs to Premises Repairs - Electrical Works,2000623,201801,
Rother District Council,13/03/2018,091HOUSING,Housing and Community Services,20105,Allotments- Bexhill,B2421,Water,56.14,South East Water Ltd,Water Charges,2000086,201801,
Rother District Council,13/03/2018,101RESOURCES,Resources,20215,Revenue and Benefits,D2622,Mobile Phones,13.95,O2 (UK) Ltd,Mobile Phones,2000075,201801,
Rother District Council,13/03/2018,101RESOURCES,Resources,20207,Reliefs & Benefits-Housing Benefit,D2622,Mobile Phones,10.00,O2 (UK) Ltd,Mobile Phones,2000076,201801,
Rother District Council,13/03/2018,101RESOURCES,Resources,20207,Reliefs & Benefits-Housing Benefit,D2622,Mobile Phones,10.00,O2 (UK) Ltd,Mobile Phones,2000076,201801,
Rother District Council,13/03/2018,101RESOURCES,Resources,20207,Reliefs & Benefits-Housing Benefit,D2622,Mobile Phones,10.00,O2 (UK) Ltd,Mobile Phones,2000076,201801,
Rother District Council,13/03/2018,101RESOURCES,Resources,20207,Reliefs & Benefits-Housing Benefit,D2622,Mobile Phones,10.00,O2 (UK) Ltd,Mobile Phones,2000076,201801,
Rother District Council,13/03/2018,101RESOURCES,Resources,20221,Financial Services,D2622,Mobile Phones,10.00,O2 (UK) Ltd,Mobile Phones,2000069,201801,
Rother District Council,13/03/2018,101RESOURCES,Resources,20242,Communications-Phones,D2622,Mobile Phones,10.00,O2 (UK) Ltd,Mobile Phones,2000076,201801,
Rother District Council,13/03/2018,101RESOURCES,Resources,20216,Cost Of Collection,D2622,Mobile Phones,10.00,O2 (UK) Ltd,Mobile Phones,2000076,201801,
Rother District Council,13/03/2018,101RESOURCES,Resources,20216,Cost Of Collection,D2622,Mobile Phones,10.00,O2 (UK) Ltd,Mobile Phones,2000076,201801,
Rother District Council,13/03/2018,101RESOURCES,Resources,20216,Cost Of Collection,D2622,Mobile Phones,10.00,O2 (UK) Ltd,Mobile Phones,2000076,201801,
Rother District Council,13/03/2018,101RESOURCES,Resources,20239,Computer Services,D2622,Mobile Phones,10.00,O2 (UK) Ltd,Mobile Phones,2000074,201801,
Rother District Council,13/03/2018,101RESOURCES,Resources,20239,Computer Services,D2622,Mobile Phones,10.00,O2 (UK) Ltd,Mobile Phones,2000074,201801,
Rother District Council,13/03/2018,101RESOURCES,Resources,20239,Computer Services,D2622,Mobile Phones,10.00,O2 (UK) Ltd,Mobile Phones,2000074,201801,
Rother District Council,13/03/2018,101RESOURCES,Resources,20239,Computer Services,D2622,Mobile Phones,10.00,O2 (UK) Ltd,Mobile Phones,2000074,201801,
Rother District Council,13/03/2018,101RESOURCES,Resources,20239,Computer Services,D2622,Mobile Phones,10.00,O2 (UK) Ltd,Mobile Phones,2000074,201801,
Rother District Council,13/03/2018,101RESOURCES,Resources,20239,Computer Services,D2622,Mobile Phones,10.00,O2 (UK) Ltd,Mobile Phones,2000074,201801,
Rother District Council,13/03/2018,101RESOURCES,Resources,20239,Computer Services,D2622,Mobile Phones,10.00,O2 (UK) Ltd,Mobile Phones,2000074,201801,
Rother District Council,13/03/2018,101RESOURCES,Resources,20239,Computer Services,D2622,Mobile Phones,53.46,O2 (UK) Ltd,Mobile Phones,2000074,201801,
Rother District Council,13/03/2018,101RESOURCES,Resources,20239,Computer Services,D2622,Mobile Phones,11.07,O2 (UK) Ltd,Mobile Phones,2000074,201801,
Rother District Council,13/03/2018,101RESOURCES,Resources,20239,Computer Services,D2622,Mobile Phones,10.00,O2 (UK) Ltd,Mobile Phones,2000074,201801,
Rother District Council,13/03/2018,101RESOURCES,Resources,20239,Computer Services,D2622,Mobile Phones,10.00,O2 (UK) Ltd,Mobile Phones,2000074,201801,
Rother District Council,13/03/2018,101RESOURCES,Resources,20239,Computer Services,D2622,Mobile Phones,10.00,O2 (UK) Ltd,Mobile Phones,2000074,201801,
Rother District Council,13/03/2018,091HOUSING,Housing and Community Services,20204,Housing Administration Account,D2622,Mobile Phones,10.00,O2 (UK) Ltd,Mobile Phones,2000075,201801,
Rother District Council,13/03/2018,091HOUSING,Housing and Community Services,20204,Housing Administration Account,D2622,Mobile Phones,10.00,O2 (UK) Ltd,Mobile Phones,2000075,201801,
Rother District Council,13/03/2018,091HOUSING,Housing and Community Services,20123,Cemeteries,D2622,Mobile Phones,10.00,O2 (UK) Ltd,Mobile Phones,2000080,201801,
Rother District Council,13/03/2018,091HOUSING,Housing and Community Services,20208,Care In The Community,D2622,Mobile Phones,10.00,O2 (UK) Ltd,Mobile Phones,2000075,201801,
Rother District Council,13/03/2018,091HOUSING,Housing and Community Services,20208,Care In The Community,D2622,Mobile Phones,10.00,O2 (UK) Ltd,Mobile Phones,2000075,201801,
Rother District Council,13/03/2018,091HOUSING,Housing and Community Services,20132,Street & Beach Cleansing,D2622,Mobile Phones,10.00,O2 (UK) Ltd,Mobile Phones,2000080,201801,
Rother District Council,13/03/2018,091HOUSING,Housing and Community Services,20133,Refuse Collection,D2622,Mobile Phones,10.00,O2 (UK) Ltd,Mobile Phones,2000080,201801,
Rother District Council,13/03/2018,091HOUSING,Housing and Community Services,20145,Maintenance Services,D2622,Mobile Phones,10.00,O2 (UK) Ltd,Mobile Phones,2000080,201801,
Rother District Council,13/03/2018,091HOUSING,Housing and Community Services,20145,Maintenance Services,D2622,Mobile Phones,10.00,O2 (UK) Ltd,Mobile Phones,2000080,201801,
Rother District Council,13/03/2018,091HOUSING,Housing and Community Services,20145,Maintenance Services,D2622,Mobile Phones,10.00,O2 (UK) Ltd,Mobile Phones,2000080,201801,
Rother District Council,13/03/2018,091HOUSING,Housing and Community Services,20145,Maintenance Services,D2622,Mobile Phones,10.00,O2 (UK) Ltd,Mobile Phones,2000080,201801,
Rother District Council,13/03/2018,091HOUSING,Housing and Community Services,20145,Maintenance Services,D2622,Mobile Phones,10.00,O2 (UK) Ltd,Mobile Phones,2000080,201801,
Rother District Council,13/03/2018,091HOUSING,Housing and Community Services,20145,Maintenance Services,D2622,Mobile Phones,10.32,O2 (UK) Ltd,Mobile Phones,2000080,201801,
Rother District Council,13/03/2018,091HOUSING,Housing and Community Services,20145,Maintenance Services,D2622,Mobile Phones,10.00,O2 (UK) Ltd,Mobile Phones,2000080,201801,
Rother District Council,13/03/2018,091HOUSING,Housing and Community Services,20233,Bexhill Community Help Point,D2622,Mobile Phones,10.00,O2 (UK) Ltd,Mobile Phones,2000076,201801,
Rother District Council,13/03/2018,091HOUSING,Housing and Community Services,20137,Car Parks,D2622,Mobile Phones,10.37,O2 (UK) Ltd,Mobile Phones,2000080,201801,
Rother District Council,13/03/2018,091HOUSING,Housing and Community Services,20137,Car Parks,D2622,Mobile Phones,10.00,O2 (UK) Ltd,Mobile Phones,2000080,201801,
Rother District Council,13/03/2018,091HOUSING,Housing and Community Services,20137,Car Parks,D2622,Mobile Phones,10.00,O2 (UK) Ltd,Mobile Phones,2000080,201801,
Rother District Council,13/03/2018,091HOUSING,Housing and Community Services,20137,Car Parks,D2622,Mobile Phones,10.00,O2 (UK) Ltd,Mobile Phones,2000080,201801,
Rother District Council,13/03/2018,091HOUSING,Housing and Community Services,20137,Car Parks,D2622,Mobile Phones,10.00,O2 (UK) Ltd,Mobile Phones,2000080,201801,
Rother District Council,13/03/2018,091HOUSING,Housing and Community Services,20137,Car Parks,D2622,Mobile Phones,10.00,O2 (UK) Ltd,Mobile Phones,2000080,201801,
Rother District Council,13/03/2018,091HOUSING,Housing and Community Services,20137,Car Parks,D2622,Mobile Phones,10.00,O2 (UK) Ltd,Mobile Phones,2000080,201801,
Rother District Council,13/03/2018,091HOUSING,Housing and Community Services,20137,Car Parks,D2622,Mobile Phones,10.00,O2 (UK) Ltd,Mobile Phones,2000080,201801,
Rother District Council,13/03/2018,091HOUSING,Housing and Community Services,20137,Car Parks,D2622,Mobile Phones,10.00,O2 (UK) Ltd,Mobile Phones,2000080,201801,
Rother District Council,13/03/2018,091HOUSING,Housing and Community Services,20137,Car Parks,D2622,Mobile Phones,10.00,O2 (UK) Ltd,Mobile Phones,2000080,201801,
Rother District Council,13/03/2018,091HOUSING,Housing and Community Services,20137,Car Parks,D2622,Mobile Phones,10.00,O2 (UK) Ltd,Mobile Phones,2000080,201801,
Rother District Council,13/03/2018,091HOUSING,Housing and Community Services,20137,Car Parks,D2622,Mobile Phones,10.00,O2 (UK) Ltd,Mobile Phones,2000080,201801,
Rother District Council,13/03/2018,091HOUSING,Housing and Community Services,20117,Amenities Administration Account,D2622,Mobile Phones,10.00,O2 (UK) Ltd,Mobile Phones,2000080,201801,
Rother District Council,13/03/2018,091HOUSING,Housing and Community Services,20117,Amenities Administration Account,D2622,Mobile Phones,10.00,O2 (UK) Ltd,Mobile Phones,2000080,201801,
Rother District Council,13/03/2018,091HOUSING,Housing and Community Services,20117,Amenities Administration Account,D2622,Mobile Phones,10.00,O2 (UK) Ltd,Mobile Phones,2000071,201801,
Rother District Council,13/03/2018,091HOUSING,Housing and Community Services,20134,Recycling,D2622,Mobile Phones,10.00,O2 (UK) Ltd,Mobile Phones,2000080,201801,
Rother District Council,13/03/2018,091HOUSING,Housing and Community Services,20128,Public Conveniences,B1100,Repairs to Premises,55.00,Alfa Electric Ltd,Repairs to Premises,2000006,201801,
Rother District Council,13/03/2018,091HOUSING,Housing and Community Services,20108,Bexhill Promenade & Foreshore,D2622,Mobile Phones,10.00,O2 (UK) Ltd,Mobile Phones,2000080,201801,
Rother District Council,13/03/2018,091HOUSING,Housing and Community Services,20108,Bexhill Promenade & Foreshore,D2622,Mobile Phones,10.00,O2 (UK) Ltd,Mobile Phones,2000080,201801,
Rother District Council,13/03/2018,091HOUSING,Housing and Community Services,20108,Bexhill Promenade & Foreshore,D2622,Mobile Phones,10.00,O2 (UK) Ltd,Mobile Phones,2000080,201801,
Rother District Council,13/03/2018,091HOUSING,Housing and Community Services,20109,Sports Development,D2622,Mobile Phones,10.00,O2 (UK) Ltd,Mobile Phones,2000080,201801,
Rother District Council,13/03/2018,091HOUSING,Housing and Community Services,20109,Sports Development,D2622,Mobile Phones,10.00,O2 (UK) Ltd,Mobile Phones,2000071,201801,
Rother District Council,13/03/2018,091HOUSING,Housing and Community Services,20114,Bexhill Parks & Open Spaces,D2622,Mobile Phones,10.00,O2 (UK) Ltd,Mobile Phones,2000080,201801,
Rother District Council,13/03/2018,091HOUSING,Housing and Community Services,20114,Bexhill Parks & Open Spaces,D2622,Mobile Phones,10.00,O2 (UK) Ltd,Mobile Phones,2000080,201801,
Rother District Council,13/03/2018,091HOUSING,Housing and Community Services,20114,Bexhill Parks & Open Spaces,D2622,Mobile Phones,10.12,O2 (UK) Ltd,Mobile Phones,2000080,201801,
Rother District Council,13/03/2018,091HOUSING,Housing and Community Services,20114,Bexhill Parks & Open Spaces,D2622,Mobile Phones,12.66,O2 (UK) Ltd,Mobile Phones,2000080,201801,
Rother District Council,13/03/2018,091HOUSING,Housing and Community Services,20114,Bexhill Parks & Open Spaces,D2622,Mobile Phones,10.00,O2 (UK) Ltd,Mobile Phones,2000080,201801,
Rother District Council,13/03/2018,091HOUSING,Housing and Community Services,20102,Rother Museum Services,D2622,Mobile Phones,11.57,O2 (UK) Ltd,Mobile Phones,2000080,201801,
Rother District Council,13/03/2018,091HOUSING,Housing and Community Services,20107,Camber Beach & Foreshore,D2622,Mobile Phones,10.00,O2 (UK) Ltd,Mobile Phones,2000080,201801,
Rother District Council,13/03/2018,091HOUSING,Housing and Community Services,20107,Camber Beach & Foreshore,D2622,Mobile Phones,10.00,O2 (UK) Ltd,Mobile Phones,2000080,201801,
Rother District Council,13/03/2018,081ACQUISIT,"Acquisitions, Transformation and Regeneration",20136,Regeneration,D2622,Mobile Phones,10.00,O2 (UK) Ltd,Mobile Phones,2000089,201801,
Rother District Council,13/03/2018,081ACQUISIT,"Acquisitions, Transformation and Regeneration",20136,Regeneration,D2622,Mobile Phones,10.00,O2 (UK) Ltd,Mobile Phones,2000089,201801,
Rother District Council,13/03/2018,081ACQUISIT,"Acquisitions, Transformation and Regeneration",20136,Regeneration,D2622,Mobile Phones,10.00,O2 (UK) Ltd,Mobile Phones,2000089,201801,
Rother District Council,13/03/2018,081ACQUISIT,"Acquisitions, Transformation and Regeneration",20144,Property Management,D2622,Mobile Phones,10.00,O2 (UK) Ltd,Mobile Phones,2000070,201801,
Rother District Council,13/03/2018,081ACQUISIT,"Acquisitions, Transformation and Regeneration",20101,Cultural Development,D2622,Mobile Phones,10.00,O2 (UK) Ltd,Mobile Phones,2000080,201801,
Rother District Council,13/03/2018,081ACQUISIT,"Acquisitions, Transformation and Regeneration",20118,Tourism,D2622,Mobile Phones,10.00,O2 (UK) Ltd,Mobile Phones,2000089,201801,
Rother District Council,13/03/2018,081ACQUISIT,"Acquisitions, Transformation and Regeneration",20118,Tourism,D2622,Mobile Phones,10.00,O2 (UK) Ltd,Mobile Phones,2000080,201801,
Rother District Council,13/03/2018,071STRAT,Strategy and Planning,20248,"Complaints,Compliance,Enforce",D2622,Mobile Phones,11.92,O2 (UK) Ltd,Mobile Phones,2000072,201801,
Rother District Council,13/03/2018,071STRAT,Strategy and Planning,20248,"Complaints,Compliance,Enforce",D2622,Mobile Phones,10.00,O2 (UK) Ltd,Mobile Phones,2000072,201801,
Rother District Council,13/03/2018,071STRAT,Strategy and Planning,20248,"Complaints,Compliance,Enforce",D2622,Mobile Phones,10.00,O2 (UK) Ltd,Mobile Phones,2000072,201801,
Rother District Council,13/03/2018,071STRAT,Strategy and Planning,20248,"Complaints,Compliance,Enforce",D2622,Mobile Phones,10.00,O2 (UK) Ltd,Mobile Phones,2000072,201801,
Rother District Council,13/03/2018,031RESOURCES,Executive Directors & Corporate Core,32132,Joint Waste Contract Client Unit,D2622,Mobile Phones,10.00,O2 (UK) Ltd,Mobile Phones,2000073,201801,
Rother District Council,13/03/2018,031RESOURCES,Executive Directors & Corporate Core,32132,Joint Waste Contract Client Unit,D2622,Mobile Phones,10.00,O2 (UK) Ltd,Mobile Phones,2000073,201801,
Rother District Council,13/03/2018,031RESOURCES,Executive Directors & Corporate Core,32132,Joint Waste Contract Client Unit,D2622,Mobile Phones,10.00,O2 (UK) Ltd,Mobile Phones,2000073,201801,
Rother District Council,13/03/2018,061ICT,ICT and Customer Services,20238,Service Manager ICT & Customer Services,D2622,Mobile Phones,10.00,O2 (UK) Ltd,Mobile Phones,2000074,201801,
Rother District Council,13/03/2018,071STRAT,Strategy and Planning,20244,General Planning Expenses,D2622,Mobile Phones,10.00,O2 (UK) Ltd,Mobile Phones,2000072,201801,
Rother District Council,13/03/2018,071STRAT,Strategy and Planning,20244,General Planning Expenses,D2622,Mobile Phones,10.00,O2 (UK) Ltd,Mobile Phones,2000072,201801,
Rother District Council,13/03/2018,031RESOURCES,Executive Directors & Corporate Core,20179,Communications,D2622,Mobile Phones,10.00,O2 (UK) Ltd,Mobile Phones,2000087,201801,
Rother District Council,13/03/2018,041ENVIRON,Environmental Services,32144,EH Environmental Services Admin R + W Partnership,D2622,Mobile Phones,10.00,O2 (UK) Ltd,Mobile Phones,2000085,201801,
Rother District Council,13/03/2018,041ENVIRON,Environmental Services,32144,EH Environmental Services Admin R + W Partnership,D2622,Mobile Phones,10.00,O2 (UK) Ltd,Mobile Phones,2000085,201801,
Rother District Council,13/03/2018,041ENVIRON,Environmental Services,32144,EH Environmental Services Admin R + W Partnership,D2622,Mobile Phones,10.00,O2 (UK) Ltd,Mobile Phones,2000085,201801,
Rother District Council,13/03/2018,041ENVIRON,Environmental Services,32144,EH Environmental Services Admin R + W Partnership,D2622,Mobile Phones,22.42,O2 (UK) Ltd,Mobile Phones,2000085,201801,
Rother District Council,13/03/2018,041ENVIRON,Environmental Services,32144,EH Environmental Services Admin R + W Partnership,D2622,Mobile Phones,10.00,O2 (UK) Ltd,Mobile Phones,2000085,201801,
Rother District Council,13/03/2018,041ENVIRON,Environmental Services,32144,EH Environmental Services Admin R + W Partnership,D2622,Mobile Phones,10.00,O2 (UK) Ltd,Mobile Phones,2000085,201801,
Rother District Council,13/03/2018,041ENVIRON,Environmental Services,32144,EH Environmental Services Admin R + W Partnership,D2622,Mobile Phones,10.00,O2 (UK) Ltd,Mobile Phones,2000085,201801,
Rother District Council,13/03/2018,041ENVIRON,Environmental Services,32144,EH Environmental Services Admin R + W Partnership,D2622,Mobile Phones,10.00,O2 (UK) Ltd,Mobile Phones,2000085,201801,
Rother District Council,13/03/2018,041ENVIRON,Environmental Services,32144,EH Environmental Services Admin R + W Partnership,D2622,Mobile Phones,10.00,O2 (UK) Ltd,Mobile Phones,2000085,201801,
Rother District Council,13/03/2018,041ENVIRON,Environmental Services,32144,EH Environmental Services Admin R + W Partnership,D2622,Mobile Phones,10.00,O2 (UK) Ltd,Mobile Phones,2000085,201801,
Rother District Council,13/03/2018,041ENVIRON,Environmental Services,32144,EH Environmental Services Admin R + W Partnership,D2622,Mobile Phones,10.00,O2 (UK) Ltd,Mobile Phones,2000085,201801,
Rother District Council,13/03/2018,041ENVIRON,Environmental Services,32144,EH Environmental Services Admin R + W Partnership,D2622,Mobile Phones,10.00,O2 (UK) Ltd,Mobile Phones,2000085,201801,
Rother District Council,13/03/2018,041ENVIRON,Environmental Services,32144,EH Environmental Services Admin R + W Partnership,D2622,Mobile Phones,10.00,O2 (UK) Ltd,Mobile Phones,2000085,201801,
Rother District Council,13/03/2018,041ENVIRON,Environmental Services,32144,EH Environmental Services Admin R + W Partnership,D2622,Mobile Phones,10.00,O2 (UK) Ltd,Mobile Phones,2000085,201801,
Rother District Council,13/03/2018,041ENVIRON,Environmental Services,32144,EH Environmental Services Admin R + W Partnership,D2622,Mobile Phones,10.00,O2 (UK) Ltd,Mobile Phones,2000085,201801,
Rother District Council,13/03/2018,041ENVIRON,Environmental Services,32144,EH Environmental Services Admin R + W Partnership,D2622,Mobile Phones,10.00,O2 (UK) Ltd,Mobile Phones,2000085,201801,
Rother District Council,13/03/2018,041ENVIRON,Environmental Services,32144,EH Environmental Services Admin R + W Partnership,D2622,Mobile Phones,10.00,O2 (UK) Ltd,Mobile Phones,2000085,201801,
Rother District Council,13/03/2018,041ENVIRON,Environmental Services,32144,EH Environmental Services Admin R + W Partnership,D2622,Mobile Phones,10.00,O2 (UK) Ltd,Mobile Phones,2000085,201801,
Rother District Council,13/03/2018,041ENVIRON,Environmental Services,32144,EH Environmental Services Admin R + W Partnership,D2622,Mobile Phones,10.00,O2 (UK) Ltd,Mobile Phones,2000085,201801,
Rother District Council,13/03/2018,041ENVIRON,Environmental Services,32144,EH Environmental Services Admin R + W Partnership,D2622,Mobile Phones,10.00,O2 (UK) Ltd,Mobile Phones,2000085,201801,
Rother District Council,13/03/2018,041ENVIRON,Environmental Services,32144,EH Environmental Services Admin R + W Partnership,D2622,Mobile Phones,10.00,O2 (UK) Ltd,Mobile Phones,2000085,201801,
Rother District Council,13/03/2018,041ENVIRON,Environmental Services,32144,EH Environmental Services Admin R + W Partnership,D2622,Mobile Phones,10.00,O2 (UK) Ltd,Mobile Phones,2000085,201801,
Rother District Council,13/03/2018,041ENVIRON,Environmental Services,32144,EH Environmental Services Admin R + W Partnership,D2622,Mobile Phones,10.00,O2 (UK) Ltd,Mobile Phones,2000085,201801,
Rother District Council,13/03/2018,041ENVIRON,Environmental Services,32144,EH Environmental Services Admin R + W Partnership,D2622,Mobile Phones,10.00,O2 (UK) Ltd,Mobile Phones,2000085,201801,
Rother District Council,13/03/2018,041ENVIRON,Environmental Services,32144,EH Environmental Services Admin R + W Partnership,D2622,Mobile Phones,10.00,O2 (UK) Ltd,Mobile Phones,2000085,201801,
Rother District Council,13/03/2018,041ENVIRON,Environmental Services,32144,EH Environmental Services Admin R + W Partnership,D2622,Mobile Phones,10.00,O2 (UK) Ltd,Mobile Phones,2000085,201801,
Rother District Council,13/03/2018,041ENVIRON,Environmental Services,32144,EH Environmental Services Admin R + W Partnership,D2622,Mobile Phones,10.00,O2 (UK) Ltd,Mobile Phones,2000085,201801,
Rother District Council,13/03/2018,041ENVIRON,Environmental Services,32144,EH Environmental Services Admin R + W Partnership,D2622,Mobile Phones,10.00,O2 (UK) Ltd,Mobile Phones,2000085,201801,
Rother District Council,13/03/2018,041ENVIRON,Environmental Services,32144,EH Environmental Services Admin R + W Partnership,D2622,Mobile Phones,10.00,O2 (UK) Ltd,Mobile Phones,2000085,201801,
Rother District Council,13/03/2018,041ENVIRON,Environmental Services,20130,Crime and Disorder Initiatives,D2622,Mobile Phones,10.00,O2 (UK) Ltd,Mobile Phones,2000085,201801,
Rother District Council,13/03/2018,041ENVIRON,Environmental Services,20130,Crime and Disorder Initiatives,D2622,Mobile Phones,10.00,O2 (UK) Ltd,Mobile Phones,2000085,201801,
Rother District Council,13/03/2018,041ENVIRON,Environmental Services,20141,Private Sector Housing,D2622,Mobile Phones,10.00,O2 (UK) Ltd,Mobile Phones,2000089,201801,
Rother District Council,13/03/2018,041ENVIRON,Environmental Services,20141,Private Sector Housing,D2622,Mobile Phones,10.00,O2 (UK) Ltd,Mobile Phones,2000089,201801,
Rother District Council,13/03/2018,031RESOURCES,Executive Directors & Corporate Core,20185,Joint Waste procurement,D2622,Mobile Phones,10.00,O2 (UK) Ltd,Mobile Phones,2000073,201801,
Rother District Council,13/03/2018,031RESOURCES,Executive Directors & Corporate Core,20180,Emergency Planning,D2622,Mobile Phones,10.00,O2 (UK) Ltd,Mobile Phones,2000071,201801,
Rother District Council,13/03/2018,031RESOURCES,Executive Directors & Corporate Core,20180,Emergency Planning,D2622,Mobile Phones,4.50,O2 (UK) Ltd,Mobile Phones,2000071,201801,
Rother District Council,13/03/2018,031RESOURCES,Executive Directors & Corporate Core,20180,Emergency Planning,D2622,Mobile Phones,10.00,O2 (UK) Ltd,Mobile Phones,2000087,201801,
Rother District Council,13/03/2018,031RESOURCES,Executive Directors & Corporate Core,20183,Executive Directors,D2622,Mobile Phones,10.10,O2 (UK) Ltd,Mobile Phones,2000069,201801,
Rother District Council,13/03/2018,031RESOURCES,Executive Directors & Corporate Core,20183,Executive Directors,D2622,Mobile Phones,10.00,O2 (UK) Ltd,Mobile Phones,2000069,201801,
Rother District Council,13/03/2018,031RESOURCES,Executive Directors & Corporate Core,20162,Electoral Registration,D2622,Mobile Phones,10.00,O2 (UK) Ltd,Mobile Phones,2000076,201801,
Rother District Council,13/03/2018,031RESOURCES,Executive Directors & Corporate Core,20171,Human Resources,D2622,Mobile Phones,10.00,O2 (UK) Ltd,Mobile Phones,2000076,201801,
Rother District Council,13/03/2018,091HOUSING,Housing and Community Services,20200,Housing Needs - HB (Housing Benefit),D2622,Mobile Phones,10.00,O2 (UK) Ltd,Mobile Phones,2000075,201801,
Rother District Council,13/03/2018,091HOUSING,Housing and Community Services,20201,Homelessness and Prevention,D2622,Mobile Phones,10.00,O2 (UK) Ltd,Mobile Phones,2000075,201801,
Rother District Council,13/03/2018,091HOUSING,Housing and Community Services,20201,Homelessness and Prevention,D2622,Mobile Phones,10.00,O2 (UK) Ltd,Mobile Phones,2000075,201801,
Rother District Council,13/03/2018,091HOUSING,Housing and Community Services,20201,Homelessness and Prevention,D2622,Mobile Phones,10.00,O2 (UK) Ltd,Mobile Phones,2000075,201801,
Rother District Council,14/03/2018,041ENVIRON,Environmental Services,32134,EH Pollution R + W Partnership,D1201,Equipment & Materials,39.49,Viking Direct Ltd,Equipment & Materials EnvH- Pollution Equipment,2000565,201801,
Rother District Council,14/03/2018,091HOUSING,Housing and Community Services,20114,Bexhill Parks & Open Spaces,B1100,Repairs to Premises,67.50,Alfa Electric Ltd,Repairs to Premises Parks- Electrical Works,2000788,201801,
Rother District Council,14/03/2018,031RESOURCES,Executive Directors & Corporate Core,20173,Administrative Offices - Town Hall,B1100,Repairs to Premises,198.17,Alfa Electric Ltd,Repairs to Premises Repairs - Electrical Works,2000624,201801,
Rother District Council,14/03/2018,091HOUSING,Housing and Community Services,20128,Public Conveniences,B2422,Sewerage,"1,316.89",Scottish Water Business Stream Limited,Sewage Charges,2000088,201801,
Rother District Council,14/03/2018,091HOUSING,Housing and Community Services,20128,Public Conveniences,B2421,Water,803.93,Scottish Water Business Stream Limited,Water Charges,2000088,201801,
Rother District Council,14/03/2018,091HOUSING,Housing and Community Services,20128,Public Conveniences,B1100,Repairs to Premises,178.34,Alfa Electric Ltd,Repairs to Premises,2000005,201801,
Rother District Council,14/03/2018,091HOUSING,Housing and Community Services,20200,Housing Needs - HB (Housing Benefit),A2203,Training,67.00,East Cambridgeshire District Council,Training,2001526,201802,
Rother District Council,15/03/2018,091HOUSING,Housing and Community Services,20123,Cemeteries,D2513,Hired and Contracted services,400.00,Bexhill Funeral Service,Hired and contracted services Parks- Public Health Burials,2000264,201801,
Rother District Council,15/03/2018,091HOUSING,Housing and Community Services,20123,Cemeteries,D2513,Hired and Contracted services,560.00,Bexhill Funeral Service,Hired and contracted services Parks- Public Health Burials,2000265,201801,
Rother District Council,15/03/2018,101RESOURCES,Resources,20216,Cost Of Collection,D2513,Hired and Contracted services,590.00,Inform CPI Ltd,Hired and contracted services RV Finder,2000109,201801,
Rother District Council,15/03/2018,091HOUSING,Housing and Community Services,20208,Care In The Community,D2513,Hired and Contracted services,197.00,Safe Partnership Ltd,Hired and contracted services Sanctuary DV Assistance Revenue,2000406,201801,
Rother District Council,15/03/2018,091HOUSING,Housing and Community Services,20200,Housing Needs - HB (Housing Benefit),D2514,Accommodation Costs,575.00,Reeds Rains Estate Agents,Homelessness services Deposit for Landlords,2000402,201801,
Rother District Council,15/03/2018,091HOUSING,Housing and Community Services,20200,Housing Needs - HB (Housing Benefit),D2514,Accommodation Costs,575.00,Reeds Rains Estate Agents,Homelessness services Rent in Advance for Homeless,2000402,201801,
Rother District Council,15/03/2018,041ENVIRON,Environmental Services,20141,Private Sector Housing,D2923,Grants made,"138,412.00",East Sussex County Council,Grants made,2000020,201801,
Rother District Council,15/03/2018,091HOUSING,Housing and Community Services,20145,Maintenance Services,C1104,Derv,1.90,Allstar Business Solutions,Derv Fuel Service fee payable on fuel cards,2001463,201802,
Rother District Council,15/03/2018,091HOUSING,Housing and Community Services,20145,Maintenance Services,C1104,Derv,6.00,Allstar Business Solutions,Derv Fuel Service fee payable on fuel cards,2001463,201802,
Rother District Council,15/03/2018,091HOUSING,Housing and Community Services,20145,Maintenance Services,C1104,Derv,83.33,Allstar Business Solutions,Fuel cards,2001463,201802,
Rother District Council,15/03/2018,091HOUSING,Housing and Community Services,20145,Maintenance Services,C1104,Derv,29.38,Allstar Business Solutions,Fuel cards,2001463,201802,
Rother District Council,15/03/2018,091HOUSING,Housing and Community Services,20145,Maintenance Services,C1104,Derv,16.67,Allstar Business Solutions,Fuel cards,2001463,201802,
Rother District Council,15/03/2018,091HOUSING,Housing and Community Services,20145,Maintenance Services,C1104,Derv,68.35,Allstar Business Solutions,Fuel cards,2001463,201802,
Rother District Council,15/03/2018,091HOUSING,Housing and Community Services,20145,Maintenance Services,C1104,Derv,68.33,Allstar Business Solutions,Fuel cards,2001463,201802,
Rother District Council,16/03/2018,091HOUSING,Housing and Community Services,20108,Bexhill Promenade & Foreshore,D1201,Equipment & Materials,182.64,Norfloat International Ltd,Equipment & Materials Marker Buoys and Signs,2000058,201801,
Rother District Council,16/03/2018,091HOUSING,Housing and Community Services,20145,Maintenance Services,D1201,Equipment & Materials,18.42,Parker Building Supplies Ltd,Equipment & Materials Purchase of Tools,2000571,201801,
Rother District Council,16/03/2018,091HOUSING,Housing and Community Services,20137,Car Parks,D1201,Equipment & Materials,90.00,Cale UK Ltd,Equipment & Materials Ticket Machine Maintenance/ Repairs,2000056,201801,
Rother District Council,16/03/2018,041ENVIRON,Environmental Services,20126,Sub Standard Housing,D2513,Hired and Contracted services,18.00,H M Land Registry,Hired and contracted services Council Tax-Land Registry Enquiries,2000068,201801,
Rother District Council,16/03/2018,071STRAT,Strategy and Planning,20246,Planning Applications,D2513,Hired and Contracted services,9.00,H M Land Registry,Hired and contracted services Land Registry - Planning,2000068,201801,
Rother District Council,16/03/2018,031RESOURCES,Executive Directors & Corporate Core,20173,Administrative Offices - Town Hall,B1100,Repairs to Premises,25.39,Graham,Repairs to Premises Purchase of Materials - Build Maint,2000381,201801,
Rother District Council,16/03/2018,081ACQUISIT,"Acquisitions, Transformation and Regeneration",20154,Committee Property Account,B1100,Repairs to Premises,450.00,MC Glass (East Sussex) Ltd,Repairs to Premises Specified Repairs and Works listed,2000116,201801,
Rother District Council,16/03/2018,091HOUSING,Housing and Community Services,20137,Car Parks,B2422,Sewerage,38.94,Scottish Water Business Stream Limited,Sewage Charges,2000306,201801,
Rother District Council,16/03/2018,091HOUSING,Housing and Community Services,20137,Car Parks,B2422,Sewerage,38.94,Scottish Water Business Stream Limited,Sewage Charges,2000307,201801,
Rother District Council,16/03/2018,091HOUSING,Housing and Community Services,20107,Camber Beach & Foreshore,B2422,Sewerage,323.52,Scottish Water Business Stream Limited,Sewage Charges,2000386,201801,
Rother District Council,16/03/2018,091HOUSING,Housing and Community Services,20137,Car Parks,B2422,Sewerage,38.94,Scottish Water Business Stream Limited,Sewerage,2000308,201801,
Rother District Council,16/03/2018,091HOUSING,Housing and Community Services,20200,Housing Needs - HB (Housing Benefit),D2514,Accommodation Costs,240.00,MB Hotels Ltd,Accommodation Costs,2000215,201801,
Rother District Council,16/03/2018,091HOUSING,Housing and Community Services,20200,Housing Needs - HB (Housing Benefit),D2514,Accommodation Costs,280.00,MB Hotels Ltd,Accommodation Costs,2000217,201801,
Rother District Council,16/03/2018,091HOUSING,Housing and Community Services,20200,Housing Needs - HB (Housing Benefit),D2514,Accommodation Costs,240.00,MB Hotels Ltd,Accommodation Costs,2000218,201801,
Rother District Council,16/03/2018,091HOUSING,Housing and Community Services,20200,Housing Needs - HB (Housing Benefit),D2514,Accommodation Costs,280.00,MB Hotels Ltd,Accommodation Costs,2000214,201801,
Rother District Council,16/03/2018,091HOUSING,Housing and Community Services,20200,Housing Needs - HB (Housing Benefit),D2514,Accommodation Costs,392.00,MB Hotels Ltd,Accommodation Costs,2000220,201801,
Rother District Council,16/03/2018,091HOUSING,Housing and Community Services,20200,Housing Needs - HB (Housing Benefit),D2514,Accommodation Costs,300.00,MB Hotels Ltd,Accommodation Costs,2000221,201801,
Rother District Council,16/03/2018,091HOUSING,Housing and Community Services,20200,Housing Needs - HB (Housing Benefit),D2514,Accommodation Costs,392.00,MB Hotels Ltd,Accommodation Costs,2000461,201801,
Rother District Council,16/03/2018,091HOUSING,Housing and Community Services,20203,Housing Needs - Universal Credit,D2514,Accommodation Costs,240.00,MB Hotels Ltd,Accommodation Costs,2000216,201801,
Rother District Council,16/03/2018,091HOUSING,Housing and Community Services,20203,Housing Needs - Universal Credit,D2514,Accommodation Costs,336.00,MB Hotels Ltd,Accommodation Costs,2000219,201801,
Rother District Council,17/03/2018,041ENVIRON,Environmental Services,32141,EH Alcohol Licensing R + W Partnership,D2922,Subscriptions,490.00,CIEH-Chartered Institute of Environmental Health,Subscriptions Instit of Licensing Corp Membership,2000594,201801,
Rother District Council,17/03/2018,091HOUSING,Housing and Community Services,20200,Housing Needs - HB (Housing Benefit),D2514,Accommodation Costs,725.00,Specialist Care UK Group Ltd,Accommodation Costs,2000254,201801,
Rother District Council,17/03/2018,091HOUSING,Housing and Community Services,20203,Housing Needs - Universal Credit,D2514,Accommodation Costs,262.50,Specialist Care UK Group Ltd,Accommodation Costs,2000251,201801,
Rother District Council,17/03/2018,091HOUSING,Housing and Community Services,20203,Housing Needs - Universal Credit,D2514,Accommodation Costs,262.50,Specialist Care UK Group Ltd,Accommodation Costs,2000242,201801,
Rother District Council,17/03/2018,091HOUSING,Housing and Community Services,20203,Housing Needs - Universal Credit,D2514,Accommodation Costs,175.00,Specialist Care UK Group Ltd,Accommodation Costs,2000243,201801,
Rother District Council,17/03/2018,091HOUSING,Housing and Community Services,20203,Housing Needs - Universal Credit,D2514,Accommodation Costs,300.00,Specialist Care UK Group Ltd,Accommodation Costs,2000244,201801,
Rother District Council,17/03/2018,091HOUSING,Housing and Community Services,20203,Housing Needs - Universal Credit,D2514,Accommodation Costs,262.50,Specialist Care UK Group Ltd,Accommodation Costs,2000245,201801,
Rother District Council,17/03/2018,091HOUSING,Housing and Community Services,20203,Housing Needs - Universal Credit,D2514,Accommodation Costs,350.00,Specialist Care UK Group Ltd,Accommodation Costs,2000246,201801,
Rother District Council,17/03/2018,091HOUSING,Housing and Community Services,20203,Housing Needs - Universal Credit,D2514,Accommodation Costs,375.00,Specialist Care UK Group Ltd,Accommodation Costs,2000252,201801,
Rother District Council,17/03/2018,091HOUSING,Housing and Community Services,20203,Housing Needs - Universal Credit,D2514,Accommodation Costs,150.00,Specialist Care UK Group Ltd,Accommodation Costs,2000253,201801,
Rother District Council,17/03/2018,091HOUSING,Housing and Community Services,20203,Housing Needs - Universal Credit,D2514,Accommodation Costs,200.00,Specialist Care UK Group Ltd,Accommodation Costs,2000247,201801,
Rother District Council,17/03/2018,091HOUSING,Housing and Community Services,20203,Housing Needs - Universal Credit,D2514,Accommodation Costs,175.00,Specialist Care UK Group Ltd,Accommodation Costs,2000248,201801,
Rother District Council,17/03/2018,091HOUSING,Housing and Community Services,20203,Housing Needs - Universal Credit,D2514,Accommodation Costs,262.50,Specialist Care UK Group Ltd,Accommodation Costs,2000249,201801,
Rother District Council,17/03/2018,091HOUSING,Housing and Community Services,20203,Housing Needs - Universal Credit,D2514,Accommodation Costs,150.00,Specialist Care UK Group Ltd,Accommodation Costs,2000250,201801,
Rother District Council,18/03/2018,071STRAT,Strategy and Planning,20246,Planning Applications,D2519,Statutory Advertising,278.10,Local World Ltd,Statutory Advertising Planadv- Kent + East Sussex Courier,2000275,201801,
Rother District Council,18/03/2018,999NOREPORT,Housing and Community Services,70714,Capital - Grants Halls and Community Projects,N1011,Capital Grants,"1,000.00",Beckley Horticultural Society,Capital Grants Community Grants Scheme,2001613,201802,Yes,,
Rother District Council,19/03/2018,091HOUSING,Housing and Community Services,20145,Maintenance Services,D1201,Equipment & Materials,69.27,Jewson Limited,Equipment & Materials Purchase of Tools,2000560,201801,
Rother District Council,19/03/2018,091HOUSING,Housing and Community Services,20145,Maintenance Services,D1201,Equipment & Materials,17.92,Jewson Limited,Equipment & Materials Purchase of Tools,2000564,201801,
Rother District Council,19/03/2018,031RESOURCES,Executive Directors & Corporate Core,20156,Representing Local Interest,D2732,Members Conference Expenses,132.20,REDACTED PERSONAL DATA,Members Conference Expenses Members Conference Travel,2000378,201801,
Rother District Council,19/03/2018,091HOUSING,Housing and Community Services,20137,Car Parks,B1100,Repairs to Premises,700.00,B and G Environmental Services Limited,Repairs to Premises,2000300,201801,
Rother District Council,19/03/2018,091HOUSING,Housing and Community Services,20200,Housing Needs - HB (Housing Benefit),D2514,Accommodation Costs,84.00,Solutions Accommodation Providers Ltd,Accommodation Costs,2000155,201801,
Rother District Council,19/03/2018,091HOUSING,Housing and Community Services,20200,Housing Needs - HB (Housing Benefit),D2514,Accommodation Costs,336.00,Solutions Accommodation Providers Ltd,Accommodation Costs,2000155,201801,
Rother District Council,19/03/2018,091HOUSING,Housing and Community Services,20200,Housing Needs - HB (Housing Benefit),D2514,Accommodation Costs,42.00,Saffron HMO Ltd,Accommodation Costs,2000198,201801,
Rother District Council,19/03/2018,091HOUSING,Housing and Community Services,20200,Housing Needs - HB (Housing Benefit),D2514,Accommodation Costs,168.00,Saffron HMO Ltd,Accommodation Costs,2000198,201801,
Rother District Council,19/03/2018,091HOUSING,Housing and Community Services,20200,Housing Needs - HB (Housing Benefit),D2514,Accommodation Costs,40.00,Saffron HMO Ltd,Accommodation Costs,2000199,201801,
Rother District Council,19/03/2018,091HOUSING,Housing and Community Services,20200,Housing Needs - HB (Housing Benefit),D2514,Accommodation Costs,10.00,Saffron HMO Ltd,Accommodation Costs,2000199,201801,
Rother District Council,19/03/2018,091HOUSING,Housing and Community Services,20200,Housing Needs - HB (Housing Benefit),D2514,Accommodation Costs,280.00,Saffron HMO Ltd,Accommodation Costs,2000191,201801,
Rother District Council,19/03/2018,091HOUSING,Housing and Community Services,20200,Housing Needs - HB (Housing Benefit),D2514,Accommodation Costs,70.00,Saffron HMO Ltd,Accommodation Costs,2000191,201801,
Rother District Council,19/03/2018,091HOUSING,Housing and Community Services,20200,Housing Needs - HB (Housing Benefit),D2514,Accommodation Costs,33.60,Saffron HMO Ltd,Accommodation Costs,2000193,201801,
Rother District Council,19/03/2018,091HOUSING,Housing and Community Services,20200,Housing Needs - HB (Housing Benefit),D2514,Accommodation Costs,134.40,Saffron HMO Ltd,Accommodation Costs,2000193,201801,
Rother District Council,19/03/2018,091HOUSING,Housing and Community Services,20200,Housing Needs - HB (Housing Benefit),D2514,Accommodation Costs,392.00,Solutions Accommodation Providers Ltd,Accommodation Costs,2000146,201801,
Rother District Council,19/03/2018,091HOUSING,Housing and Community Services,20200,Housing Needs - HB (Housing Benefit),D2514,Accommodation Costs,98.00,Solutions Accommodation Providers Ltd,Accommodation Costs,2000146,201801,
Rother District Council,19/03/2018,091HOUSING,Housing and Community Services,20200,Housing Needs - HB (Housing Benefit),D2514,Accommodation Costs,84.00,Solutions Accommodation Providers Ltd,Accommodation Costs,2000147,201801,
Rother District Council,19/03/2018,091HOUSING,Housing and Community Services,20200,Housing Needs - HB (Housing Benefit),D2514,Accommodation Costs,336.00,Solutions Accommodation Providers Ltd,Accommodation Costs,2000147,201801,
Rother District Council,19/03/2018,091HOUSING,Housing and Community Services,20203,Housing Needs - Universal Credit,D2514,Accommodation Costs,336.00,Solutions Accommodation Providers Ltd,Accommodation Costs,2000145,201801,
Rother District Council,19/03/2018,091HOUSING,Housing and Community Services,20203,Housing Needs - Universal Credit,D2514,Accommodation Costs,84.00,Solutions Accommodation Providers Ltd,Accommodation Costs,2000151,201801,
Rother District Council,19/03/2018,091HOUSING,Housing and Community Services,20203,Housing Needs - Universal Credit,D2514,Accommodation Costs,336.00,Solutions Accommodation Providers Ltd,Accommodation Costs,2000151,201801,
Rother District Council,19/03/2018,091HOUSING,Housing and Community Services,20203,Housing Needs - Universal Credit,D2514,Accommodation Costs,15.00,Solutions Accommodation Providers Ltd,Accommodation Costs,2000143,201801,
Rother District Council,19/03/2018,091HOUSING,Housing and Community Services,20203,Housing Needs - Universal Credit,D2514,Accommodation Costs,60.00,Solutions Accommodation Providers Ltd,Accommodation Costs,2000143,201801,
Rother District Council,19/03/2018,091HOUSING,Housing and Community Services,20203,Housing Needs - Universal Credit,D2514,Accommodation Costs,24.00,Saffron HMO Ltd,Accommodation Costs,2000200,201801,
Rother District Council,19/03/2018,091HOUSING,Housing and Community Services,20203,Housing Needs - Universal Credit,D2514,Accommodation Costs,28.80,Saffron HMO Ltd,Accommodation Costs,2000200,201801,
Rother District Council,19/03/2018,091HOUSING,Housing and Community Services,20203,Housing Needs - Universal Credit,D2514,Accommodation Costs,115.20,Saffron HMO Ltd,Accommodation Costs,2000200,201801,
Rother District Council,19/03/2018,091HOUSING,Housing and Community Services,20203,Housing Needs - Universal Credit,D2514,Accommodation Costs,308.00,Solutions Accommodation Providers Ltd,Accommodation Costs,2000154,201801,
Rother District Council,19/03/2018,091HOUSING,Housing and Community Services,20203,Housing Needs - Universal Credit,D2514,Accommodation Costs,77.00,Solutions Accommodation Providers Ltd,Accommodation Costs,2000154,201801,
Rother District Council,19/03/2018,091HOUSING,Housing and Community Services,20203,Housing Needs - Universal Credit,D2514,Accommodation Costs,144.00,Saffron HMO Ltd,Accommodation Costs,2000194,201801,
Rother District Council,19/03/2018,091HOUSING,Housing and Community Services,20203,Housing Needs - Universal Credit,D2514,Accommodation Costs,36.00,Saffron HMO Ltd,Accommodation Costs,2000194,201801,
Rother District Council,19/03/2018,091HOUSING,Housing and Community Services,20203,Housing Needs - Universal Credit,D2514,Accommodation Costs,120.00,Saffron HMO Ltd,Accommodation Costs,2000194,201801,
Rother District Council,19/03/2018,091HOUSING,Housing and Community Services,20203,Housing Needs - Universal Credit,D2514,Accommodation Costs,30.00,Saffron HMO Ltd,Accommodation Costs,2000194,201801,
Rother District Council,19/03/2018,091HOUSING,Housing and Community Services,20203,Housing Needs - Universal Credit,D2514,Accommodation Costs,77.00,Saffron HMO Ltd,Accommodation Costs,2000195,201801,
Rother District Council,19/03/2018,091HOUSING,Housing and Community Services,20203,Housing Needs - Universal Credit,D2514,Accommodation Costs,308.00,Saffron HMO Ltd,Accommodation Costs,2000195,201801,
Rother District Council,19/03/2018,091HOUSING,Housing and Community Services,20203,Housing Needs - Universal Credit,D2514,Accommodation Costs,90.00,Saffron HMO Ltd,Accommodation Costs,2000196,201801,
Rother District Council,19/03/2018,091HOUSING,Housing and Community Services,20203,Housing Needs - Universal Credit,D2514,Accommodation Costs,19.20,Saffron HMO Ltd,Accommodation Costs,2000202,201801,
Rother District Council,19/03/2018,091HOUSING,Housing and Community Services,20203,Housing Needs - Universal Credit,D2514,Accommodation Costs,76.80,Saffron HMO Ltd,Accommodation Costs,2000202,201801,
Rother District Council,19/03/2018,091HOUSING,Housing and Community Services,20203,Housing Needs - Universal Credit,D2514,Accommodation Costs,100.00,Saffron HMO Ltd,Accommodation Costs,2000197,201801,
Rother District Council,19/03/2018,091HOUSING,Housing and Community Services,20203,Housing Needs - Universal Credit,D2514,Accommodation Costs,134.40,Saffron HMO Ltd,Accommodation Costs,2000190,201801,
Rother District Council,19/03/2018,091HOUSING,Housing and Community Services,20203,Housing Needs - Universal Credit,D2514,Accommodation Costs,150.00,Saffron HMO Ltd,Accommodation Costs,2000201,201801,
Rother District Council,19/03/2018,091HOUSING,Housing and Community Services,20203,Housing Needs - Universal Credit,D2514,Accommodation Costs,336.00,Solutions Accommodation Providers Ltd,Accommodation Costs,2000148,201801,
Rother District Council,19/03/2018,091HOUSING,Housing and Community Services,20203,Housing Needs - Universal Credit,D2514,Accommodation Costs,84.00,Solutions Accommodation Providers Ltd,Accommodation Costs,2000148,201801,
Rother District Council,19/03/2018,091HOUSING,Housing and Community Services,20203,Housing Needs - Universal Credit,D2514,Accommodation Costs,84.00,Solutions Accommodation Providers Ltd,Accommodation Costs,2000149,201801,
Rother District Council,19/03/2018,091HOUSING,Housing and Community Services,20203,Housing Needs - Universal Credit,D2514,Accommodation Costs,33.60,Saffron HMO Ltd,Accommodation Costs,2000192,201801,
Rother District Council,19/03/2018,091HOUSING,Housing and Community Services,20203,Housing Needs - Universal Credit,D2514,Accommodation Costs,134.40,Saffron HMO Ltd,Accommodation Costs,2000192,201801,
Rother District Council,19/03/2018,091HOUSING,Housing and Community Services,20203,Housing Needs - Universal Credit,D2514,Accommodation Costs,33.60,Saffron HMO Ltd,Accommodation Costs,2000190,201801,
Rother District Council,19/03/2018,091HOUSING,Housing and Community Services,20203,Housing Needs - Universal Credit,D2514,Accommodation Costs,224.00,Solutions Accommodation Providers Ltd,Accommodation Costs,2000152,201801,
Rother District Council,19/03/2018,091HOUSING,Housing and Community Services,20203,Housing Needs - Universal Credit,D2514,Accommodation Costs,56.00,Solutions Accommodation Providers Ltd,Accommodation Costs,2000152,201801,
Rother District Council,19/03/2018,091HOUSING,Housing and Community Services,20203,Housing Needs - Universal Credit,D2514,Accommodation Costs,70.00,Solutions Accommodation Providers Ltd,Accommodation Costs,2000153,201801,
Rother District Council,19/03/2018,091HOUSING,Housing and Community Services,20203,Housing Needs - Universal Credit,D2514,Accommodation Costs,280.00,Solutions Accommodation Providers Ltd,Accommodation Costs,2000153,201801,
Rother District Council,19/03/2018,091HOUSING,Housing and Community Services,20203,Housing Needs - Universal Credit,D2514,Accommodation Costs,336.00,Solutions Accommodation Providers Ltd,Accommodation Costs,2000149,201801,
Rother District Council,19/03/2018,091HOUSING,Housing and Community Services,20203,Housing Needs - Universal Credit,D2514,Accommodation Costs,150.00,Solutions Accommodation Providers Ltd,Accommodation Costs,2000144,201801,
Rother District Council,19/03/2018,091HOUSING,Housing and Community Services,20203,Housing Needs - Universal Credit,D2514,Accommodation Costs,84.00,Solutions Accommodation Providers Ltd,Accommodation Costs,2000145,201801,
Rother District Council,19/03/2018,091HOUSING,Housing and Community Services,20203,Housing Needs - Universal Credit,D2514,Accommodation Costs,420.00,Solutions Accommodation Providers Ltd,Accommodation Costs,2000150,201801,
Rother District Council,19/03/2018,071STRAT,Strategy and Planning,20259,Land Charges,I3434,Fees & Charges,"11,728.60",East Sussex County Council,Fees & Charges,2001025,201802,
Rother District Council,20/03/2018,091HOUSING,Housing and Community Services,20108,Bexhill Promenade & Foreshore,D2352,Clothing and Uniforms,89.98,Trade UK Account (Screwfix),Clothing and Uniforms Mens Protective-Footware,2000394,201801,
Rother District Council,20/03/2018,091HOUSING,Housing and Community Services,20145,Maintenance Services,D1201,Equipment & Materials,20.08,Jewson Limited,Equipment & Materials Purchase of Tools,2000561,201801,
Rother District Council,20/03/2018,101RESOURCES,Resources,20216,Cost Of Collection,D2513,Hired and Contracted services,24.00,H M Land Registry,Hired and contracted services Council Tax-Land Registry Enquiries,2000065,201801,
Rother District Council,20/03/2018,041ENVIRON,Environmental Services,32144,EH Environmental Services Admin R + W Partnership,D2513,Hired and Contracted services,3.00,H M Land Registry,Hired and contracted services Env H- Land Registry,2000065,201801,
Rother District Council,20/03/2018,041ENVIRON,Environmental Services,32142,EH Taxi and Private Hire Licenses R + W Partnership,D2513,Hired and Contracted services,23.01,uCheck,Hired and contracted services EnvH- Hackney Carriage Licensing,2000739,201801,
Rother District Council,20/03/2018,041ENVIRON,Environmental Services,32142,EH Taxi and Private Hire Licenses R + W Partnership,D2513,Hired and Contracted services,132.00,uCheck,Hired and contracted services EnvH- Hackney Carriage Licensing,2000739,201801,
Rother District Council,20/03/2018,041ENVIRON,Environmental Services,20141,Private Sector Housing,D2513,Hired and Contracted services,6.00,H M Land Registry,Hired and contracted services Housing- Land Registry,2000065,201801,
Rother District Council,20/03/2018,071STRAT,Strategy and Planning,20246,Planning Applications,D2513,Hired and Contracted services,21.00,H M Land Registry,Hired and contracted services Land Registry - Planning,2000065,201801,
Rother District Council,20/03/2018,091HOUSING,Housing and Community Services,20113,Bexhill Leisure Pool,D2513,Hired and Contracted services,984.14,Savills (UK) Ltd,Hired and contracted services Service Charge-Savills,2000309,201801,
Rother District Council,20/03/2018,091HOUSING,Housing and Community Services,20200,Housing Needs - HB (Housing Benefit),D2508,Removals and Storage,225.33,Stamford Storage Solutions,Removal/Storage of Furniture,2000266,201801,
Rother District Council,20/03/2018,091HOUSING,Housing and Community Services,20200,Housing Needs - HB (Housing Benefit),D2508,Removals and Storage,540.00,Stamford Storage Solutions,Removal/Storage of Furniture,2000268,201801,
Rother District Council,20/03/2018,091HOUSING,Housing and Community Services,20128,Public Conveniences,B1100,Repairs to Premises,68.80,Graham,Repairs to Premises Purchase of Materials - Build Maint,2000422,201801,
Rother District Council,20/03/2018,091HOUSING,Housing and Community Services,20128,Public Conveniences,B1100,Repairs to Premises,32.46,Jewson Limited,Repairs to Premises Purchase of Materials - Build Maint,2000424,201801,
Rother District Council,20/03/2018,091HOUSING,Housing and Community Services,20138,Residual Highway Services,B1100,Repairs to Premises,147.19,Graham,Repairs to Premises Purchase of Materials - Build Maint,2000379,201801,
Rother District Council,20/03/2018,091HOUSING,Housing and Community Services,20108,Bexhill Promenade & Foreshore,B1100,Repairs to Premises,491.66,Alfa Electric Ltd,Repairs to Premises Repairs - Electrical Works,2000856,201801,
Rother District Council,20/03/2018,031RESOURCES,Executive Directors & Corporate Core,20175,Administrative Offices - T.H. Annex (NOT CHP),B1100,Repairs to Premises,263.51,Alfa Electric Ltd,Repairs to Premises Repairs - Electrical Works,2000620,201801,
Rother District Council,20/03/2018,031RESOURCES,Executive Directors & Corporate Core,20180,Emergency Planning,D2922,Subscriptions,849.46,The Police and Crime Commissioner for Sussex,Subscriptions Sussex Resilience Forum (SRF),2000299,201801,
Rother District Council,20/03/2018,101RESOURCES,Resources,20226,Service Manager Finance and Welfare,A2203,Training,895.00,PDP,Training,2000314,201801,
Rother District Council,20/03/2018,091HOUSING,Housing and Community Services,20109,Sports Development,D2923,Grants made,"3,000.00",Hastings Borough Council,Grants made,2000023,201801,
Rother District Council,20/03/2018,081ACQUISIT,"Acquisitions, Transformation and Regeneration",20144,Property Management,D2922,Subscriptions,"1,000.00",RICS,Subscriptions Subscription to Organisations,2001521,201802,
Rother District Council,20/03/2018,071STRAT,Strategy and Planning,20246,Planning Applications,D2922,Subscriptions,"1,000.00",RICS,Subscriptions Subscription to Organisations,2001521,201802,
Rother District Council,21/03/2018,091HOUSING,Housing and Community Services,20108,Bexhill Promenade & Foreshore,D2352,Clothing and Uniforms,44.99,Trade UK Account (Screwfix),Clothing and Uniforms Mens Protective-Footware,2000395,201801,
Rother District Council,21/03/2018,091HOUSING,Housing and Community Services,20108,Bexhill Promenade & Foreshore,D2352,Clothing and Uniforms,4.17,Trade UK Account (Screwfix),Clothing and Uniforms Mens Protective-Footware,2000395,201801,
Rother District Council,21/03/2018,031RESOURCES,Executive Directors & Corporate Core,20170,Communications-Postages,D2627,County Courier service,"1,200.15",East Sussex County Council,County Courier service County Courier Service,2000016,201801,
Rother District Council,21/03/2018,091HOUSING,Housing and Community Services,20125,Coast Protection,B2201,Electricity,335.91,Laser Energy Buying Group (Kent County Council Commercial Services),Electricity Charges,2000807,201801,
Rother District Council,21/03/2018,091HOUSING,Housing and Community Services,20128,Public Conveniences,B2201,Electricity,123.39,Laser Energy Buying Group (Kent County Council Commercial Services),Electricity Charges,2000807,201801,
Rother District Council,21/03/2018,091HOUSING,Housing and Community Services,20128,Public Conveniences,B2201,Electricity,19.99,Laser Energy Buying Group (Kent County Council Commercial Services),Electricity Charges,2000807,201801,
Rother District Council,21/03/2018,091HOUSING,Housing and Community Services,20115,Rye Area Parks & Gardens,B2201,Electricity,82.89,Laser Energy Buying Group (Kent County Council Commercial Services),Electricity Charges,2000807,201801,
Rother District Council,21/03/2018,091HOUSING,Housing and Community Services,20115,Rye Area Parks & Gardens,B2201,Electricity,-31.32,Laser Energy Buying Group (Kent County Council Commercial Services),Electricity Charges,2000807,201801,
Rother District Council,21/03/2018,091HOUSING,Housing and Community Services,20115,Rye Area Parks & Gardens,B2201,Electricity,-248.78,Laser Energy Buying Group (Kent County Council Commercial Services),Electricity Charges,2000807,201801,
Rother District Council,21/03/2018,091HOUSING,Housing and Community Services,20108,Bexhill Promenade & Foreshore,B2201,Electricity,73.68,Laser Energy Buying Group (Kent County Council Commercial Services),Electricity Charges,2000807,201801,
Rother District Council,21/03/2018,081ACQUISIT,"Acquisitions, Transformation and Regeneration",20154,Committee Property Account,B2201,Electricity,73.67,Laser Energy Buying Group (Kent County Council Commercial Services),Electricity Charges,2000807,201801,
Rother District Council,21/03/2018,081ACQUISIT,"Acquisitions, Transformation and Regeneration",20154,Committee Property Account,B2201,Electricity,73.67,Laser Energy Buying Group (Kent County Council Commercial Services),Electricity Charges,2000807,201801,
Rother District Council,21/03/2018,081ACQUISIT,"Acquisitions, Transformation and Regeneration",20154,Committee Property Account,B2201,Electricity,73.68,Laser Energy Buying Group (Kent County Council Commercial Services),Electricity Charges,2000807,201801,
Rother District Council,21/03/2018,031RESOURCES,Executive Directors & Corporate Core,20176,Administrative Offices - Print Room,B2201,Electricity,446.07,Laser Energy Buying Group (Kent County Council Commercial Services),Electricity Charges,2000807,201801,
Rother District Council,21/03/2018,101RESOURCES,Resources,20239,Computer Services,D2416,Stationery,11.03,Frontier Software Plc,Equipment & Materials Carriage/Handling Charge,2000113,201801,
Rother District Council,21/03/2018,081ACQUISIT,"Acquisitions, Transformation and Regeneration",20154,Committee Property Account,B2202,Gas,21.14,Laser Energy Buying Group (Kent County Council Commercial Services),Gas Charges,2000801,201801,
Rother District Council,21/03/2018,031RESOURCES,Executive Directors & Corporate Core,20176,Administrative Offices - Print Room,B2202,Gas,111.31,Laser Energy Buying Group (Kent County Council Commercial Services),Gas Charges,2000801,201801,
Rother District Council,21/03/2018,031RESOURCES,Executive Directors & Corporate Core,20175,Administrative Offices - T.H. Annex (NOT CHP),B2202,Gas,510.84,Laser Energy Buying Group (Kent County Council Commercial Services),Gas Charges,2000801,201801,
Rother District Council,21/03/2018,031RESOURCES,Executive Directors & Corporate Core,20173,Administrative Offices - Town Hall,B2202,Gas,719.60,Laser Energy Buying Group (Kent County Council Commercial Services),Gas Charges,2000801,201801,
Rother District Council,21/03/2018,041ENVIRON,Environmental Services,32135,EH Dog Control R + W Partnership,D2513,Hired and Contracted services,"2,839.59",Animal Wardens Ltd,Hired and contracted services Rother Collection of Dogs EnvH,2000576,201801,
Rother District Council,21/03/2018,041ENVIRON,Environmental Services,32135,EH Dog Control R + W Partnership,D2513,Hired and Contracted services,"3,239.50",Animal Wardens Ltd,Hired and contracted services Rother Collection of Dogs EnvH,2000578,201801,
Rother District Council,21/03/2018,101RESOURCES,Resources,20216,Cost Of Collection,D2513,Hired and Contracted services,590.00,Inform CPI Ltd,Hired and contracted services RV Finder,2000108,201801,
Rother District Council,21/03/2018,101RESOURCES,Resources,20240,Printing Services,D2417,Photocopy Paper,226.28,Canon (UK) Ltd,Photocopy Paper Wide Format Consumables,2000037,201801,
Rother District Council,21/03/2018,091HOUSING,Housing and Community Services,20128,Public Conveniences,B1100,Repairs to Premises,585.00,B and G Environmental Services Limited,Repairs to Premises Drainage Clearance,2000390,201801,
Rother District Council,21/03/2018,091HOUSING,Housing and Community Services,20128,Public Conveniences,B1100,Repairs to Premises,15.00,Hastings Locksmiths and Key Service,Repairs to Premises Purchase of Materials - Build Maint,2000392,201801,
Rother District Council,21/03/2018,081ACQUISIT,"Acquisitions, Transformation and Regeneration",20153,"Elva Business Centre, Bexhill",B1100,Repairs to Premises,239.70,Hastings Locksmiths and Key Service,Repairs to Premises Purchase of Materials - Build Maint,2000568,201801,
Rother District Council,21/03/2018,101RESOURCES,Resources,20241,Stationery,D2416,Stationery,61.61,Office Depot UK Ltd,Stationery General Stationery (Print Room ONLY,2000047,201801,
Rother District Council,21/03/2018,101RESOURCES,Resources,20239,Computer Services,D2416,Stationery,95.00,Frontier Software Plc,Stationery Pressure Seal Stationery,2000113,201801,
Rother District Council,21/03/2018,091HOUSING,Housing and Community Services,20200,Housing Needs - HB (Housing Benefit),A2203,Training,170.00,Ferret Information Systems Ltd,Training,2000022,201801,
Rother District Council,21/03/2018,031RESOURCES,Executive Directors & Corporate Core,32131,Sussex Training Partnership,A2203,Training,975.00,Keystar Training Ltd,Training Sussex Train Consor-Training Course,2000850,201801,
Rother District Council,21/03/2018,091HOUSING,Housing and Community Services,20108,Bexhill Promenade & Foreshore,D2352,Clothing and Uniforms,-44.99,Trade UK Account (Screwfix),Clothing and Uniforms,2000313,201801,
Rother District Council,21/03/2018,031RESOURCES,Executive Directors & Corporate Core,20185,Joint Waste procurement,E1101,Third party payment other LAs,"3,840.00",Wealden District Council,Third party payment other LAs,2000028,201801,
Rother District Council,22/03/2018,091HOUSING,Housing and Community Services,20145,Maintenance Services,D1201,Equipment & Materials,24.57,Trade UK Account (Screwfix),Equipment & Materials Purchase of Tools,2000570,201801,
Rother District Council,22/03/2018,091HOUSING,Housing and Community Services,20107,Camber Beach & Foreshore,D1201,Equipment & Materials,170.91,Alfa Electric Ltd,Equipment & Materials Ticket Machine Maintenance/ Repairs,2000397,201801,
Rother District Council,22/03/2018,101RESOURCES,Resources,20216,Cost Of Collection,D2513,Hired and Contracted services,24.00,H M Land Registry,Hired and contracted services Council Tax-Land Registry Enquiries,2000066,201801,
Rother District Council,22/03/2018,041ENVIRON,Environmental Services,32134,EH Pollution R + W Partnership,D2513,Hired and Contracted services,68.50,South East Water Ltd,Hired and contracted services EnvH- Water Sampling,2000281,201801,
Rother District Council,22/03/2018,071STRAT,Strategy and Planning,20246,Planning Applications,D2513,Hired and Contracted services,42.00,H M Land Registry,Hired and contracted services Land Registry - Planning,2000066,201801,
Rother District Council,22/03/2018,081ACQUISIT,"Acquisitions, Transformation and Regeneration",20144,Property Management,D2513,Hired and Contracted services,6.00,H M Land Registry,Hired and contracted services Land Registry - Property Management,2000066,201801,
Rother District Council,22/03/2018,041ENVIRON,Environmental Services,32140,EN Wealden Training (WEALDEN ONLY) R + W Partnership,D2513,Hired and Contracted services,"3,750.00",Michael Hills Associates,Hired and contracted services Service fee paid to Third Parties,2000282,201801,
Rother District Council,22/03/2018,091HOUSING,Housing and Community Services,20108,Bexhill Promenade & Foreshore,B1100,Repairs to Premises,125.00,B and G Environmental Services Limited,Repairs to Premises Drainage Clearance,2000388,201801,
Rother District Council,22/03/2018,091HOUSING,Housing and Community Services,20128,Public Conveniences,B1100,Repairs to Premises,138.21,Sussex Turnery and Moulding Co Ltd,Repairs to Premises Purchase of Materials - Build Maint,2000393,201801,
Rother District Council,22/03/2018,081ACQUISIT,"Acquisitions, Transformation and Regeneration",20154,Committee Property Account,B1100,Repairs to Premises,468.33,Alfa Electric Ltd,Repairs to Premises Repairs - Electrical Works,2000621,201801,
Rother District Council,22/03/2018,091HOUSING,Housing and Community Services,20128,Public Conveniences,B2422,Sewerage,330.00,CountyClean Environmental Services Ltd,Sewerage - Sewage/Cesspool Emptying,2000389,201801,
Rother District Council,22/03/2018,101RESOURCES,Resources,20241,Stationery,D2416,Stationery,32.84,Office Depot UK Ltd,Stationery General Stationery (Print Room ONLY,2000044,201801,
Rother District Council,22/03/2018,101RESOURCES,Resources,20241,Stationery,D2416,Stationery,85.54,Office Depot UK Ltd,Stationery General Stationery (Print Room ONLY,2000046,201801,
Rother District Council,23/03/2018,031RESOURCES,Executive Directors & Corporate Core,20183,Executive Directors,D2518,Advertising,213.50,Johnston Publishing Ltd,Advertising Advertising in Newspapers/Magazine,2000121,201801,
Rother District Council,23/03/2018,101RESOURCES,Resources,20240,Printing Services,D2352,Clothing and Uniforms,82.58,The Stitchery Company,Clothing and Uniforms Mens Uniform-Shirt,2000036,201801,
Rother District Council,23/03/2018,091HOUSING,Housing and Community Services,20114,Bexhill Parks & Open Spaces,D1206,Furniture & Fittings,"1,072.12",Glasdon U.K. Ltd,Equipment & Materials - Parks- Litter Bins,2000027,201801,
Rother District Council,23/03/2018,091HOUSING,Housing and Community Services,20145,Maintenance Services,D1201,Equipment & Materials,9.06,The Roman Group,Equipment & Materials Purchase of Tools,2000569,201801,
Rother District Council,23/03/2018,091HOUSING,Housing and Community Services,20108,Bexhill Promenade & Foreshore,D1201,Equipment & Materials,171.50,Crowcon Detection Instruments Ltd,Equipment & Materials Purchase of Tools,2000010,201801,
Rother District Council,23/03/2018,081ACQUISIT,"Acquisitions, Transformation and Regeneration",20154,Committee Property Account,D1201,Equipment & Materials,147.33,Trade UK Account (Screwfix),Equipment & Materials Purchase of Tools,2000566,201801,
Rother District Council,23/03/2018,091HOUSING,Housing and Community Services,20137,Car Parks,D1201,Equipment & Materials,301.50,Cale UK Ltd,Equipment & Materials Ticket Machine Maintenance/ Repairs,2000057,201801,
Rother District Council,23/03/2018,101RESOURCES,Resources,20216,Cost Of Collection,D2513,Hired and Contracted services,15.00,H M Land Registry,Hired and contracted services Council Tax-Land Registry Enquiries,2000067,201801,
Rother District Council,23/03/2018,071STRAT,Strategy and Planning,20246,Planning Applications,D2513,Hired and Contracted services,3.00,H M Land Registry,Hired and contracted services Land Registry - Planning,2000067,201801,
Rother District Council,23/03/2018,091HOUSING,Housing and Community Services,20128,Public Conveniences,D2513,Hired and Contracted services,"1,474.92",Alfa Electric Ltd,Hired and contracted services Service fee paid to Third Parties,2000237,201801,
Rother District Council,23/03/2018,091HOUSING,Housing and Community Services,20128,Public Conveniences,D2513,Hired and Contracted services,"1,966.56",Alfa Electric Ltd,Hired and contracted services Service fee paid to Third Parties,2000280,201801,
Rother District Council,23/03/2018,031RESOURCES,Executive Directors & Corporate Core,20171,Human Resources,A2202,Recruitment expenses,757.94,Johnston Publishing Ltd,Recruitment expenses Advertising Vacant Post,2000082,201801,
Rother District Council,23/03/2018,091HOUSING,Housing and Community Services,20128,Public Conveniences,B1100,Repairs to Premises,380.00,Alfa Electric Ltd,Repairs to Premises Purchase of Materials - Build Maint,2000853,201801,
Rother District Council,23/03/2018,091HOUSING,Housing and Community Services,20128,Public Conveniences,B1100,Repairs to Premises,77.02,Jewson Limited,Repairs to Premises Purchase of Materials - Build Maint,2000420,201801,
Rother District Council,23/03/2018,091HOUSING,Housing and Community Services,20113,Bexhill Leisure Pool,B1100,Repairs to Premises,220.00,Colin A May,Repairs to Premises Repairs - Doors,2000112,201801,
Rother District Council,23/03/2018,091HOUSING,Housing and Community Services,20108,Bexhill Promenade & Foreshore,B1100,Repairs to Premises,187.45,Alfa Electric Ltd,Repairs to Premises Repairs - Electrical Works,2000853,201801,
Rother District Council,23/03/2018,081ACQUISIT,"Acquisitions, Transformation and Regeneration",20153,"Elva Business Centre, Bexhill",B1100,Repairs to Premises,280.61,Alfa Electric Ltd,Repairs to Premises Repairs - Electrical Works,2000852,201801,
Rother District Council,23/03/2018,031RESOURCES,Executive Directors & Corporate Core,20176,Administrative Offices - Print Room,B1100,Repairs to Premises,860.00,Colin A May,Repairs to Premises Specified Repairs and Works listed,2000584,201801,
Rother District Council,23/03/2018,031RESOURCES,Executive Directors & Corporate Core,20176,Administrative Offices - Print Room,B1100,Repairs to Premises,860.00,Colin A May,Repairs to Premises Specified Repairs and Works listed,2000387,201801,
Rother District Council,23/03/2018,031RESOURCES,Executive Directors & Corporate Core,20176,Administrative Offices - Print Room,B1100,Repairs to Premises,-860.00,Colin A May,Repairs to Premises Specified Repairs and Works listed,1000044,201801,
Rother District Council,23/03/2018,101RESOURCES,Resources,20241,Stationery,D2416,Stationery,27.12,Office Depot UK Ltd,Stationery General Stationery (Print Room ONLY,2000053,201801,
Rother District Council,23/03/2018,071STRAT,Strategy and Planning,20246,Planning Applications,D2519,Statutory Advertising,488.00,Johnston Publishing Ltd,Statutory Advertising Planadv - Rye + Battle Observer,2000287,201801,
Rother District Council,23/03/2018,031RESOURCES,Executive Directors & Corporate Core,32131,Sussex Training Partnership,D2513,Hired and Contracted services,895.00,PHF Training,Training Sussex Train Consor-Training Course,2000260,201801,
Rother District Council,23/03/2018,091HOUSING,Housing and Community Services,20128,Public Conveniences,B2421,Water,25.75,South East Water Ltd,Water Charges,2000091,201801,
Rother District Council,23/03/2018,091HOUSING,Housing and Community Services,20114,Bexhill Parks & Open Spaces,B2421,Water,102.97,South East Water Ltd,Water Charges,2000091,201801,
Rother District Council,23/03/2018,091HOUSING,Housing and Community Services,20114,Bexhill Parks & Open Spaces,B1100,Repairs to Premises,"2,825.00",Foxhills Tree Services Ltd,Repairs to Premises,2000026,201801,
Rother District Council,23/03/2018,031RESOURCES,Executive Directors & Corporate Core,32132,Joint Waste Contract Client Unit,E2302,Third party payment private contractors,"58,793.64",Kier Services - Environmental,Third party payment private contractors,2000029,201801,
Rother District Council,23/03/2018,041ENVIRON,Environmental Services,20130,Crime and Disorder Initiatives,D2513,Hired and Contracted services,322.50,The Police and Crime Commissioner for Sussex,Hired and Contracted services,2000446,201801,
Rother District Council,23/03/2018,031RESOURCES,Executive Directors & Corporate Core,32131,Sussex Training Partnership,D2513,Hired and Contracted services,"1,950.00",Trevor Roberts Associates Ltd,Hired and Contracted services,2000267,201801,
Rother District Council,23/03/2018,091HOUSING,Housing and Community Services,20200,Housing Needs - HB (Housing Benefit),D2514,Accommodation Costs,240.00,MB Hotels Ltd,Accommodation Costs,2000211,201801,
Rother District Council,23/03/2018,091HOUSING,Housing and Community Services,20200,Housing Needs - HB (Housing Benefit),D2514,Accommodation Costs,240.00,The Clevedon Court Hotel,Accommodation Costs,2000226,201801,
Rother District Council,23/03/2018,091HOUSING,Housing and Community Services,20200,Housing Needs - HB (Housing Benefit),D2514,Accommodation Costs,60.00,The Clevedon Court Hotel,Accommodation Costs,2000226,201801,
Rother District Council,23/03/2018,091HOUSING,Housing and Community Services,20200,Housing Needs - HB (Housing Benefit),D2514,Accommodation Costs,280.00,MB Hotels Ltd,Accommodation Costs,2000222,201801,
Rother District Council,23/03/2018,091HOUSING,Housing and Community Services,20200,Housing Needs - HB (Housing Benefit),D2514,Accommodation Costs,240.00,MB Hotels Ltd,Accommodation Costs,2000223,201801,
Rother District Council,23/03/2018,091HOUSING,Housing and Community Services,20200,Housing Needs - HB (Housing Benefit),D2514,Accommodation Costs,392.00,MB Hotels Ltd,Accommodation Costs,2000460,201801,
Rother District Council,23/03/2018,091HOUSING,Housing and Community Services,20203,Housing Needs - Universal Credit,D2514,Accommodation Costs,336.00,MB Hotels Ltd,Accommodation Costs,2000212,201801,
Rother District Council,23/03/2018,091HOUSING,Housing and Community Services,20203,Housing Needs - Universal Credit,D2514,Accommodation Costs,300.00,MB Hotels Ltd,Accommodation Costs,2000213,201801,
Rother District Council,23/03/2018,091HOUSING,Housing and Community Services,20203,Housing Needs - Universal Credit,D2514,Accommodation Costs,66.00,MB Hotels Ltd,Accommodation Costs,2000227,201801,
Rother District Council,23/03/2018,091HOUSING,Housing and Community Services,20203,Housing Needs - Universal Credit,D2514,Accommodation Costs,264.00,MB Hotels Ltd,Accommodation Costs,2000227,201801,
Rother District Council,23/03/2018,091HOUSING,Housing and Community Services,20203,Housing Needs - Universal Credit,D2514,Accommodation Costs,240.00,MB Hotels Ltd,Accommodation Costs,2000224,201801,
Rother District Council,23/03/2018,091HOUSING,Housing and Community Services,20203,Housing Needs - Universal Credit,D2514,Accommodation Costs,160.00,MB Hotels Ltd,Accommodation Costs,2000225,201801,
Rother District Council,23/03/2018,101RESOURCES,Resources,20239,Computer Services,D2633,Computer Equipment,120.17,PCM Technology Solutions UK Ltd,Computer Equipment New Computer Hardware,2001039,201802,
Rother District Council,23/03/2018,999NOREPORT,Resources,70712,Capital - ERP System Upgrade,N1004,Architects & Consultant Fees,"327,624.44",Hastings Borough Council,Architects & Consultant Fees,2000872,201802,
Rother District Council,23/03/2018,091HOUSING,Housing and Community Services,20203,Housing Needs - Universal Credit,D2514,Accommodation Costs,66.00,The Clevedon Court Hotel,Accommodation Costs,2001008,201802,
Rother District Council,23/03/2018,091HOUSING,Housing and Community Services,20203,Housing Needs - Universal Credit,D2514,Accommodation Costs,264.00,The Clevedon Court Hotel,Accommodation Costs,2001008,201802,
Rother District Council,24/03/2018,101RESOURCES,Resources,20241,Stationery,D2416,Stationery,9.30,Office Depot UK Ltd,Stationery,2000049,201801,
Rother District Council,25/03/2018,091HOUSING,Housing and Community Services,20128,Public Conveniences,B1100,Repairs to Premises,"1,350.00",Clearwater Technology Ltd,Hired & Contracted Serv- Legionella Sampling and Monitoring,2000230,201801,
Rother District Council,25/03/2018,091HOUSING,Housing and Community Services,20234,Battle Community Help Point,B2311,Rents and service charges,"2,062.50",Tiger Tees Ltd,Rents and service charges Rents-CHP Battle,2000115,201801,
Rother District Council,25/03/2018,071STRAT,Strategy and Planning,20246,Planning Applications,D2519,Statutory Advertising,247.20,Local World Ltd,Statutory Advertising Planadv- Kent + East Sussex Courier,2000277,201801,
Rother District Council,25/03/2018,091HOUSING,Housing and Community Services,20200,Housing Needs - HB (Housing Benefit),D2514,Accommodation Costs,375.00,Specialist Care UK Group Ltd,Accommodation Costs,2000229,201801,
Rother District Council,25/03/2018,091HOUSING,Housing and Community Services,20203,Housing Needs - Universal Credit,D2514,Accommodation Costs,175.00,Specialist Care UK Group Ltd,Accommodation Costs,2000234,201801,
Rother District Council,25/03/2018,091HOUSING,Housing and Community Services,20203,Housing Needs - Universal Credit,D2514,Accommodation Costs,350.00,Specialist Care UK Group Ltd,Accommodation Costs,2000235,201801,
Rother District Council,25/03/2018,091HOUSING,Housing and Community Services,20203,Housing Needs - Universal Credit,D2514,Accommodation Costs,262.50,Specialist Care UK Group Ltd,Accommodation Costs,2000236,201801,
Rother District Council,25/03/2018,091HOUSING,Housing and Community Services,20203,Housing Needs - Universal Credit,D2514,Accommodation Costs,262.50,Specialist Care UK Group Ltd,Accommodation Costs,2000238,201801,
Rother District Council,25/03/2018,091HOUSING,Housing and Community Services,20203,Housing Needs - Universal Credit,D2514,Accommodation Costs,375.00,Specialist Care UK Group Ltd,Accommodation Costs,2000239,201801,
Rother District Council,25/03/2018,091HOUSING,Housing and Community Services,20203,Housing Needs - Universal Credit,D2514,Accommodation Costs,175.00,Specialist Care UK Group Ltd,Accommodation Costs,2000240,201801,
Rother District Council,25/03/2018,091HOUSING,Housing and Community Services,20203,Housing Needs - Universal Credit,D2514,Accommodation Costs,350.00,Specialist Care UK Group Ltd,Accommodation Costs,2000228,201801,
Rother District Council,25/03/2018,091HOUSING,Housing and Community Services,20203,Housing Needs - Universal Credit,D2514,Accommodation Costs,300.00,Specialist Care UK Group Ltd,Accommodation Costs,2000231,201801,
Rother District Council,25/03/2018,091HOUSING,Housing and Community Services,20203,Housing Needs - Universal Credit,D2514,Accommodation Costs,262.50,Specialist Care UK Group Ltd,Accommodation Costs,2000232,201801,
Rother District Council,25/03/2018,091HOUSING,Housing and Community Services,20203,Housing Needs - Universal Credit,D2514,Accommodation Costs,262.50,Specialist Care UK Group Ltd,Accommodation Costs,2000233,201801,
Rother District Council,25/03/2018,091HOUSING,Housing and Community Services,20203,Housing Needs - Universal Credit,D2514,Accommodation Costs,150.00,Specialist Care UK Group Ltd,Accommodation Costs,2000241,201801,
Rother District Council,25/03/2018,091HOUSING,Housing and Community Services,20203,Housing Needs - Universal Credit,D2514,Accommodation Costs,350.00,Specialist Care UK Group Ltd,Accommodation Costs,2000259,201801,
Rother District Council,26/03/2018,101RESOURCES,Resources,20239,Computer Services,D2635,Computer Licences,"11,435.00",Blue Cube Security Ltd,Computer Licences Maintenance/Upgrading of Software,2000032,201801,
Rother District Council,26/03/2018,091HOUSING,Housing and Community Services,20137,Car Parks,D1201,Equipment & Materials,"11,081.34",Cale UK Ltd,Equipment & Materials Machinery - Maintenance,2000611,201801,
Rother District Council,26/03/2018,091HOUSING,Housing and Community Services,20114,Bexhill Parks & Open Spaces,D1201,Equipment & Materials,230.00,Bourne Amenity Ltd,Equipment & Materials Parks - Horticultural Sundries,2000643,201801,
Rother District Council,26/03/2018,091HOUSING,Housing and Community Services,20145,Maintenance Services,D1201,Equipment & Materials,3.64,Phase Electrical Distributors Ltd,Equipment & Materials Purchase of Tools,2000567,201801,
Rother District Council,26/03/2018,041ENVIRON,Environmental Services,20129,Community Safety,D2513,Hired and Contracted services,784.08,The Police and Crime Commissioner for Sussex,Hired and contracted services CCTV System Maintenance,2000456,201801,
Rother District Council,26/03/2018,101RESOURCES,Resources,20241,Stationery,D2417,Photocopy Paper,426.00,Premier Paper Group Ltd,Photocopy Paper Copier Paper for Xerox,2000003,201801,
Rother District Council,26/03/2018,101RESOURCES,Resources,20216,Cost Of Collection,D2626,Postages,768.62,Virtual Mail Room Ltd,Postages Postages - Virtual Mail Room,2000802,201801,
Rother District Council,26/03/2018,091HOUSING,Housing and Community Services,20102,Rother Museum Services,B1100,Repairs to Premises,168.00,Besure Security Systems,Repairs to Premises Access System Service,2000428,201801,
Rother District Council,26/03/2018,091HOUSING,Housing and Community Services,20128,Public Conveniences,B1100,Repairs to Premises,28.34,Graham,Repairs to Premises Purchase of Materials - Build Maint,2000423,201801,
Rother District Council,26/03/2018,091HOUSING,Housing and Community Services,20128,Public Conveniences,B1100,Repairs to Premises,"2,255.13",Alfa Electric Ltd,Repairs to Premises Repairs - Electrical Works,2000622,201801,
Rother District Council,26/03/2018,091HOUSING,Housing and Community Services,20114,Bexhill Parks & Open Spaces,B1100,Repairs to Premises,"4,604.56",Alfa Electric Ltd,Repairs to Premises Repairs - Plumbing Works,2000318,201801,
Rother District Council,26/03/2018,101RESOURCES,Resources,20241,Stationery,D2416,Stationery,5.36,Office Depot UK Ltd,Stationery General Stationery (Print Room ONLY,2000051,201801,
Rother District Council,26/03/2018,091HOUSING,Housing and Community Services,20125,Coast Protection,D2922,Subscriptions,400.00,Canterbury City Council,Subscriptions Subscription to Organisations,2000000,201801,
Rother District Council,26/03/2018,041ENVIRON,Environmental Services,32144,EH Environmental Services Admin R + W Partnership,A2203,Training,275.00,Wealden District Council,Training,2000290,201801,
Rother District Council,26/03/2018,091HOUSING,Housing and Community Services,20102,Rother Museum Services,B1100,Repairs to Premises,465.00,Stannah Lift Services Ltd,Repairs to Premises,2000013,201801,
Rother District Council,26/03/2018,031RESOURCES,Executive Directors & Corporate Core,20173,Administrative Offices - Town Hall,B1100,Repairs to Premises,193.00,Abel Alarm Co. Ltd.,Repairs to Premises,2000012,201801,
Rother District Council,26/03/2018,091HOUSING,Housing and Community Services,20200,Housing Needs - HB (Housing Benefit),D2514,Accommodation Costs,336.00,Solutions Accommodation Providers Ltd,Accommodation Costs,2000168,201801,
Rother District Council,26/03/2018,091HOUSING,Housing and Community Services,20200,Housing Needs - HB (Housing Benefit),D2514,Accommodation Costs,280.00,Saffron HMO Ltd,Accommodation Costs,2000182,201801,
Rother District Council,26/03/2018,091HOUSING,Housing and Community Services,20200,Housing Needs - HB (Housing Benefit),D2514,Accommodation Costs,70.00,Saffron HMO Ltd,Accommodation Costs,2000182,201801,
Rother District Council,26/03/2018,091HOUSING,Housing and Community Services,20200,Housing Needs - HB (Housing Benefit),D2514,Accommodation Costs,84.00,Solutions Accommodation Providers Ltd,Accommodation Costs,2000168,201801,
Rother District Council,26/03/2018,091HOUSING,Housing and Community Services,20200,Housing Needs - HB (Housing Benefit),D2514,Accommodation Costs,98.00,Solutions Accommodation Providers Ltd,Accommodation Costs,2000158,201801,
Rother District Council,26/03/2018,091HOUSING,Housing and Community Services,20200,Housing Needs - HB (Housing Benefit),D2514,Accommodation Costs,392.00,Solutions Accommodation Providers Ltd,Accommodation Costs,2000158,201801,
Rother District Council,26/03/2018,091HOUSING,Housing and Community Services,20200,Housing Needs - HB (Housing Benefit),D2514,Accommodation Costs,392.00,Solutions Accommodation Providers Ltd,Accommodation Costs,2000159,201801,
Rother District Council,26/03/2018,091HOUSING,Housing and Community Services,20200,Housing Needs - HB (Housing Benefit),D2514,Accommodation Costs,98.00,Solutions Accommodation Providers Ltd,Accommodation Costs,2000159,201801,
Rother District Council,26/03/2018,091HOUSING,Housing and Community Services,20200,Housing Needs - HB (Housing Benefit),D2514,Accommodation Costs,84.00,Solutions Accommodation Providers Ltd,Accommodation Costs,2000160,201801,
Rother District Council,26/03/2018,091HOUSING,Housing and Community Services,20200,Housing Needs - HB (Housing Benefit),D2514,Accommodation Costs,336.00,Solutions Accommodation Providers Ltd,Accommodation Costs,2000160,201801,
Rother District Council,26/03/2018,091HOUSING,Housing and Community Services,20200,Housing Needs - HB (Housing Benefit),D2514,Accommodation Costs,144.00,Saffron HMO Ltd,Accommodation Costs,2000189,201801,
Rother District Council,26/03/2018,091HOUSING,Housing and Community Services,20203,Housing Needs - Universal Credit,D2514,Accommodation Costs,336.00,Solutions Accommodation Providers Ltd,Accommodation Costs,2000164,201801,
Rother District Council,26/03/2018,091HOUSING,Housing and Community Services,20203,Housing Needs - Universal Credit,D2514,Accommodation Costs,52.50,Solutions Accommodation Providers Ltd,Accommodation Costs,2000156,201801,
Rother District Council,26/03/2018,091HOUSING,Housing and Community Services,20203,Housing Needs - Universal Credit,D2514,Accommodation Costs,454.20,Redmere Lodge,Accommodation Costs,2000270,201801,
Rother District Council,26/03/2018,091HOUSING,Housing and Community Services,20203,Housing Needs - Universal Credit,D2514,Accommodation Costs,210.00,Solutions Accommodation Providers Ltd,Accommodation Costs,2000156,201801,
Rother District Council,26/03/2018,091HOUSING,Housing and Community Services,20203,Housing Needs - Universal Credit,D2514,Accommodation Costs,336.00,Solutions Accommodation Providers Ltd,Accommodation Costs,2000157,201801,
Rother District Council,26/03/2018,091HOUSING,Housing and Community Services,20203,Housing Needs - Universal Credit,D2514,Accommodation Costs,84.00,Solutions Accommodation Providers Ltd,Accommodation Costs,2000157,201801,
Rother District Council,26/03/2018,091HOUSING,Housing and Community Services,20203,Housing Needs - Universal Credit,D2514,Accommodation Costs,56.00,Solutions Accommodation Providers Ltd,Accommodation Costs,2000165,201801,
Rother District Council,26/03/2018,091HOUSING,Housing and Community Services,20203,Housing Needs - Universal Credit,D2514,Accommodation Costs,224.00,Solutions Accommodation Providers Ltd,Accommodation Costs,2000165,201801,
Rother District Council,26/03/2018,091HOUSING,Housing and Community Services,20203,Housing Needs - Universal Credit,D2514,Accommodation Costs,280.00,Solutions Accommodation Providers Ltd,Accommodation Costs,2000166,201801,
Rother District Council,26/03/2018,091HOUSING,Housing and Community Services,20203,Housing Needs - Universal Credit,D2514,Accommodation Costs,70.00,Solutions Accommodation Providers Ltd,Accommodation Costs,2000166,201801,
Rother District Council,26/03/2018,091HOUSING,Housing and Community Services,20203,Housing Needs - Universal Credit,D2514,Accommodation Costs,77.00,Solutions Accommodation Providers Ltd,Accommodation Costs,2000167,201801,
Rother District Council,26/03/2018,091HOUSING,Housing and Community Services,20203,Housing Needs - Universal Credit,D2514,Accommodation Costs,33.60,Saffron HMO Ltd,Accommodation Costs,2000181,201801,
Rother District Council,26/03/2018,091HOUSING,Housing and Community Services,20203,Housing Needs - Universal Credit,D2514,Accommodation Costs,134.40,Saffron HMO Ltd,Accommodation Costs,2000181,201801,
Rother District Council,26/03/2018,091HOUSING,Housing and Community Services,20203,Housing Needs - Universal Credit,D2514,Accommodation Costs,33.60,Saffron HMO Ltd,Accommodation Costs,2000183,201801,
Rother District Council,26/03/2018,091HOUSING,Housing and Community Services,20203,Housing Needs - Universal Credit,D2514,Accommodation Costs,134.40,Saffron HMO Ltd,Accommodation Costs,2000183,201801,
Rother District Council,26/03/2018,091HOUSING,Housing and Community Services,20203,Housing Needs - Universal Credit,D2514,Accommodation Costs,134.40,Saffron HMO Ltd,Accommodation Costs,2000184,201801,
Rother District Council,26/03/2018,091HOUSING,Housing and Community Services,20203,Housing Needs - Universal Credit,D2514,Accommodation Costs,33.60,Saffron HMO Ltd,Accommodation Costs,2000184,201801,
Rother District Council,26/03/2018,091HOUSING,Housing and Community Services,20203,Housing Needs - Universal Credit,D2514,Accommodation Costs,70.00,Saffron HMO Ltd,Accommodation Costs,2000185,201801,
Rother District Council,26/03/2018,091HOUSING,Housing and Community Services,20203,Housing Needs - Universal Credit,D2514,Accommodation Costs,308.00,Solutions Accommodation Providers Ltd,Accommodation Costs,2000167,201801,
Rother District Council,26/03/2018,091HOUSING,Housing and Community Services,20203,Housing Needs - Universal Credit,D2514,Accommodation Costs,336.00,Solutions Accommodation Providers Ltd,Accommodation Costs,2000161,201801,
Rother District Council,26/03/2018,091HOUSING,Housing and Community Services,20203,Housing Needs - Universal Credit,D2514,Accommodation Costs,84.00,Solutions Accommodation Providers Ltd,Accommodation Costs,2000161,201801,
Rother District Council,26/03/2018,091HOUSING,Housing and Community Services,20203,Housing Needs - Universal Credit,D2514,Accommodation Costs,84.00,Solutions Accommodation Providers Ltd,Accommodation Costs,2000162,201801,
Rother District Council,26/03/2018,091HOUSING,Housing and Community Services,20203,Housing Needs - Universal Credit,D2514,Accommodation Costs,336.00,Solutions Accommodation Providers Ltd,Accommodation Costs,2000162,201801,
Rother District Council,26/03/2018,091HOUSING,Housing and Community Services,20203,Housing Needs - Universal Credit,D2514,Accommodation Costs,490.00,Solutions Accommodation Providers Ltd,Accommodation Costs,2000163,201801,
Rother District Council,26/03/2018,091HOUSING,Housing and Community Services,20203,Housing Needs - Universal Credit,D2514,Accommodation Costs,84.00,Solutions Accommodation Providers Ltd,Accommodation Costs,2000164,201801,
Rother District Council,26/03/2018,091HOUSING,Housing and Community Services,20203,Housing Needs - Universal Credit,D2514,Accommodation Costs,280.00,Saffron HMO Ltd,Accommodation Costs,2000185,201801,
Rother District Council,26/03/2018,091HOUSING,Housing and Community Services,20203,Housing Needs - Universal Credit,D2514,Accommodation Costs,308.00,Saffron HMO Ltd,Accommodation Costs,2000186,201801,
Rother District Council,26/03/2018,091HOUSING,Housing and Community Services,20203,Housing Needs - Universal Credit,D2514,Accommodation Costs,77.00,Saffron HMO Ltd,Accommodation Costs,2000186,201801,
Rother District Council,26/03/2018,091HOUSING,Housing and Community Services,20203,Housing Needs - Universal Credit,D2514,Accommodation Costs,33.60,Saffron HMO Ltd,Accommodation Costs,2000187,201801,
Rother District Council,26/03/2018,091HOUSING,Housing and Community Services,20203,Housing Needs - Universal Credit,D2514,Accommodation Costs,134.40,Saffron HMO Ltd,Accommodation Costs,2000187,201801,
Rother District Council,26/03/2018,091HOUSING,Housing and Community Services,20203,Housing Needs - Universal Credit,D2514,Accommodation Costs,350.00,Saffron HMO Ltd,Accommodation Costs,2000188,201801,
Rother District Council,26/03/2018,081ACQUISIT,"Acquisitions, Transformation and Regeneration",20118,Tourism,D2513,Hired and Contracted services,"1,000.00",HEM Events Ltd,Hired and contracted services Bexhill  Marketing,2001413,201802,
Rother District Council,26/03/2018,091HOUSING,Housing and Community Services,20117,Amenities Administration Account,A2203,Training,239.00,Association for Public Service Excellence (APSE),Training,2000914,201802,
Rother District Council,27/03/2018,101RESOURCES,Resources,20216,Cost Of Collection,D2639,Departmental Systems,945.00,Northgate Public Services (UK) Ltd,Departmental Systems Software for Academy System,2000695,201801,
Rother District Council,27/03/2018,091HOUSING,Housing and Community Services,20108,Bexhill Promenade & Foreshore,D1201,Equipment & Materials,765.00,E.Y.E. Marine Ltd,Equipment & Materials Boards for Lifebuoys,2000416,201801,
Rother District Council,27/03/2018,091HOUSING,Housing and Community Services,20107,Camber Beach & Foreshore,D1201,Equipment & Materials,525.00,E.Y.E. Marine Ltd,Equipment & Materials Boards for Lifebuoys,2000416,201801,
Rother District Council,27/03/2018,031RESOURCES,Executive Directors & Corporate Core,20171,Human Resources,D2513,Hired and Contracted services,66.00,DMH Stallard,Hired and contracted services Legal Advice,2000110,201801,
Rother District Council,27/03/2018,081ACQUISIT,"Acquisitions, Transformation and Regeneration",20101,Cultural Development,D2517,Marketing,"4,600.00",East Sussex County Council,Marketing Arts Development Partnership,2000002,201801,
Rother District Council,27/03/2018,101RESOURCES,Resources,20240,Printing Services,D2417,Photocopy Paper,179.47,Premier Paper Group Ltd,Photocopy Paper White Board SRA2,2000041,201801,
Rother District Council,27/03/2018,091HOUSING,Housing and Community Services,20114,Bexhill Parks & Open Spaces,B1100,Repairs to Premises,532.16,Architectural Plants,Repairs to Premises Parks- Purchase of Plants,2000011,201801,
Rother District Council,27/03/2018,091HOUSING,Housing and Community Services,20128,Public Conveniences,B1100,Repairs to Premises,34.43,Sussex Turnery and Moulding Co Ltd,Repairs to Premises Purchase of Materials - Build Maint,2000391,201801,
Rother District Council,27/03/2018,091HOUSING,Housing and Community Services,20111,Rye Sports Centre & Pool,B1100,Repairs to Premises,"1,035.00",Clarke Roofing Southern Ltd,Repairs to Premises Repairs/Maintenance - various,2000291,201801,
Rother District Council,27/03/2018,091HOUSING,Housing and Community Services,20115,Rye Area Parks & Gardens,B2422,Sewerage,81.49,Scottish Water Business Stream Limited,Sewage Charges,2000090,201801,
Rother District Council,27/03/2018,091HOUSING,Housing and Community Services,20115,Rye Area Parks & Gardens,B2422,Sewerage,42.65,Scottish Water Business Stream Limited,Sewage Charges,2000090,201801,
Rother District Council,27/03/2018,031RESOURCES,Executive Directors & Corporate Core,20170,Communications-Postages,D2621,Telephones,264.63,BT British Telecommunications plc,Telephones BT-Rental-General,2000038,201801,
Rother District Council,27/03/2018,101RESOURCES,Resources,20239,Computer Services,D2621,Telephones,267.68,Easynet Ltd,Telephones Leased Line Rental,2000043,201801,
Rother District Council,27/03/2018,071STRAT,Strategy and Planning,20259,Land Charges,E1101,Third party payment other LAs,"12,889.20",East Sussex County Council,Third party payment other LAs Fee Payments to ESCC,2000288,201801,
Rother District Council,27/03/2018,071STRAT,Strategy and Planning,20259,Land Charges,E1101,Third party payment other LAs,"15,120.00",East Sussex County Council,Third party payment other LAs Fee Payments to ESCC,2000289,201801,
Rother District Council,27/03/2018,031RESOURCES,Executive Directors & Corporate Core,32131,Sussex Training Partnership,D2513,Hired and Contracted services,895.00,PHF Training,Training Sussex Train Consor-Training Course,2000261,201801,
Rother District Council,27/03/2018,031RESOURCES,Executive Directors & Corporate Core,32131,Sussex Training Partnership,D2513,Hired and Contracted services,895.00,Yellowday Training Ltd,Training Sussex Train Consor-Training Course,2000271,201801,
Rother District Council,27/03/2018,091HOUSING,Housing and Community Services,20115,Rye Area Parks & Gardens,B2421,Water,86.08,Scottish Water Business Stream Limited,Water Charges,2000090,201801,
Rother District Council,27/03/2018,101RESOURCES,Resources,20239,Computer Services,D2621,Telephones,448.37,Easynet Ltd,Telephones,2000039,201801,
Rother District Council,27/03/2018,081ACQUISIT,"Acquisitions, Transformation and Regeneration",20154,Committee Property Account,B1100,Repairs to Premises,"4,998.69",Alfa Electric Ltd,Repairs to Premises,2000256,201801,
Rother District Council,27/03/2018,081ACQUISIT,"Acquisitions, Transformation and Regeneration",20154,Committee Property Account,B1100,Repairs to Premises,480.00,LCR Fabrications Ltd,Repairs to Premises,2000024,201801,
Rother District Council,27/03/2018,091HOUSING,Housing and Community Services,20200,Housing Needs - HB (Housing Benefit),D2514,Accommodation Costs,175.00,1066 Removal Services,Accommodation Costs,2000262,201801,
Rother District Council,27/03/2018,101RESOURCES,Resources,20226,Service Manager Finance and Welfare,D2813,Officers conference expenses,150.00,CIPFA Business Ltd,Officers conference expenses,2001375,201802,
Rother District Council,28/03/2018,041ENVIRON,Environmental Services,32144,EH Environmental Services Admin R + W Partnership,D2633,Computer Equipment,"3,900.00",Dell Corporation Ltd,Computer Equipment New Computer Hardware,2000343,201801,
Rother District Council,28/03/2018,101RESOURCES,Resources,20216,Cost Of Collection,D2639,Departmental Systems,"3,680.00",Capita Business Services Ltd,Departmental Systems Software for Academy System,2000804,201801,
Rother District Council,28/03/2018,091HOUSING,Housing and Community Services,20114,Bexhill Parks & Open Spaces,B1100,Repairs to Premises,"5,521.00",Joseph Ash - Medway,Equipment & Materials - Parks- Playground Equipment,2000385,201801,
Rother District Council,28/03/2018,081ACQUISIT,"Acquisitions, Transformation and Regeneration",20118,Tourism,D2513,Hired and Contracted services,"1,250.00",Always Possible Ltd,Hired and contracted services Service fee paid to Third Parties,2000297,201801,
Rother District Council,28/03/2018,081ACQUISIT,"Acquisitions, Transformation and Regeneration",20146,West Trading Estate,D2513,Hired and Contracted services,500.00,Valuation Office Agency,Hired and contracted services Valuation Services,2000452,201801,
Rother District Council,28/03/2018,081ACQUISIT,"Acquisitions, Transformation and Regeneration",20146,West Trading Estate,D2513,Hired and Contracted services,70.19,Valuation Office Agency,Hired and contracted services Valuation Services,2000453,201801,
Rother District Council,28/03/2018,071STRAT,Strategy and Planning,20246,Planning Applications,D2513,Hired and Contracted services,373.38,Valuation Office Agency,Hired and contracted services Valuation Services,2000272,201801,
Rother District Council,28/03/2018,101RESOURCES,Resources,20240,Printing Services,D2417,Photocopy Paper,151.93,Premier Paper Group Ltd,Photocopy Paper Colour Copy Paper SRA3,2000322,201801,
Rother District Council,28/03/2018,101RESOURCES,Resources,20216,Cost Of Collection,D2415,Printing,"1,777.22",Virtual Mail Room Ltd,Printing Printing (Not from RDC Print Room),2000765,201801,
Rother District Council,28/03/2018,031RESOURCES,Executive Directors & Corporate Core,20171,Human Resources,A2202,Recruitment expenses,440.34,Johnston Publishing Ltd,Recruitment expenses Advertising Vacant Post,2000081,201801,
Rother District Council,28/03/2018,091HOUSING,Housing and Community Services,20115,Rye Area Parks & Gardens,B1100,Repairs to Premises,"3,494.04",Proludic Ltd,Repairs to Premises Parks - Playground Repairs,2000320,201801,
Rother District Council,28/03/2018,091HOUSING,Housing and Community Services,20114,Bexhill Parks & Open Spaces,B1100,Repairs to Premises,478.70,Palmstead Nurseries Ltd,Repairs to Premises Parks- Purchase of Plants,2000301,201801,
Rother District Council,28/03/2018,091HOUSING,Housing and Community Services,20114,Bexhill Parks & Open Spaces,B1100,Repairs to Premises,5.60,Palmstead Nurseries Ltd,Repairs to Premises Parks- Purchase of Plants,2000301,201801,
Rother District Council,28/03/2018,091HOUSING,Housing and Community Services,20114,Bexhill Parks & Open Spaces,B1100,Repairs to Premises,"1,630.00",Palmstead Nurseries Ltd,Repairs to Premises Parks- Purchase of Plants,2000296,201801,
Rother District Council,28/03/2018,091HOUSING,Housing and Community Services,20114,Bexhill Parks & Open Spaces,B1100,Repairs to Premises,74.62,Palmstead Nurseries Ltd,Repairs to Premises Parks- Purchase of Trees,2000298,201801,
Rother District Council,28/03/2018,081ACQUISIT,"Acquisitions, Transformation and Regeneration",20154,Committee Property Account,B1100,Repairs to Premises,"1,400.00",Niche Interior Design Ltd,Repairs to Premises Repairs - Refurbishment of premises,2000839,201801,
Rother District Council,28/03/2018,091HOUSING,Housing and Community Services,20137,Car Parks,B1100,Repairs to Premises,"1,291.97",D M Building Services,Repairs to Premises Repairs/Maintenance - various,2000040,201801,
Rother District Council,28/03/2018,071STRAT,Strategy and Planning,20246,Planning Applications,D2519,Statutory Advertising,610.00,Johnston Publishing Ltd,Statutory Advertising Planadv - Rye + Battle Observer,2000286,201801,
Rother District Council,28/03/2018,091HOUSING,Housing and Community Services,20114,Bexhill Parks & Open Spaces,D2525,Publicity,219.60,Johnston Publishing Ltd,Statutory Advertising Public Notices in Newspaper,2000120,201801,
Rother District Council,28/03/2018,091HOUSING,Housing and Community Services,20114,Bexhill Parks & Open Spaces,B1100,Repairs to Premises,"4,365.00",P.W Judges & Son,Repairs to Premises,2000025,201801,
Rother District Council,28/03/2018,091HOUSING,Housing and Community Services,20114,Bexhill Parks & Open Spaces,B1100,Repairs to Premises,420.00,Hastings Locksmiths and Key Service,Repairs to Premises,2000501,201801,
Rother District Council,28/03/2018,071STRAT,Strategy and Planning,32147,BC Dangerous Structures R+H Partnership,D2513,Hired and Contracted services,"3,500.00",Wealden District Council,Hired and Contracted services,2000018,201801,
Rother District Council,28/03/2018,101RESOURCES,Resources,20239,Computer Services,D2633,Computer Equipment,46.10,PCM Technology Solutions UK Ltd,Computer Equipment New Computer Hardware,2001026,201802,
Rother District Council,28/03/2018,031RESOURCES,Executive Directors & Corporate Core,20185,Joint Waste procurement,D2513,Hired and Contracted services,"4,641.50",Bevan Brittan LLP,Hired and contracted services Service fee paid to Third Parties,2001120,201802,
Rother District Council,28/03/2018,031RESOURCES,Executive Directors & Corporate Core,20177,Administrative Offices - Rear Depot,B2422,Sewerage,189.52,Scottish Water Business Stream Limited,Sewage Charges,2001416,201802,
Rother District Council,29/03/2018,071STRAT,Strategy and Planning,20259,Land Charges,D2632,Additional Computer Equipment,"1,500.00",Ocella Ltd,Additional Computer Equipment OCELLA Amendments/Upgrading,2000278,201801,
Rother District Council,29/03/2018,101RESOURCES,Resources,20221,Financial Services,A1110,Agency Staff,932.77,Portfolio Payroll Limited,Agency Staff,2000014,201801,
Rother District Council,29/03/2018,081ACQUISIT,"Acquisitions, Transformation and Regeneration",20154,Committee Property Account,D2509,Consultants and Other Services,"2,712.13",Mr R J Sheppard T/A E A R Sheppard,Consultants and other services Consultants Fees,2000572,201801,
Rother District Council,29/03/2018,071STRAT,Strategy and Planning,20246,Planning Applications,D2509,Consultants and Other Services,120.00,Rural Planning Ltd,Consultants and other services Consultants Fees,2000273,201801,
Rother District Council,29/03/2018,091HOUSING,Housing and Community Services,20145,Maintenance Services,D1201,Equipment & Materials,74.60,Jewson Limited,Equipment & Materials Purchase of Tools,2000562,201801,
Rother District Council,29/03/2018,071STRAT,Strategy and Planning,20246,Planning Applications,D1201,Equipment & Materials,104.00,D Cope-Stephens,Equipment & Materials Stakes,2000865,201801,
Rother District Council,29/03/2018,091HOUSING,Housing and Community Services,20137,Car Parks,D1201,Equipment & Materials,162.08,Alfa Electric Ltd,Equipment & Materials Ticket Machine Maintenance/ Repairs,2000279,201801,
Rother District Council,29/03/2018,101RESOURCES,Resources,20216,Cost Of Collection,D2513,Hired and Contracted services,180.00,Inform CPI Ltd,Hired and contracted services RV Finder,2000107,201801,
Rother District Council,29/03/2018,031RESOURCES,Executive Directors & Corporate Core,20175,Administrative Offices - T.H. Annex (NOT CHP),B1100,Repairs to Premises,947.56,Booker and Best Ltd,Repairs to Premises Heating Maintenance,2000382,201801,
Rother District Council,29/03/2018,031RESOURCES,Executive Directors & Corporate Core,20175,Administrative Offices - T.H. Annex (NOT CHP),B1100,Repairs to Premises,947.56,Booker and Best Ltd,Repairs to Premises Heating Maintenance,2000586,201801,
Rother District Council,29/03/2018,031RESOURCES,Executive Directors & Corporate Core,20175,Administrative Offices - T.H. Annex (NOT CHP),B1100,Repairs to Premises,-947.56,Booker and Best Ltd,Repairs to Premises Heating Maintenance,1000043,201801,
Rother District Council,29/03/2018,091HOUSING,Housing and Community Services,20108,Bexhill Promenade & Foreshore,B1100,Repairs to Premises,37.00,Jewson Limited,Repairs to Premises Purchase of Materials - Build Maint,2000563,201801,
Rother District Council,29/03/2018,081ACQUISIT,"Acquisitions, Transformation and Regeneration",20153,"Elva Business Centre, Bexhill",B1100,Repairs to Premises,20.00,MC Glass (East Sussex) Ltd,Repairs to Premises Purchase of Materials - Build Maint,2000613,201801,
Rother District Council,29/03/2018,031RESOURCES,Executive Directors & Corporate Core,20175,Administrative Offices - T.H. Annex (NOT CHP),B1100,Repairs to Premises,"1,599.80",Alfa Electric Ltd,Repairs to Premises Repairs - Electrical Works,2000304,201801,
Rother District Council,29/03/2018,081ACQUISIT,"Acquisitions, Transformation and Regeneration",20154,Committee Property Account,B1100,Repairs to Premises,"15,476.49",J H Payne and Sons Ltd,Repairs to Premises Repairs - Roofing Works,2000293,201801,
Rother District Council,29/03/2018,081ACQUISIT,"Acquisitions, Transformation and Regeneration",20154,Committee Property Account,B1100,Repairs to Premises,"15,476.49",J H Payne and Sons Ltd,Repairs to Premises Repairs - Roofing Works,2000587,201801,
Rother District Council,29/03/2018,081ACQUISIT,"Acquisitions, Transformation and Regeneration",20154,Committee Property Account,B1100,Repairs to Premises,"-15,476.49",J H Payne and Sons Ltd,Repairs to Premises Repairs - Roofing Works,1000042,201801,
Rother District Council,29/03/2018,081ACQUISIT,"Acquisitions, Transformation and Regeneration",20101,Cultural Development,D2923,Grants made,500.00,Dens & Signals,Grants made Arts Development Projects,2001412,201802,Yes,,
Rother District Council,29/03/2018,101RESOURCES,Resources,20216,Cost Of Collection,D2513,Hired and Contracted services,18.00,H M Land Registry,Hired and contracted services Council Tax-Land Registry Enquiries,2001293,201802,
Rother District Council,29/03/2018,041ENVIRON,Environmental Services,32144,EH Environmental Services Admin R + W Partnership,D2513,Hired and Contracted services,6.00,H M Land Registry,Hired and contracted services Env H- Land Registry,2001293,201802,
Rother District Council,29/03/2018,041ENVIRON,Environmental Services,20141,Private Sector Housing,D2513,Hired and Contracted services,3.00,H M Land Registry,Hired and contracted services Housing- Land Registry,2001293,201802,
Rother District Council,29/03/2018,071STRAT,Strategy and Planning,20246,Planning Applications,D2513,Hired and Contracted services,27.00,H M Land Registry,Hired and contracted services Land Registry - Planning,2001293,201802,
Rother District Council,29/03/2018,101RESOURCES,Resources,20217,Reliefs & Benefits-Council Tax Benefit,D2513,Hired and Contracted services,"2,407.15",Capita Business Services Ltd,Hired and contracted services Off-site resilience processing,2001095,201802,
Rother District Council,29/03/2018,101RESOURCES,Resources,20216,Cost Of Collection,D2415,Printing,"8,512.95",Virtual Mail Room Ltd,Printing Printing (Not from RDC Print Room),2001199,201802,
Rother District Council,30/03/2018,031RESOURCES,Executive Directors & Corporate Core,20173,Administrative Offices - Town Hall,B2612,Cleaning materials,122.75,Wightman and Parrish Ltd,Cleaning materials Premises,2000325,201801,
Rother District Council,30/03/2018,091HOUSING,Housing and Community Services,20114,Bexhill Parks & Open Spaces,B2731,Grounds maintenance routine,"69,116.91",Idverde Limited,Grounds maintenance routine Parks-Grounds Maintenance Contracts,2000604,201801,
Rother District Council,30/03/2018,091HOUSING,Housing and Community Services,20134,Recycling,D2513,Hired and Contracted services,109.60,Data Shredding Services Ltd,Hired and contracted services Charges - Confidential Office Waste,2000335,201801,
Rother District Council,30/03/2018,091HOUSING,Housing and Community Services,20261,"41 Jameson Mews, Bexhill on Sea",D2513,Hired and Contracted services,25.00,Ophrah Oak Limited,Hired and contracted services Service fee paid to Third Parties,2000458,201801,
Rother District Council,30/03/2018,091HOUSING,Housing and Community Services,20128,Public Conveniences,B2422,Sewerage,468.73,Scottish Water Business Stream Limited,Sewage Charges,2000092,201801,
Rother District Council,30/03/2018,091HOUSING,Housing and Community Services,20128,Public Conveniences,B2422,Sewerage,7.82,Scottish Water Business Stream Limited,Sewage Charges,2000092,201801,
Rother District Council,30/03/2018,091HOUSING,Housing and Community Services,20128,Public Conveniences,B2421,Water,297.52,Scottish Water Business Stream Limited,Water Charges,2000092,201801,
Rother District Council,30/03/2018,031RESOURCES,Executive Directors & Corporate Core,32131,Sussex Training Partnership,D2513,Hired and Contracted services,"1,150.00",Justin McCarron Ltd,Hired and Contracted services,2000341,201801,
Rother District Council,30/03/2018,091HOUSING,Housing and Community Services,20200,Housing Needs - HB (Housing Benefit),D2514,Accommodation Costs,280.00,MB Hotels Ltd,Accommodation Costs,2000551,201801,
Rother District Council,30/03/2018,091HOUSING,Housing and Community Services,20200,Housing Needs - HB (Housing Benefit),D2514,Accommodation Costs,240.00,MB Hotels Ltd,Accommodation Costs,2000552,201801,
Rother District Council,30/03/2018,091HOUSING,Housing and Community Services,20200,Housing Needs - HB (Housing Benefit),D2514,Accommodation Costs,392.00,MB Hotels Ltd,Accommodation Costs,2000464,201801,
Rother District Council,30/03/2018,091HOUSING,Housing and Community Services,20200,Housing Needs - HB (Housing Benefit),D2514,Accommodation Costs,240.00,MB Hotels Ltd,Accommodation Costs,2000466,201801,
Rother District Council,30/03/2018,091HOUSING,Housing and Community Services,20200,Housing Needs - HB (Housing Benefit),D2514,Accommodation Costs,448.00,MB Hotels Ltd,Accommodation Costs,2000462,201801,
Rother District Council,30/03/2018,091HOUSING,Housing and Community Services,20203,Housing Needs - Universal Credit,D2514,Accommodation Costs,300.00,MB Hotels Ltd,Accommodation Costs,2000463,201801,
Rother District Council,30/03/2018,091HOUSING,Housing and Community Services,20203,Housing Needs - Universal Credit,D2514,Accommodation Costs,240.00,MB Hotels Ltd,Accommodation Costs,2000465,201801,
Rother District Council,30/03/2018,091HOUSING,Housing and Community Services,20203,Housing Needs - Universal Credit,D2514,Accommodation Costs,336.00,MB Hotels Ltd,Accommodation Costs,2000467,201801,
Rother District Council,30/03/2018,101RESOURCES,Resources,20239,Computer Services,D2633,Computer Equipment,120.17,PCM Technology Solutions UK Ltd,Computer Equipment New Computer Hardware,2001028,201802,
Rother District Council,30/03/2018,101RESOURCES,Resources,20239,Computer Services,D2633,Computer Equipment,-120.17,PCM Technology Solutions UK Ltd,Computer Equipment New Computer Hardware,2001036,201802,
Rother District Council,31/03/2018,101RESOURCES,Resources,20227,Cashiers,D2515,Cash Collection,210.00,Jade Security Services Ltd,Cash Collection Cash Security-Bexhill,2000409,201801,
Rother District Council,31/03/2018,101RESOURCES,Resources,20239,Computer Services,D2509,Consultants and Other Services,103.00,Wilson�s Express Hastings Ltd,Consultants and other services Consultants Fees,2000448,201801,
Rother District Council,31/03/2018,091HOUSING,Housing and Community Services,20234,Battle Community Help Point,B2611,Contract cleaning,205.70,Abacus Main Ltd,Contract cleaning Office Cleaning,2000862,201801,
Rother District Council,31/03/2018,031RESOURCES,Executive Directors & Corporate Core,20173,Administrative Offices - Town Hall,B2611,Contract cleaning,380.00,Abacus Main Ltd,Contract cleaning Office Cleaning,2000346,201801,
Rother District Council,31/03/2018,091HOUSING,Housing and Community Services,20123,Cemeteries,B2611,Contract cleaning,15.00,Abacus Main Ltd,Contract cleaning Parks- Chapel Cleaning,2000398,201801,
Rother District Council,31/03/2018,091HOUSING,Housing and Community Services,20145,Maintenance Services,D1201,Equipment & Materials,20.82,Thorcraft Ltd,Equipment & Materials Purchase of Tools,2000610,201801,
Rother District Council,31/03/2018,091HOUSING,Housing and Community Services,20137,Car Parks,D2513,Hired and Contracted services,"1,018.74",Cobalt Telephone Technologies Ltd,Hired and contracted services Car Parks - RingGo service charges,2000030,201801,
Rother District Council,31/03/2018,091HOUSING,Housing and Community Services,20137,Car Parks,D2513,Hired and Contracted services,"2,027.57",Jade Security Services Ltd,Hired and contracted services Cash Security Fees-Car Parks,2000409,201801,
Rother District Council,31/03/2018,041ENVIRON,Environmental Services,32143,EH Licenses and Registration R + W Partnership,D2513,Hired and Contracted services,216.00,Blowey & Wood Veterinary Surgeons,Hired and contracted services EnvH-Veterinary Services for Licens,2000844,201801,
Rother District Council,31/03/2018,091HOUSING,Housing and Community Services,20134,Recycling,D2513,Hired and Contracted services,440.00,Sussex Waste Management Ltd,Hired and contracted services Hire of Skip,2000117,201801,
Rother District Council,31/03/2018,091HOUSING,Housing and Community Services,20261,"41 Jameson Mews, Bexhill on Sea",D2513,Hired and Contracted services,"6,432.42",Ophrah Oak Limited,Hired and contracted services Service fee paid to Third Parties,2000459,201801,
Rother District Council,31/03/2018,041ENVIRON,Environmental Services,32142,EH Taxi and Private Hire Licenses R + W Partnership,D2513,Hired and Contracted services,308.00,DBS The Disclosure and Barring Service,Hired and contracted services Service fee paid to Third Parties,2000821,201801,
Rother District Council,31/03/2018,031RESOURCES,Executive Directors & Corporate Core,32131,Sussex Training Partnership,D2513,Hired and Contracted services,57.60,Astutis Limited,Hired and contracted services STC - Travel and subsistence,2000295,201801,
Rother District Council,31/03/2018,091HOUSING,Housing and Community Services,20200,Housing Needs - HB (Housing Benefit),D2636,Computer Software,"1,250.00",LHS Locata (Housing Services) Ltd,Hired and contracted services Technical Support,2000315,201801,
Rother District Council,31/03/2018,071STRAT,Strategy and Planning,20244,General Planning Expenses,D1204,Newspapers & Periodicals,15.00,Pipers News Ltd,Newspapers & Periodicals Newspapers,2000580,201801,
Rother District Council,31/03/2018,101RESOURCES,Resources,20216,Cost Of Collection,D2626,Postages,"1,658.77",Virtual Mail Room Ltd,Postages Postages - Virtual Mail Room,2000762,201801,
Rother District Council,31/03/2018,101RESOURCES,Resources,20217,Reliefs & Benefits-Council Tax Benefit,D2626,Postages,"1,658.77",Virtual Mail Room Ltd,Postages Postages - Virtual Mail Room,2000762,201801,
Rother District Council,31/03/2018,091HOUSING,Housing and Community Services,20116,Rural Open Spaces & Amenities,B1100,Repairs to Premises,"1,440.00",Gristwood and Toms Limited,Repairs to Premises Parks- Tree Works,2000305,201801,
Rother District Council,31/03/2018,091HOUSING,Housing and Community Services,20114,Bexhill Parks & Open Spaces,B1100,Repairs to Premises,"4,590.00",Gristwood and Toms Limited,Repairs to Premises Parks- Tree Works,2000035,201801,
Rother District Council,31/03/2018,091HOUSING,Housing and Community Services,20114,Bexhill Parks & Open Spaces,B1100,Repairs to Premises,"4,980.00",Gristwood and Toms Limited,Repairs to Premises Parks- Tree Works,2000050,201801,
Rother District Council,31/03/2018,091HOUSING,Housing and Community Services,20108,Bexhill Promenade & Foreshore,B1100,Repairs to Premises,7.91,C Brewer and Sons Ltd,Repairs to Premises Purchase of Materials - Build Maint,2000577,201801,
Rother District Council,31/03/2018,091HOUSING,Housing and Community Services,20108,Bexhill Promenade & Foreshore,B1100,Repairs to Premises,14.73,C Brewer and Sons Ltd,Repairs to Premises Purchase of Materials - Build Maint,2000574,201801,
Rother District Council,31/03/2018,081ACQUISIT,"Acquisitions, Transformation and Regeneration",20154,Committee Property Account,B1100,Repairs to Premises,67.57,C Brewer and Sons Ltd,Repairs to Premises Purchase of Materials - Build Maint,2000573,201801,
Rother District Council,31/03/2018,091HOUSING,Housing and Community Services,20137,Car Parks,B1100,Repairs to Premises,450.00,John O� Conner (Grounds Maintenance) Ltd,Repairs to Premises White Lining in Car Parks,2000399,201801,
Rother District Council,31/03/2018,101RESOURCES,Resources,20241,Stationery,D2416,Stationery,88.10,SBS Consumables,Stationery General Stationery (Print Room ONLY,2000323,201801,
Rother District Council,31/03/2018,071STRAT,Strategy and Planning,20246,Planning Applications,D2519,Statutory Advertising,247.20,Local World Ltd,Statutory Advertising Planadv- Kent + East Sussex Courier,2000276,201801,
Rother District Council,31/03/2018,091HOUSING,Housing and Community Services,20200,Housing Needs - HB (Housing Benefit),D2922,Subscriptions,"1,838.50",LHS Locata (Housing Services) Ltd,Subscriptions Choice Based Letting Membership,2000317,201801,
Rother District Council,31/03/2018,031RESOURCES,Executive Directors & Corporate Core,32131,Sussex Training Partnership,D2513,Hired and Contracted services,936.00,Astutis Limited,Training Sussex Train Consor-Training Course,2000295,201801,
Rother District Council,31/03/2018,091HOUSING,Housing and Community Services,20206,Syrians,D2513,Hired and Contracted services,"2,700.00",Rye College,Hired and Contracted services,2000605,201801,
Rother District Council,31/03/2018,071STRAT,Strategy and Planning,20255,Local Development Framework,D2415,Printing,"1,467.06",Electoral Reform Services Ltd,Printing,2000668,201801,
Rother District Council,31/03/2018,031RESOURCES,Executive Directors & Corporate Core,20172,Facilities Management,D1204,Newspapers & Periodicals,15.00,Pipers News Ltd,Newspapers & Periodicals,2000285,201801,
Rother District Council,31/03/2018,031RESOURCES,Executive Directors & Corporate Core,20156,Representing Local Interest,D1204,Newspapers & Periodicals,15.00,Pipers News Ltd,Newspapers & Periodicals,2000284,201801,
Rother District Council,31/03/2018,091HOUSING,Housing and Community Services,20200,Housing Needs - HB (Housing Benefit),D2513,Hired and Contracted services,72.00,NowMedical,Hired and Contracted services,2000490,201801,
Rother District Council,31/03/2018,091HOUSING,Housing and Community Services,20200,Housing Needs - HB (Housing Benefit),D2514,Accommodation Costs,"1,470.00",LESSHOMELESS LTD,Accommodation Costs,2000549,201801,
Rother District Council,31/03/2018,091HOUSING,Housing and Community Services,20200,Housing Needs - HB (Housing Benefit),D2514,Accommodation Costs,"1,519.00",LESSHOMELESS LTD,Accommodation Costs,2000549,201801,
Rother District Council,31/03/2018,091HOUSING,Housing and Community Services,20200,Housing Needs - HB (Housing Benefit),D2514,Accommodation Costs,"1,302.00",LESSHOMELESS LTD,Accommodation Costs,2000549,201801,
Rother District Council,31/03/2018,091HOUSING,Housing and Community Services,20200,Housing Needs - HB (Housing Benefit),D2514,Accommodation Costs,360.00,LESSHOMELESS LTD,Accommodation Costs,2000550,201801,
Rother District Council,31/03/2018,091HOUSING,Housing and Community Services,20200,Housing Needs - HB (Housing Benefit),D2514,Accommodation Costs,"1,209.00",LESSHOMELESS LTD,Accommodation Costs,2000550,201801,
Rother District Council,31/03/2018,091HOUSING,Housing and Community Services,20203,Housing Needs - Universal Credit,D2513,Hired and Contracted services,185.00,NowMedical,Hired and Contracted services,2000487,201801,
Rother District Council,31/03/2018,091HOUSING,Housing and Community Services,20203,Housing Needs - Universal Credit,D2514,Accommodation Costs,"1,395.00",LESSHOMELESS LTD,Accommodation Costs,2000550,201801,
Rother District Council,31/03/2018,091HOUSING,Housing and Community Services,20107,Camber Beach & Foreshore,C1104,Derv,1.90,Allstar Business Solutions,Derv Fuel Service fee payable on fuel cards,2001465,201802,
Rother District Council,31/03/2018,101RESOURCES,Resources,20216,Cost Of Collection,D2513,Hired and Contracted services,67.41,allpay.net Ltd,Hired and contracted services Allpay Card/Rep/Let Chrg - Vatable,2001265,201802,
Rother District Council,31/03/2018,101RESOURCES,Resources,20216,Cost Of Collection,D2513,Hired and Contracted services,21.94,allpay.net Ltd,Hired and contracted services Allpay Card/Rep/Let Chrg - Vatable,2001261,201802,
Rother District Council,31/03/2018,101RESOURCES,Resources,20216,Cost Of Collection,D2513,Hired and Contracted services,55.59,allpay.net Ltd,Hired and contracted services Allpay Card/Rep/Let Chrg - Vatable,2001263,201802,
Rother District Council,31/03/2018,101RESOURCES,Resources,20216,Cost Of Collection,D2513,Hired and Contracted services,"1,264.11",allpay.net Ltd,Hired and contracted services Allpay Card/Rep/Let Chrg - Vatable,2001264,201802,
Rother District Council,31/03/2018,091HOUSING,Housing and Community Services,20145,Maintenance Services,C1104,Derv,41.67,Allstar Business Solutions,Fuel cards,2001465,201802,
Rother District Council,31/03/2018,091HOUSING,Housing and Community Services,20145,Maintenance Services,C1104,Derv,72.50,Allstar Business Solutions,Fuel cards,2001465,201802,
Rother District Council,31/03/2018,091HOUSING,Housing and Community Services,20107,Camber Beach & Foreshore,C1104,Derv,31.20,Allstar Business Solutions,Fuel cards,2001465,201802,
Rother District Council,31/03/2018,091HOUSING,Housing and Community Services,20108,Bexhill Promenade & Foreshore,B2611,Contract cleaning,"1,226.00",Abacus Main Ltd,Contract cleaning Office Cleaning,2001663,201803,
Rother District Council,01/04/2018,101RESOURCES,Resources,20239,Computer Services,D2635,Computer Licences,"33,401.08",GGP Systems Ltd,Computer Licences GIS System,2000625,201801,
Rother District Council,01/04/2018,091HOUSING,Housing and Community Services,20107,Camber Beach & Foreshore,D2513,Hired and Contracted services,290.88,Clearwater Technology Ltd,Hired & Contracted Serv- Legionella Sampling and Monitoring,2000329,201801,
Rother District Council,01/04/2018,101RESOURCES,Resources,20209,Corporate management,D2513,Hired and Contracted services,35.55,Merchant Rentals Ltd,Hired and contracted services Streamline Machine-Rental,2000741,201801,
Rother District Council,01/04/2018,091HOUSING,Housing and Community Services,20123,Cemeteries,D2922,Subscriptions,445.00,Institute of Cemetery and Crematorium  Management,Subscriptions Parks- Subscriptions,2000417,201801,
Rother District Council,01/04/2018,031RESOURCES,Executive Directors & Corporate Core,20171,Human Resources,D2922,Subscriptions,751.90,Croner-I,Subscriptions Subscription to Organisations,2000444,201801,
Rother District Council,01/04/2018,101RESOURCES,Resources,20242,Communications-Phones,D2621,Telephones,641.65,KCOM Group Plc,Telephones KCOM Smartnumber Charges,2000045,201801,
Rother District Council,01/04/2018,101RESOURCES,Resources,20239,Computer Services,D2621,Telephones,"2,250.20",Vodafone Limited,Telephones Leased Line Rental,2000324,201801,
Rother District Council,01/04/2018,101RESOURCES,Resources,20242,Communications-Phones,D2621,Telephones,13.99,Daisy Communications PLC,Telephones Telephone Call Costs + Line Rental,2000316,201801,
Rother District Council,01/04/2018,101RESOURCES,Resources,20242,Communications-Phones,D2621,Telephones,13.99,Daisy Communications PLC,Telephones Telephone Call Costs + Line Rental,2000316,201801,
Rother District Council,01/04/2018,101RESOURCES,Resources,20242,Communications-Phones,D2621,Telephones,13.99,Daisy Communications PLC,Telephones Telephone Call Costs + Line Rental,2000316,201801,
Rother District Council,01/04/2018,101RESOURCES,Resources,20242,Communications-Phones,D2621,Telephones,14.22,Daisy Communications PLC,Telephones Telephone Call Costs + Line Rental,2000316,201801,
Rother District Council,01/04/2018,101RESOURCES,Resources,20242,Communications-Phones,D2621,Telephones,13.99,Daisy Communications PLC,Telephones Telephone Call Costs + Line Rental,2000316,201801,
Rother District Council,01/04/2018,101RESOURCES,Resources,20242,Communications-Phones,D2621,Telephones,13.99,Daisy Communications PLC,Telephones Telephone Call Costs + Line Rental,2000316,201801,
Rother District Council,01/04/2018,101RESOURCES,Resources,20239,Computer Services,D2621,Telephones,13.99,Daisy Communications PLC,Telephones Telephone Call Costs + Line Rental,2000316,201801,
Rother District Council,01/04/2018,101RESOURCES,Resources,20239,Computer Services,D2621,Telephones,13.99,Daisy Communications PLC,Telephones Telephone Call Costs + Line Rental,2000316,201801,
Rother District Council,01/04/2018,091HOUSING,Housing and Community Services,20102,Rother Museum Services,D2621,Telephones,13.99,Daisy Communications PLC,Telephones Telephone Call Costs + Line Rental,2000316,201801,
Rother District Council,01/04/2018,091HOUSING,Housing and Community Services,20107,Camber Beach & Foreshore,D2621,Telephones,14.09,Daisy Communications PLC,Telephones Telephone Call Costs + Line Rental,2000316,201801,
Rother District Council,01/04/2018,091HOUSING,Housing and Community Services,20107,Camber Beach & Foreshore,D2621,Telephones,15.01,Daisy Communications PLC,Telephones Telephone Call Costs + Line Rental,2000316,201801,
Rother District Council,01/04/2018,041ENVIRON,Environmental Services,32134,EH Pollution R + W Partnership,D2621,Telephones,13.99,Daisy Communications PLC,Telephones Telephone Call Costs + Line Rental,2000316,201801,
Rother District Council,01/04/2018,031RESOURCES,Executive Directors & Corporate Core,20180,Emergency Planning,D2621,Telephones,13.99,Daisy Communications PLC,Telephones Telephone Call Costs + Line Rental,2000316,201801,
Rother District Council,01/04/2018,031RESOURCES,Executive Directors & Corporate Core,20179,Communications,E1101,Third party payment other LAs,"3,600.00",East Sussex County Council,Third party payment other LAs Communications - Officer costs,2000106,201801,
Rother District Council,01/04/2018,101RESOURCES,Resources,20242,Communications-Phones,D2621,Telephones,13.00,KCOM Group Plc,Telephones,2000376,201801,
Rother District Council,01/04/2018,091HOUSING,Housing and Community Services,20128,Public Conveniences,B2611,Contract cleaning,"16,354.33",Specialist Hygiene Services Ltd,Contract cleaning,2000350,201801,
Rother District Council,01/04/2018,091HOUSING,Housing and Community Services,20200,Housing Needs - HB (Housing Benefit),D2508,Removals and Storage,160.00,1066 Removal Services,Removals and Storage,2000504,201801,
Rother District Council,01/04/2018,091HOUSING,Housing and Community Services,20200,Housing Needs - HB (Housing Benefit),D2508,Removals and Storage,120.00,1066 Removal Services,Removals and Storage,2000506,201801,
Rother District Council,01/04/2018,091HOUSING,Housing and Community Services,20200,Housing Needs - HB (Housing Benefit),D2508,Removals and Storage,160.00,1066 Removal Services,Removals and Storage,2000507,201801,
Rother District Council,01/04/2018,091HOUSING,Housing and Community Services,20200,Housing Needs - HB (Housing Benefit),D2508,Removals and Storage,160.00,1066 Removal Services,Removals and Storage,2000508,201801,
Rother District Council,01/04/2018,091HOUSING,Housing and Community Services,20200,Housing Needs - HB (Housing Benefit),D2508,Removals and Storage,200.00,1066 Removal Services,Removals and Storage,2000509,201801,
Rother District Council,01/04/2018,091HOUSING,Housing and Community Services,20200,Housing Needs - HB (Housing Benefit),D2508,Removals and Storage,160.00,1066 Removal Services,Removals and Storage,2000503,201801,
Rother District Council,01/04/2018,091HOUSING,Housing and Community Services,20200,Housing Needs - HB (Housing Benefit),D2514,Accommodation Costs,350.00,Specialist Care UK Group Ltd,Accommodation Costs,2000478,201801,
Rother District Council,01/04/2018,091HOUSING,Housing and Community Services,20200,Housing Needs - HB (Housing Benefit),D2514,Accommodation Costs,375.00,Specialist Care UK Group Ltd,Accommodation Costs,2000483,201801,
Rother District Council,01/04/2018,091HOUSING,Housing and Community Services,20200,Housing Needs - HB (Housing Benefit),D2514,Accommodation Costs,462.50,Specialist Care UK Group Ltd,Accommodation Costs,2000485,201801,
Rother District Council,01/04/2018,091HOUSING,Housing and Community Services,20203,Housing Needs - Universal Credit,D2514,Accommodation Costs,25.00,Specialist Care UK Group Ltd,Accommodation Costs,2000553,201801,
Rother District Council,01/04/2018,091HOUSING,Housing and Community Services,20203,Housing Needs - Universal Credit,D2514,Accommodation Costs,262.50,Specialist Care UK Group Ltd,Accommodation Costs,2000474,201801,
Rother District Council,01/04/2018,091HOUSING,Housing and Community Services,20203,Housing Needs - Universal Credit,D2514,Accommodation Costs,420.00,Specialist Care UK Group Ltd,Accommodation Costs,2000468,201801,
Rother District Council,01/04/2018,091HOUSING,Housing and Community Services,20203,Housing Needs - Universal Credit,D2514,Accommodation Costs,262.50,Specialist Care UK Group Ltd,Accommodation Costs,2000469,201801,
Rother District Council,01/04/2018,091HOUSING,Housing and Community Services,20203,Housing Needs - Universal Credit,D2514,Accommodation Costs,262.50,Specialist Care UK Group Ltd,Accommodation Costs,2000470,201801,
Rother District Council,01/04/2018,091HOUSING,Housing and Community Services,20203,Housing Needs - Universal Credit,D2514,Accommodation Costs,262.50,Specialist Care UK Group Ltd,Accommodation Costs,2000471,201801,
Rother District Council,01/04/2018,091HOUSING,Housing and Community Services,20203,Housing Needs - Universal Credit,D2514,Accommodation Costs,300.00,Specialist Care UK Group Ltd,Accommodation Costs,2000472,201801,
Rother District Council,01/04/2018,091HOUSING,Housing and Community Services,20203,Housing Needs - Universal Credit,D2514,Accommodation Costs,187.50,Specialist Care UK Group Ltd,Accommodation Costs,2000475,201801,
Rother District Council,01/04/2018,091HOUSING,Housing and Community Services,20203,Housing Needs - Universal Credit,D2514,Accommodation Costs,262.50,Specialist Care UK Group Ltd,Accommodation Costs,2000480,201801,
Rother District Council,01/04/2018,101RESOURCES,Resources,20209,Corporate management,D2513,Hired and Contracted services,20.00,Lloyds Bank,Bank Charges Bank Charges,2001295,201802,
Rother District Council,01/04/2018,101RESOURCES,Resources,20209,Corporate management,D2513,Hired and Contracted services,241.75,Lloyds Bank,Bank Charges Bank Charges,2001296,201802,
Rother District Council,01/04/2018,101RESOURCES,Resources,20209,Corporate management,D2513,Hired and Contracted services,"1,043.05",Lloyds Bank,Bank Charges Bank Charges,2001297,201802,
Rother District Council,01/04/2018,101RESOURCES,Resources,20209,Corporate management,D2513,Hired and Contracted services,555.67,Lloyds Bank,Bank Charges Bank Charges,2001298,201802,
Rother District Council,01/04/2018,101RESOURCES,Resources,20209,Corporate management,D2513,Hired and Contracted services,20.00,Lloyds Bank,Bank Charges Bank Charges,2001299,201802,
Rother District Council,01/04/2018,101RESOURCES,Resources,20209,Corporate management,D2513,Hired and Contracted services,20.00,Lloyds Bank,Bank Charges Bank Charges,2001300,201802,
Rother District Council,01/04/2018,101RESOURCES,Resources,20209,Corporate management,D2513,Hired and Contracted services,20.00,Lloyds Bank,Bank Charges Bank Charges,2001301,201802,
Rother District Council,01/04/2018,101RESOURCES,Resources,20209,Corporate management,D2513,Hired and Contracted services,20.00,Lloyds Bank,Bank Charges Bank Charges,2001302,201802,
Rother District Council,01/04/2018,101RESOURCES,Resources,20209,Corporate management,D2513,Hired and Contracted services,20.00,Lloyds Bank,Bank Charges Bank Charges,2001303,201802,
Rother District Council,01/04/2018,101RESOURCES,Resources,20209,Corporate management,D2513,Hired and Contracted services,20.00,Lloyds Bank,Bank Charges Bank Charges,2001304,201802,
Rother District Council,01/04/2018,101RESOURCES,Resources,20239,Computer Services,D2520,Insurance,"14,819.00",Centerprise International Limited,Hired and contracted services Disaster Plan Subscription,2001175,201802,
Rother District Council,01/04/2018,091HOUSING,Housing and Community Services,20200,Housing Needs - HB (Housing Benefit),D2514,Accommodation Costs,25.00,Specialist Care UK Group Ltd,Accommodation Costs,2000926,201802,
Rother District Council,01/04/2018,091HOUSING,Housing and Community Services,20200,Housing Needs - HB (Housing Benefit),D2514,Accommodation Costs,350.00,Specialist Care UK Group Ltd,Accommodation Costs,2000925,201802,
Rother District Council,01/04/2018,091HOUSING,Housing and Community Services,20203,Housing Needs - Universal Credit,D2514,Accommodation Costs,175.00,Specialist Care UK Group Ltd,Accommodation Costs,2000927,201802,
Rother District Council,02/04/2018,101RESOURCES,Resources,20240,Printing Services,D2417,Photocopy Paper,266.59,Canon (UK) Ltd,Photocopy Paper Wide Format Consumables,2000303,201801,
Rother District Council,02/04/2018,101RESOURCES,Resources,20216,Cost Of Collection,D2626,Postages,4.20,Royal Mail Group Ltd,Postages Response Service - Royal Mail Chg,2000771,201801,
Rother District Council,02/04/2018,091HOUSING,Housing and Community Services,20107,Camber Beach & Foreshore,D2623,Radios and licences,75.00,Ofcom - Radio Licence Fees,Radios and licences Radio/Transmitter Licences,2000312,201801,
Rother District Council,02/04/2018,091HOUSING,Housing and Community Services,20200,Housing Needs - HB (Housing Benefit),D2513,Hired and Contracted services,84.00,Solutions Accommodation Providers Ltd,Hired and Contracted services,2000359,201801,
Rother District Council,02/04/2018,091HOUSING,Housing and Community Services,20200,Housing Needs - HB (Housing Benefit),D2513,Hired and Contracted services,336.00,Solutions Accommodation Providers Ltd,Hired and Contracted services,2000359,201801,
Rother District Council,02/04/2018,091HOUSING,Housing and Community Services,20200,Housing Needs - HB (Housing Benefit),D2513,Hired and Contracted services,98.00,Solutions Accommodation Providers Ltd,Hired and Contracted services,2000368,201801,
Rother District Council,02/04/2018,091HOUSING,Housing and Community Services,20200,Housing Needs - HB (Housing Benefit),D2513,Hired and Contracted services,392.00,Solutions Accommodation Providers Ltd,Hired and Contracted services,2000368,201801,
Rother District Council,02/04/2018,091HOUSING,Housing and Community Services,20200,Housing Needs - HB (Housing Benefit),D2513,Hired and Contracted services,98.00,Solutions Accommodation Providers Ltd,Hired and Contracted services,2000369,201801,
Rother District Council,02/04/2018,091HOUSING,Housing and Community Services,20200,Housing Needs - HB (Housing Benefit),D2513,Hired and Contracted services,392.00,Solutions Accommodation Providers Ltd,Hired and Contracted services,2000369,201801,
Rother District Council,02/04/2018,091HOUSING,Housing and Community Services,20200,Housing Needs - HB (Housing Benefit),D2513,Hired and Contracted services,84.00,Solutions Accommodation Providers Ltd,Hired and Contracted services,2000370,201801,
Rother District Council,02/04/2018,091HOUSING,Housing and Community Services,20200,Housing Needs - HB (Housing Benefit),D2513,Hired and Contracted services,336.00,Solutions Accommodation Providers Ltd,Hired and Contracted services,2000370,201801,
Rother District Council,02/04/2018,091HOUSING,Housing and Community Services,20200,Housing Needs - HB (Housing Benefit),D2514,Accommodation Costs,168.00,Saffron HMO Ltd,Accommodation Costs,2000525,201801,
Rother District Council,02/04/2018,091HOUSING,Housing and Community Services,20200,Housing Needs - HB (Housing Benefit),D2514,Accommodation Costs,280.00,Saffron HMO Ltd,Accommodation Costs,2000510,201801,
Rother District Council,02/04/2018,091HOUSING,Housing and Community Services,20200,Housing Needs - HB (Housing Benefit),D2514,Accommodation Costs,70.00,Saffron HMO Ltd,Accommodation Costs,2000510,201801,
Rother District Council,02/04/2018,091HOUSING,Housing and Community Services,20200,Housing Needs - HB (Housing Benefit),D2514,Accommodation Costs,134.40,Saffron HMO Ltd,Accommodation Costs,2000514,201801,
Rother District Council,02/04/2018,091HOUSING,Housing and Community Services,20200,Housing Needs - HB (Housing Benefit),D2514,Accommodation Costs,33.60,Saffron HMO Ltd,Accommodation Costs,2000514,201801,
Rother District Council,02/04/2018,091HOUSING,Housing and Community Services,20203,Housing Needs - Universal Credit,D2513,Hired and Contracted services,280.00,Solutions Accommodation Providers Ltd,Hired and Contracted services,2000355,201801,
Rother District Council,02/04/2018,091HOUSING,Housing and Community Services,20203,Housing Needs - Universal Credit,D2513,Hired and Contracted services,70.00,Solutions Accommodation Providers Ltd,Hired and Contracted services,2000355,201801,
Rother District Council,02/04/2018,091HOUSING,Housing and Community Services,20203,Housing Needs - Universal Credit,D2513,Hired and Contracted services,77.00,Solutions Accommodation Providers Ltd,Hired and Contracted services,2000362,201801,
Rother District Council,02/04/2018,091HOUSING,Housing and Community Services,20203,Housing Needs - Universal Credit,D2513,Hired and Contracted services,308.00,Solutions Accommodation Providers Ltd,Hired and Contracted services,2000362,201801,
Rother District Council,02/04/2018,091HOUSING,Housing and Community Services,20203,Housing Needs - Universal Credit,D2513,Hired and Contracted services,52.50,Solutions Accommodation Providers Ltd,Hired and Contracted services,2000366,201801,
Rother District Council,02/04/2018,091HOUSING,Housing and Community Services,20203,Housing Needs - Universal Credit,D2513,Hired and Contracted services,210.00,Solutions Accommodation Providers Ltd,Hired and Contracted services,2000366,201801,
Rother District Council,02/04/2018,091HOUSING,Housing and Community Services,20203,Housing Needs - Universal Credit,D2513,Hired and Contracted services,84.00,Solutions Accommodation Providers Ltd,Hired and Contracted services,2000367,201801,
Rother District Council,02/04/2018,091HOUSING,Housing and Community Services,20203,Housing Needs - Universal Credit,D2513,Hired and Contracted services,336.00,Solutions Accommodation Providers Ltd,Hired and Contracted services,2000367,201801,
Rother District Council,02/04/2018,091HOUSING,Housing and Community Services,20203,Housing Needs - Universal Credit,D2513,Hired and Contracted services,12.00,Solutions Accommodation Providers Ltd,Hired and Contracted services,2000371,201801,
Rother District Council,02/04/2018,091HOUSING,Housing and Community Services,20203,Housing Needs - Universal Credit,D2513,Hired and Contracted services,48.00,Solutions Accommodation Providers Ltd,Hired and Contracted services,2000371,201801,
Rother District Council,02/04/2018,091HOUSING,Housing and Community Services,20203,Housing Needs - Universal Credit,D2513,Hired and Contracted services,84.00,Solutions Accommodation Providers Ltd,Hired and Contracted services,2000372,201801,
Rother District Council,02/04/2018,091HOUSING,Housing and Community Services,20203,Housing Needs - Universal Credit,D2513,Hired and Contracted services,336.00,Solutions Accommodation Providers Ltd,Hired and Contracted services,2000372,201801,
Rother District Council,02/04/2018,091HOUSING,Housing and Community Services,20203,Housing Needs - Universal Credit,D2513,Hired and Contracted services,490.00,Solutions Accommodation Providers Ltd,Hired and Contracted services,2000373,201801,
Rother District Council,02/04/2018,091HOUSING,Housing and Community Services,20203,Housing Needs - Universal Credit,D2513,Hired and Contracted services,84.00,Solutions Accommodation Providers Ltd,Hired and Contracted services,2000374,201801,
Rother District Council,02/04/2018,091HOUSING,Housing and Community Services,20203,Housing Needs - Universal Credit,D2513,Hired and Contracted services,336.00,Solutions Accommodation Providers Ltd,Hired and Contracted services,2000374,201801,
Rother District Council,02/04/2018,091HOUSING,Housing and Community Services,20203,Housing Needs - Universal Credit,D2513,Hired and Contracted services,56.00,Solutions Accommodation Providers Ltd,Hired and Contracted services,2000375,201801,
Rother District Council,02/04/2018,091HOUSING,Housing and Community Services,20203,Housing Needs - Universal Credit,D2513,Hired and Contracted services,224.00,Solutions Accommodation Providers Ltd,Hired and Contracted services,2000375,201801,
Rother District Council,02/04/2018,091HOUSING,Housing and Community Services,20203,Housing Needs - Universal Credit,D2514,Accommodation Costs,350.00,Saffron HMO Ltd,Accommodation Costs,2000523,201801,
Rother District Council,02/04/2018,091HOUSING,Housing and Community Services,20203,Housing Needs - Universal Credit,D2514,Accommodation Costs,134.40,Saffron HMO Ltd,Accommodation Costs,2000493,201801,
Rother District Council,02/04/2018,091HOUSING,Housing and Community Services,20203,Housing Needs - Universal Credit,D2514,Accommodation Costs,33.60,Saffron HMO Ltd,Accommodation Costs,2000493,201801,
Rother District Council,02/04/2018,091HOUSING,Housing and Community Services,20203,Housing Needs - Universal Credit,D2514,Accommodation Costs,134.40,Saffron HMO Ltd,Accommodation Costs,2000512,201801,
Rother District Council,02/04/2018,091HOUSING,Housing and Community Services,20203,Housing Needs - Universal Credit,D2514,Accommodation Costs,33.60,Saffron HMO Ltd,Accommodation Costs,2000512,201801,
Rother District Council,02/04/2018,091HOUSING,Housing and Community Services,20203,Housing Needs - Universal Credit,D2514,Accommodation Costs,280.00,Saffron HMO Ltd,Accommodation Costs,2000517,201801,
Rother District Council,02/04/2018,091HOUSING,Housing and Community Services,20203,Housing Needs - Universal Credit,D2514,Accommodation Costs,70.00,Saffron HMO Ltd,Accommodation Costs,2000517,201801,
Rother District Council,02/04/2018,091HOUSING,Housing and Community Services,20203,Housing Needs - Universal Credit,D2514,Accommodation Costs,308.00,Saffron HMO Ltd,Accommodation Costs,2000519,201801,
Rother District Council,02/04/2018,091HOUSING,Housing and Community Services,20203,Housing Needs - Universal Credit,D2514,Accommodation Costs,77.00,Saffron HMO Ltd,Accommodation Costs,2000519,201801,
Rother District Council,02/04/2018,091HOUSING,Housing and Community Services,20203,Housing Needs - Universal Credit,D2514,Accommodation Costs,134.40,Saffron HMO Ltd,Accommodation Costs,2000521,201801,
Rother District Council,02/04/2018,091HOUSING,Housing and Community Services,20203,Housing Needs - Universal Credit,D2514,Accommodation Costs,33.60,Saffron HMO Ltd,Accommodation Costs,2000521,201801,
Rother District Council,02/04/2018,101RESOURCES,Resources,20242,Communications-Phones,D2621,Telephones,49.76,TalkTalk Communications Ltd T/A TalkTalk Business,Telephones Telephone Call Costs + Line Rental,2001308,201802,
Rother District Council,03/04/2018,081ACQUISIT,"Acquisitions, Transformation and Regeneration",20153,"Elva Business Centre, Bexhill",B2611,Contract cleaning,146.80,J M Waste Management Limited,Contract cleaning Office Cleaning,2000609,201801,
Rother District Council,03/04/2018,101RESOURCES,Resources,20216,Cost Of Collection,D2513,Hired and Contracted services,"1,760.77",Capita Business Services Ltd,Departmental Systems Software for Academy System,2000332,201801,
Rother District Council,03/04/2018,101RESOURCES,Resources,20216,Cost Of Collection,D2639,Departmental Systems,"57,816.18",Capita Business Services Ltd,Departmental Systems Software for Academy System,2000800,201801,
Rother District Council,03/04/2018,101RESOURCES,Resources,20228,Sundry Debtor,D2639,Departmental Systems,"2,091.01",Capita Business Services Ltd,Departmental Systems Software for Academy System,2000805,201801,
Rother District Council,03/04/2018,091HOUSING,Housing and Community Services,20114,Bexhill Parks & Open Spaces,D1201,Equipment & Materials,120.00,Kinley,Equipment & Materials Carriage/Handling Charge,2000319,201801,
Rother District Council,03/04/2018,091HOUSING,Housing and Community Services,20132,Street & Beach Cleansing,D1201,Equipment & Materials,5.74,Jewson Limited,Equipment & Materials Purchase of Tools,2000597,201801,
Rother District Council,03/04/2018,101RESOURCES,Resources,20216,Cost Of Collection,D2513,Hired and Contracted services,684.00,Her Majestys Court Service,Hired and contracted services Court Costs/Fees,2000744,201801,
Rother District Council,03/04/2018,041ENVIRON,Environmental Services,32144,EH Environmental Services Admin R + W Partnership,D2513,Hired and Contracted services,187.50,Rocksure Systems Ltd,Hired and contracted services Service fee paid to Third Parties,2000421,201801,
Rother District Council,03/04/2018,091HOUSING,Housing and Community Services,20200,Housing Needs - HB (Housing Benefit),D2514,Accommodation Costs,"1,384.00",Phillips and Stubbs,Homelessness services Deposit for Landlords,2000401,201801,
Rother District Council,03/04/2018,091HOUSING,Housing and Community Services,20200,Housing Needs - HB (Housing Benefit),D2514,Accommodation Costs,"1,000.00",Phillips and Stubbs,Homelessness services Rent in Advance for Homeless,2000401,201801,
Rother District Council,03/04/2018,091HOUSING,Housing and Community Services,20114,Bexhill Parks & Open Spaces,B1100,Repairs to Premises,"2,777.91",Kinley,Repairs to Premises Parks- Landscaping Works,2000319,201801,
Rother District Council,03/04/2018,081ACQUISIT,"Acquisitions, Transformation and Regeneration",20154,Committee Property Account,B1100,Repairs to Premises,95.00,Graham,Repairs to Premises Purchase of Materials - Build Maint,2000598,201801,
Rother District Council,03/04/2018,031RESOURCES,Executive Directors & Corporate Core,20159,Corporate Policy Making,D2922,Subscriptions,"2,358.00",Association for Public Service Excellence (APSE),Subscriptions Subscription to Organisations,2000426,201801,
Rother District Council,03/04/2018,091HOUSING,Housing and Community Services,20108,Bexhill Promenade & Foreshore,E2302,Third party payment private contractors,800.00,OSD Hydropower Services,Third party payment private contractors Water Feature Maintenance,2000418,201801,
Rother District Council,03/04/2018,091HOUSING,Housing and Community Services,20200,Housing Needs - HB (Housing Benefit),D2508,Removals and Storage,200.00,Chapmans of Hastings,Removals and Storage,2000546,201801,
Rother District Council,03/04/2018,121PRECEPTS,Precepts,42203,Parish Precepts,F1201,Parish precepts,18000,Westfield Parish Council,Parish precepts Parish Precepts,2000795,201801,
Rother District Council,03/04/2018,121PRECEPTS,Precepts,42203,Parish Precepts,F1201,Parish precepts,76460.5,Rye Town Council,Parish precepts Parish Precepts,2000799,201801,
Rother District Council,03/04/2018,121PRECEPTS,Precepts,42203,Parish Precepts,F1201,Parish precepts,32311.5,Ewhurst Parish Council,Parish precepts Parish Precepts,2000776,201801,
Rother District Council,03/04/2018,121PRECEPTS,Precepts,42203,Parish Precepts,F1201,Parish precepts,23500,Fairlight Parish Council,Parish precepts Parish Precepts,2000777,201801,
Rother District Council,03/04/2018,121PRECEPTS,Precepts,42203,Parish Precepts,F1201,Parish precepts,15400,Peasmarsh Parish Council,Parish precepts Parish Precepts,2000785,201801,
Rother District Council,03/04/2018,121PRECEPTS,Precepts,42203,Parish Precepts,F1201,Parish precepts,6000,Ashburnham and  Penhurst Parish Council,Parish precepts Parish Precepts,2000591,201801,
Rother District Council,03/04/2018,121PRECEPTS,Precepts,42203,Parish Precepts,F1201,Parish precepts,47780,Salehurst and Robertsbridge Parish Council,Parish precepts Parish Precepts,2000790,201801,
Rother District Council,03/04/2018,121PRECEPTS,Precepts,42203,Parish Precepts,F1201,Parish precepts,23867.19,Sedlescombe Parish Council,Parish precepts Parish Precepts,2000792,201801,
Rother District Council,03/04/2018,121PRECEPTS,Precepts,42203,Parish Precepts,F1201,Parish precepts,69025,Ticehurst Parish Council,Parish precepts Parish Precepts,2000793,201801,
Rother District Council,03/04/2018,121PRECEPTS,Precepts,42203,Parish Precepts,F1201,Parish precepts,11250,Catsfield Parish Council,Parish precepts Parish Precepts,2000772,201801,
Rother District Council,03/04/2018,121PRECEPTS,Precepts,42203,Parish Precepts,F1201,Parish precepts,13959.5,Crowhurst Parish Council,Parish precepts Parish Precepts,2000773,201801,
Rother District Council,03/04/2018,121PRECEPTS,Precepts,42203,Parish Precepts,F1201,Parish precepts,23000,Etchingham Parish Council,Parish precepts Parish Precepts,2000775,201801,
Rother District Council,03/04/2018,121PRECEPTS,Precepts,42203,Parish Precepts,F1201,Parish precepts,11500,Pett Parish Council,Parish precepts Parish Precepts,2000786,201801,
Rother District Council,03/04/2018,121PRECEPTS,Precepts,42203,Parish Precepts,F1201,Parish precepts,21567.5,Hurst Green Parish Council,Parish precepts Parish Precepts,2000779,201801,
Rother District Council,03/04/2018,121PRECEPTS,Precepts,42203,Parish Precepts,F1201,Parish precepts,54025.5,Icklesham Parish Council,Parish precepts Parish Precepts,2000780,201801,
Rother District Council,03/04/2018,121PRECEPTS,Precepts,42203,Parish Precepts,F1201,Parish precepts,174500,Battle Town Council,Parish precepts Parish Precepts,2000763,201801,
Rother District Council,03/04/2018,121PRECEPTS,Precepts,42203,Parish Precepts,F1201,Parish precepts,11500,Beckley Parish Council,Parish precepts Parish Precepts,2000764,201801,
Rother District Council,03/04/2018,121PRECEPTS,Precepts,42203,Parish Precepts,F1201,Parish precepts,15558,Brede Parish Council,Parish precepts Parish Precepts,2000767,201801,
Rother District Council,03/04/2018,121PRECEPTS,Precepts,42203,Parish Precepts,F1201,Parish precepts,7062.5,Bexhill Charter Trustees,Parish precepts Parish Precepts,2000760,201801,
Rother District Council,03/04/2018,121PRECEPTS,Precepts,42203,Parish Precepts,F1201,Parish precepts,7000,Iden Parish Council,Parish precepts Parish Precepts,2000781,201801,
Rother District Council,03/04/2018,121PRECEPTS,Precepts,42203,Parish Precepts,F1201,Parish precepts,6550,Mountfield Parish Council,Parish precepts Parish Precepts,2000782,201801,
Rother District Council,03/04/2018,121PRECEPTS,Precepts,42203,Parish Precepts,F1201,Parish precepts,25000,Northiam Parish Council,Parish precepts Parish Precepts,2000784,201801,
Rother District Council,03/04/2018,121PRECEPTS,Precepts,42203,Parish Precepts,F1201,Parish precepts,20231,Burwash Parish Council,Parish precepts Parish Precepts,2000769,201801,
Rother District Council,03/04/2018,121PRECEPTS,Precepts,42203,Parish Precepts,F1201,Parish precepts,33465,Camber Parish Council,Parish precepts Parish Precepts,2000770,201801,
Rother District Council,03/04/2018,101RESOURCES,Resources,20216,Cost Of Collection,D2639,Departmental Systems,"8,693.00",Capita Business Services Ltd,Departmental Systems Software for Academy System,2001198,201802,
Rother District Council,03/04/2018,101RESOURCES,Resources,20216,Cost Of Collection,D2513,Hired and Contracted services,36.00,H M Land Registry,Hired and contracted services Council Tax-Land Registry Enquiries,2001292,201802,
Rother District Council,03/04/2018,071STRAT,Strategy and Planning,20246,Planning Applications,D2513,Hired and Contracted services,18.00,H M Land Registry,Hired and contracted services Land Registry - Planning,2001292,201802,
Rother District Council,03/04/2018,031RESOURCES,Executive Directors & Corporate Core,20162,Electoral Registration,D2525,Publicity,187.92,Royal Mail Group Ltd,Postages Response Service - Royal Mail Chg,2000734,201802,
Rother District Council,03/04/2018,091HOUSING,Housing and Community Services,20137,Car Parks,B1100,Repairs to Premises,206.25,Streetlights,Repairs to Premises Lighting Repairs,2001004,201802,
Rother District Council,04/04/2018,081ACQUISIT,"Acquisitions, Transformation and Regeneration",20154,Committee Property Account,D2509,Consultants and Other Services,"1,345.20",Mr R J Sheppard T/A E A R Sheppard,Consultants and other services Consultants Fees,2000575,201801,
Rother District Council,04/04/2018,101RESOURCES,Resources,20216,Cost Of Collection,D2639,Departmental Systems,205.27,Northgate Public Services (UK) Ltd,Departmental Systems Software for Academy System,2000696,201801,
Rother District Council,04/04/2018,091HOUSING,Housing and Community Services,20114,Bexhill Parks & Open Spaces,D1206,Furniture & Fittings,118.72,Alfa Electric Ltd,Equipment & Materials - Maintenance of Seats/Plaques from Donations,2000606,201801,
Rother District Council,04/04/2018,031RESOURCES,Executive Directors & Corporate Core,20173,Administrative Offices - Town Hall,D2513,Hired and Contracted services,409.92,Clearwater Technology Ltd,Hired & Contracted Serv- Legionella Sampling and Monitoring,2000328,201801,
Rother District Council,04/04/2018,031RESOURCES,Executive Directors & Corporate Core,20171,Human Resources,A2202,Recruitment expenses,"1,770.00",JGP Resourcing Ltd,Recruitment expenses Advertising Vacant Post,2000410,201801,
Rother District Council,04/04/2018,091HOUSING,Housing and Community Services,20114,Bexhill Parks & Open Spaces,B1100,Repairs to Premises,"4,498.83",MC Glass (East Sussex) Ltd,Repairs to Premises Repairs - Doors,2000334,201801,
Rother District Council,04/04/2018,091HOUSING,Housing and Community Services,20128,Public Conveniences,B2421,Water,51.08,Scottish Water Business Stream Limited,Sewage Charges,2000094,201801,
Rother District Council,04/04/2018,091HOUSING,Housing and Community Services,20128,Public Conveniences,B2421,Water,11.99,Scottish Water Business Stream Limited,Sewage Charges,2000094,201801,
Rother District Council,04/04/2018,091HOUSING,Housing and Community Services,20128,Public Conveniences,B2422,Sewerage,68.48,Scottish Water Business Stream Limited,Sewage Charges,2000096,201801,
Rother District Council,04/04/2018,091HOUSING,Housing and Community Services,20128,Public Conveniences,B2422,Sewerage,18.18,Scottish Water Business Stream Limited,Sewage Charges,2000097,201801,
Rother District Council,04/04/2018,091HOUSING,Housing and Community Services,20128,Public Conveniences,B2422,Sewerage,167.57,Scottish Water Business Stream Limited,Sewage Charges,2000098,201801,
Rother District Council,04/04/2018,091HOUSING,Housing and Community Services,20128,Public Conveniences,B2422,Sewerage,17.78,Scottish Water Business Stream Limited,Sewage Charges,2000098,201801,
Rother District Council,04/04/2018,091HOUSING,Housing and Community Services,20128,Public Conveniences,B2422,Sewerage,621.45,Scottish Water Business Stream Limited,Sewage Charges,2000097,201801,
Rother District Council,04/04/2018,091HOUSING,Housing and Community Services,20114,Bexhill Parks & Open Spaces,B2422,Sewerage,7.61,Scottish Water Business Stream Limited,Sewage Charges,2000096,201801,
Rother District Council,04/04/2018,081ACQUISIT,"Acquisitions, Transformation and Regeneration",20153,"Elva Business Centre, Bexhill",B2422,Sewerage,788.67,Scottish Water Business Stream Limited,Sewage Charges,2000093,201801,
Rother District Council,04/04/2018,081ACQUISIT,"Acquisitions, Transformation and Regeneration",20153,"Elva Business Centre, Bexhill",B2422,Sewerage,11.48,Scottish Water Business Stream Limited,Sewage Charges,2000093,201801,
Rother District Council,04/04/2018,081ACQUISIT,"Acquisitions, Transformation and Regeneration",20154,Committee Property Account,B2422,Sewerage,16.30,Scottish Water Business Stream Limited,Sewage Charges,2000095,201801,
Rother District Council,04/04/2018,081ACQUISIT,"Acquisitions, Transformation and Regeneration",20154,Committee Property Account,B2422,Sewerage,17.67,Scottish Water Business Stream Limited,Sewage Charges,2000095,201801,
Rother District Council,04/04/2018,101RESOURCES,Resources,20242,Communications-Phones,D2621,Telephones,"2,114.16",KCOM Group Plc,Telephones KCOM Smartnumber Charges,2000048,201801,
Rother District Council,04/04/2018,091HOUSING,Housing and Community Services,20234,Battle Community Help Point,B2881,Premises insurance,314.73,AIC Ltd,Premises insurance,2000119,201801,
Rother District Council,04/04/2018,121PRECEPTS,Precepts,42203,Parish Precepts,F1201,Parish precepts,3800,Whatlington Parish Council,Parish precepts Parish Precepts,2000798,201801,
Rother District Council,04/04/2018,121PRECEPTS,Precepts,42203,Parish Precepts,F1201,Parish precepts,1000,Rye Foreign Parish Council,Parish precepts Parish Precepts,2000789,201801,
Rother District Council,04/04/2018,121PRECEPTS,Precepts,42203,Parish Precepts,F1201,Parish precepts,2100,Udimore Parish Council,Parish precepts Parish Precepts,2000794,201801,
Rother District Council,04/04/2018,121PRECEPTS,Precepts,42203,Parish Precepts,F1201,Parish precepts,4217.5,Dallington Parish Council,Parish precepts Parish Precepts,2000774,201801,
Rother District Council,04/04/2018,121PRECEPTS,Precepts,42203,Parish Precepts,F1201,Parish precepts,2500,Playden Parish Council,Parish precepts Parish Precepts,2000787,201801,
Rother District Council,04/04/2018,121PRECEPTS,Precepts,42203,Parish Precepts,F1201,Parish precepts,4047.9,Guestling Parish Council,Parish precepts Parish Precepts,2000778,201801,
Rother District Council,04/04/2018,121PRECEPTS,Precepts,42203,Parish Precepts,F1201,Parish precepts,4650,Bodiam Parish Council,Parish precepts Parish Precepts,2000766,201801,
Rother District Council,04/04/2018,121PRECEPTS,Precepts,42203,Parish Precepts,F1201,Parish precepts,3580,Brightling Parish Council,Parish precepts Parish Precepts,2000768,201801,
Rother District Council,05/04/2018,101RESOURCES,Resources,20222,Accountancy,A1110,Agency Staff,763.80,Portfolio Payroll Limited,Agency Staff,2000599,201801,
Rother District Council,05/04/2018,091HOUSING,Housing and Community Services,20137,Car Parks,B2201,Electricity,14.98,Npower Ltd,Electricity Charges,2000100,201801,
Rother District Council,05/04/2018,091HOUSING,Housing and Community Services,20137,Car Parks,B2201,Electricity,36.85,Npower Ltd,Electricity Charges,2000102,201801,
Rother District Council,05/04/2018,091HOUSING,Housing and Community Services,20137,Car Parks,B2201,Electricity,4.76,Npower Ltd,Electricity Charges,2000103,201801,
Rother District Council,05/04/2018,091HOUSING,Housing and Community Services,20137,Car Parks,B2201,Electricity,39.19,Npower Ltd,Electricity Charges,2000101,201801,
Rother District Council,05/04/2018,091HOUSING,Housing and Community Services,20137,Car Parks,B2201,Electricity,5.81,Npower Ltd,Electricity Charges,2000099,201801,
Rother District Council,05/04/2018,091HOUSING,Housing and Community Services,20114,Bexhill Parks & Open Spaces,B2201,Electricity,13.68,Npower Ltd,Electricity Charges,2000104,201801,
Rother District Council,05/04/2018,091HOUSING,Housing and Community Services,20108,Bexhill Promenade & Foreshore,B2201,Electricity,2.36,Npower Ltd,Electricity Charges,2000100,201801,
Rother District Council,05/04/2018,091HOUSING,Housing and Community Services,20108,Bexhill Promenade & Foreshore,B2201,Electricity,6.18,Npower Ltd,Electricity Charges,2000101,201801,
Rother District Council,05/04/2018,091HOUSING,Housing and Community Services,20108,Bexhill Promenade & Foreshore,B2201,Electricity,0.91,Npower Ltd,Electricity Charges,2000099,201801,
Rother District Council,05/04/2018,041ENVIRON,Environmental Services,20129,Community Safety,B2201,Electricity,35.68,Npower Ltd,Electricity Charges,2000103,201801,
Rother District Council,05/04/2018,041ENVIRON,Environmental Services,20129,Community Safety,B2201,Electricity,276.30,Npower Ltd,Electricity Charges,2000102,201801,
Rother District Council,05/04/2018,091HOUSING,Housing and Community Services,20138,Residual Highway Services,B2201,Electricity,2.36,Npower Ltd,Electricity Charges,2000100,201801,
Rother District Council,05/04/2018,091HOUSING,Housing and Community Services,20138,Residual Highway Services,B2201,Electricity,30.68,Npower Ltd,Electricity Charges,2000102,201801,
Rother District Council,05/04/2018,091HOUSING,Housing and Community Services,20138,Residual Highway Services,B2201,Electricity,3.96,Npower Ltd,Electricity Charges,2000103,201801,
Rother District Council,05/04/2018,091HOUSING,Housing and Community Services,20138,Residual Highway Services,B2201,Electricity,6.18,Npower Ltd,Electricity Charges,2000101,201801,
Rother District Council,05/04/2018,091HOUSING,Housing and Community Services,20138,Residual Highway Services,B2201,Electricity,0.91,Npower Ltd,Electricity Charges,2000099,201801,
Rother District Council,05/04/2018,091HOUSING,Housing and Community Services,20145,Maintenance Services,D1201,Equipment & Materials,32.65,Jewson Limited,Equipment & Materials Purchase of Tools,2000824,201801,
Rother District Council,05/04/2018,101RESOURCES,Resources,20216,Cost Of Collection,D2513,Hired and Contracted services,245.00,Her Majestys Court Service,Hired and contracted services Court Costs/Fees,2000742,201801,
Rother District Council,05/04/2018,091HOUSING,Housing and Community Services,20137,Car Parks,B1100,Repairs to Premises,140.00,J D Fencing Contractors,Repairs to Premises Car Park Maintenance,2000105,201801,
Rother District Council,05/04/2018,081ACQUISIT,"Acquisitions, Transformation and Regeneration",20154,Committee Property Account,B1100,Repairs to Premises,37.30,Jewson Limited,Repairs to Premises Purchase of Materials - Build Maint,2000825,201801,
Rother District Council,05/04/2018,091HOUSING,Housing and Community Services,20102,Rother Museum Services,B1100,Repairs to Premises,113.96,Stannah Lift Services Ltd,Repairs to Premises Specified Repairs and Works listed,2000427,201801,
Rother District Council,05/04/2018,101RESOURCES,Resources,20239,Computer Services,D2635,Computer Licences,"8,863.21",Capita Business Services Ltd,Computer Licences,2000311,201801,
Rother District Council,05/04/2018,101RESOURCES,Resources,20209,Corporate management,D2513,Hired and Contracted services,60.00,Lloyds Bank,Bank Charges Bank Charges,2001305,201802,
Rother District Council,05/04/2018,081ACQUISIT,"Acquisitions, Transformation and Regeneration",20144,Property Management,D2513,Hired and Contracted services,510.00,Wilks Head and Eve LLP,hired and contracted services - rating appeals property,2001523,201802,
Rother District Council,05/04/2018,101RESOURCES,Resources,20216,Cost Of Collection,D2513,Hired and Contracted services,48.00,H M Land Registry,Hired and contracted services Council Tax-Land Registry Enquiries,2001327,201802,
Rother District Council,05/04/2018,101RESOURCES,Resources,20216,Cost Of Collection,D2513,Hired and Contracted services,363.00,Her Majestys Court Service,Hired and contracted services Court Costs/Fees,2001286,201802,
Rother District Council,05/04/2018,041ENVIRON,Environmental Services,32144,EH Environmental Services Admin R + W Partnership,D2513,Hired and Contracted services,3.00,H M Land Registry,Hired and contracted services Env H- Land Registry,2001327,201802,
Rother District Council,05/04/2018,071STRAT,Strategy and Planning,20246,Planning Applications,D2513,Hired and Contracted services,36.00,H M Land Registry,Hired and contracted services Land Registry - Planning,2001327,201802,
Rother District Council,05/04/2018,041ENVIRON,Environmental Services,32142,EH Taxi and Private Hire Licenses R + W Partnership,D2513,Hired and Contracted services,23.01,uCheck,Hired and contracted services Service fee paid to Third Parties,2001259,201802,
Rother District Council,05/04/2018,041ENVIRON,Environmental Services,32142,EH Taxi and Private Hire Licenses R + W Partnership,D2513,Hired and Contracted services,132.00,uCheck,Hired and contracted services Service fee paid to Third Parties,2001259,201802,
Rother District Council,05/04/2018,091HOUSING,Housing and Community Services,20114,Bexhill Parks & Open Spaces,B1100,Repairs to Premises,300.00,J D Fencing Contractors,Repairs to Premises Parks- Fencing Installation,2001005,201802,
Rother District Council,05/04/2018,031RESOURCES,Executive Directors & Corporate Core,20171,Human Resources,A2202,Recruitment expenses,326.00,We Are Sunday Ltd,Recruitment expenses Advertising Vacant Post,2001749,201803,
Rother District Council,06/04/2018,999NOREPORT,Resources,90000,Balance sheet all accounts,R2344,Stock Accounts,"4,040.00",Pitney Bowes Purchase Power,Postages franking machine costs,2000377,201801,
Rother District Council,06/04/2018,091HOUSING,Housing and Community Services,20114,Bexhill Parks & Open Spaces,B1100,Repairs to Premises,40.00,J S Fire Protection Ltd,Repairs to Premises Purchase of Materials - Build Maint,2000419,201801,
Rother District Council,06/04/2018,091HOUSING,Housing and Community Services,20113,Bexhill Leisure Pool,B1100,Repairs to Premises,440.90,Mr R J Sheppard T/A E A R Sheppard,Repairs to Premises Repairs/Maintenance - various,2000283,201801,
Rother District Council,06/04/2018,091HOUSING,Housing and Community Services,20128,Public Conveniences,B2422,Sewerage,330.00,CountyClean Environmental Services Ltd,Sewerage - Sewage/Cesspool Emptying,2000429,201801,
Rother District Council,06/04/2018,071STRAT,Strategy and Planning,20246,Planning Applications,D2519,Statutory Advertising,823.50,Johnston Publishing Ltd,Statutory Advertising Planadv - Rye + Battle Observer,2000835,201801,
Rother District Council,06/04/2018,101RESOURCES,Resources,20219,Support To Elect Bodies/Grant,D2513,Hired and Contracted services,"9,007.62",Local Government Association,Subscriptions Subscription to Organisations,2000327,201801,
Rother District Council,06/04/2018,101RESOURCES,Resources,20216,Cost Of Collection,D2513,Hired and Contracted services,6.00,H M Land Registry,Hired and contracted services Council Tax-Land Registry Enquiries,2001290,201802,
Rother District Council,06/04/2018,041ENVIRON,Environmental Services,32144,EH Environmental Services Admin R + W Partnership,D2513,Hired and Contracted services,3.00,H M Land Registry,Hired and contracted services Env H- Land Registry,2001290,201802,
Rother District Council,07/04/2018,091HOUSING,Housing and Community Services,20200,Housing Needs - HB (Housing Benefit),D2514,Accommodation Costs,350.00,Specialist Care UK Group Ltd,Accommodation Costs,2001102,201802,
Rother District Council,08/04/2018,091HOUSING,Housing and Community Services,20200,Housing Needs - HB (Housing Benefit),D2514,Accommodation Costs,350.00,Specialist Care UK Group Ltd,Homelessness services Temp Accom - plus VAT,2000481,201801,
Rother District Council,08/04/2018,091HOUSING,Housing and Community Services,20203,Housing Needs - Universal Credit,D2514,Accommodation Costs,262.50,Specialist Care UK Group Ltd,Homelessness services Temp Accom - plus VAT,2000479,201801,
Rother District Council,08/04/2018,091HOUSING,Housing and Community Services,20203,Housing Needs - Universal Credit,D2514,Accommodation Costs,125.00,Specialist Care UK Group Ltd,Homelessness services Temp Accom - plus VAT,2000482,201801,
Rother District Council,08/04/2018,091HOUSING,Housing and Community Services,20203,Housing Needs - Universal Credit,D2514,Accommodation Costs,112.50,Specialist Care UK Group Ltd,Homelessness services Temp Accom - plus VAT,2000484,201801,
Rother District Council,08/04/2018,091HOUSING,Housing and Community Services,20200,Housing Needs - HB (Housing Benefit),D2514,Accommodation Costs,350.00,Specialist Care UK Group Ltd,Accommodation Costs,2000473,201801,
Rother District Council,08/04/2018,091HOUSING,Housing and Community Services,20200,Housing Needs - HB (Housing Benefit),D2514,Accommodation Costs,375.00,Specialist Care UK Group Ltd,Accommodation Costs,2000476,201801,
